Workbook

Sheet Input
A1: L2/L1 = | B1: 1.079
A3: Mi | B3: (L1/10) | C3: Moment influence line for point i
A4: Ri | B4: (1) | C4: Reaction influence line for support i
A5: Qi | B5: (1) | C5: Shear influence line for point i
A6: Di | B6: (L1^3/EI)/100 | C6: Deflection influence line for point i
A7: Si | B7: (L1^2/EI)/10 | C7: Rotation angle influence line for support i
A8: M-i | B8: (L1/10) | C8: Moment diagram when a unit point load is applied at point i
A9: MSi | B9: (L1^2/10) | C9: Moment diagram when uniformly distributed loads are applied at span i
A10: Q-i | B10: (1) | C10: Shear diagram when a unit point load is applied at point i
A11: QSi | B11: (L1) | C11: Shear diagram when uniformly distributed loads are applied at span i
A12: D-i | B12: (L1^3/EI)/100 | C12: Deflection diagram when a unit point load is applied at point i
A13: DSi | B13: (L1^4/EI)/100 | C13: Deflection diagram when uniformly distributed loads are applied at span i
A14: SSi | B14: (L1^3/EI)/10 | C14: Rotation angle diagram when uniformly distributed loads are applied at support i

Sheet 4 span Calculation (hidden)
FA2: Span | FB2: 1 | FK2: 2 | GA2: 1 | GJ2: 2 | ID2: 1 | IM2: 2 | JH2: 1 | JQ2: 2 | KF2: 1 | KO2: 2
FA3: x/L | FB3: 0 | FC3: =+FB3+1/8 -> 0.125 | FD3: 0.25 | FE3: 0.375 | FF3: 0.5 | FG3: 0.625 | FH3: 0.75 | FI3: 0.875 | FJ3: 1 | FK3: 0 | FL3: =+FK3+1/8 -> 0.125 | FM3: =+FL3+1/8 -> 0.25 | FN3: =+FM3+1/8 -> 0.375 | FO3: =+FN3+1/8 -> 0.5 | FP3: =+FO3+1/8 -> 0.625 | FQ3: 0.75 | FR3: 0.875 | FS3: 1 | GA3: 0 | GB3: =+GA3+1/8 -> 0.125 | GC3: =+GB3+1/8 -> 0.25 | GD3: =+GC3+1/8 -> 0.375 | GE3: =+GD3+1/8 -> 0.5 | GF3: =+GE3+1/8 -> 0.625 | GG3: =+GF3+1/8 -> 0.75 | GH3: =+GG3+1/8 -> 0.875 | GI3: =+GH3+1/8 -> 1 | GJ3: 0 | GK3: =+GJ3+1/8 -> 0.125 | GL3: =+GK3+1/8 -> 0.25 | GM3: =+GL3+1/8 -> 0.375 | GN3: =+GM3+1/8 -> 0.5 | GO3: =+GN3+1/8 -> 0.625 | GP3: =+GO3+1/8 -> 0.75 | GQ3: =+GP3+1/8 -> 0.875 | GR3: =+GQ3+1/8 -> 1 | ID3: 0 | IE3: =+ID3+1/8 -> 0.125 | IF3: =+IE3+1/8 -> 0.25 | IG3: =+IF3+1/8 -> 0.375 | IH3: =+IG3+1/8 -> 0.5 | II3: =+IH3+1/8 -> 0.625 | IJ3: =+II3+1/8 -> 0.75 | IK3: =+IJ3+1/8 -> 0.875 | IL3: =+IK3+1/8 -> 1 | IM3: 0 | IN3: =+IM3+1/8 -> 0.125 | IO3: =+IN3+1/8 -> 0.25 | IP3: =+IO3+1/8 -> 0.375 | IQ3: =+IP3+1/8 -> 0.5 | IR3: =+IQ3+1/8 -> 0.625 | IS3: 0.75 | IT3: 0.875 | IU3: 1 | JH3: 0 | JI3: =+JH3+1/8 -> 0.125 | JJ3: =+JI3+1/8 -> 0.25 | JK3: =+JJ3+1/8 -> 0.375 | JL3: =+JK3+1/8 -> 0.5 | JM3: =+JL3+1/8 -> 0.625 | JN3: =+JM3+1/8 -> 0.75 | JO3: =+JN3+1/8 -> 0.875 | JP3: =+JO3+1/8 -> 1 | JQ3: 0 | JR3: =+JQ3+1/8 -> 0.125 | JS3: =+JR3+1/8 -> 0.25 | JT3: =+JS3+1/8 -> 0.375 | JU3: =+JT3+1/8 -> 0.5 | JV3: =+JU3+1/8 -> 0.625 | JW3: 0.75 | JX3: 0.875 | JY3: 1 | KF3: 0 | KG3: =+KF3+1/8 -> 0.125 | KH3: =+KG3+1/8 -> 0.25 | KI3: =+KH3+1/8 -> 0.375 | KJ3: =+KI3+1/8 -> 0.5 | KK3: =+KJ3+1/8 -> 0.625 | KL3: =+KK3+1/8 -> 0.75 | KM3: =+KL3+1/8 -> 0.875 | KN3: =+KM3+1/8 -> 1 | KO3: 0 | KP3: =+KO3+1/8 -> 0.125 | KQ3: =+KP3+1/8 -> 0.25 | KR3: =+KQ3+1/8 -> 0.375 | KS3: =+KR3+1/8 -> 0.5 | KT3: =+KS3+1/8 -> 0.625 | KU3: 0.75 | KV3: 0.875 | KW3: 1
FA4: 1-x/L | FB4: =1-FB3 -> 1 | FC4: =1-FC3 -> 0.875 | FD4: 0.75 | FE4: 0.625 | FF4: 0.5 | FG4: 0.375 | FH4: 0.25 | FI4: 0.125 | FJ4: 0 | FK4: 1 | FL4: 0.875 | FM4: 0.75 | FN4: 0.625 | FO4: 0.5 | FP4: =1-FP3 -> 0.375 | FQ4: 0.25 | FR4: 0.125 | FS4: 0
FA5: Mx0 | FB5: =+FB3*(1-FB3) -> 0 | FC5: 0.109375 | FD5: 0.1875 | FE5: 0.234375 | FF5: 0.25 | FG5: 0.234375 | FH5: 0.1875 | FI5: 0.109375 | FJ5: 0 | FK5: 0 | FL5: 0.109375 | FM5: 0.1875 | FN5: 0.234375 | FO5: 0.25 | FP5: =+FP3*(1-FP3) -> 0.234375 | FQ5: 0.1875 | FR5: 0.109375 | FS5: 0
FA6: Mx1 | FB6: =+FB3 -> 0 | FC6: 0.125 | FD6: 0.25 | FE6: 0.375 | FF6: 0.5 | FG6: 0.625 | FH6: 0.75 | FI6: 0.875 | FJ6: 1 | FK6: =1-FK3 -> 1 | FL6: =1-FL3 -> 0.875 | FM6: 0.75 | FN6: 0.625 | FO6: 0.5 | FP6: 0.375 | FQ6: 0.25 | FR6: 0.125 | FS6: 0
FA7: Mx2 | FB7: =+FB3 -> 0 | FC7: 0.125 | FD7: 0.25 | FE7: 0.375 | FF7: 0.5 | FG7: 0.625 | FH7: 0.75 | FI7: 0.875 | FJ7: 1 | FK7: =+FK6 -> 1 | FL7: =+FL6 -> 0.875 | FM7: 0.75 | FN7: 0.625 | FO7: 0.5 | FP7: 0.375 | FQ7: 0.25 | FR7: 0.125 | FS7: 0
D8: Bending Moment | V8: Shear Force | Y8: Reaction | FA8: Mx3 | FK8: =+FK3 -> 0 | FL8: =+FL3 -> 0.125 | FM8: 0.25 | FN8: 0.375 | FO8: 0.5 | FP8: 0.625 | FQ8: 0.75 | FR8: 0.875 | FS8: 1
D9: 0 | E9: =+D9+1 -> 1 | F9: 2 | G9: 3 | H9: 4 | I9: 5 | J9: 6 | K9: 7 | L9: 8 | M9: =+L9 -> 8 | N9: =+M9+1 -> 9 | O9: 10 | P9: 11 | Q9: 12 | R9: 13 | S9: 14 | T9: 15 | U9: 16 | V9: lQB | W9: rQB | X9: lQC | Y9: RA | Z9: RB | AA9: RC | FA9: Mx4
D10: =+E10+1 -> 32 | E10: 31 | F10: 30 | G10: 29 | H10: 28 | I10: 27 | J10: 26 | K10: 25 | L10: =+M10 -> 24 | M10: =+N10+1 -> 24 | N10: 23 | O10: 22 | P10: 21 | Q10: 20 | R10: 19 | S10: 18 | T10: 17 | U10: =+U9 -> 16 | AJ10: 0 | AK10: 0 | AL10: =+AJ10+1 -> 1 | AM10: 1 | AN10: 2 | AO10: 2 | AP10: 3 | AQ10: 3 | AR10: 4 | AS10: 4 | AT10: 5 | AU10: 5 | AV10: 6 | AW10: 6 | AX10: 7 | AY10: 7 | AZ10: 8 | BA10: 8 | BB10: 9 | BC10: 9 | BD10: 10 | BE10: 10 | BF10: 11 | BG10: 11 | BH10: 12 | BI10: 12 | BJ10: 13 | BK10: 13 | BL10: 14 | BM10: 14 | BN10: 15 | BO10: 15 | BP10: 16 | BQ10: 16 | BR10: =+BP10+1 -> 17 | BS10: 17 | BT10: 18 | BU10: 18 | BV10: 19 | BW10: 19 | BX10: 20 | BY10: 20 | BZ10: 21 | CA10: 21 | CB10: 22 | CC10: 22 | CD10: 23 | CE10: 23 | CF10: 24 | CG10: 24 | CH10: 25 | CI10: 25 | CJ10: 26 | CK10: 26 | CL10: 27 | CM10: 27 | CN10: 28 | CO10: 28 | CP10: 29 | CQ10: 29 | CR10: 30 | CS10: 30 | CT10: 31 | CU10: 31 | CV10: 32 | CW10: 32
C11: =+E11 -> 0 | D11: =+HA25 -> 0 | E11: =+HB25 -> 0 | F11: =+HC25 -> 0 | G11: =+HD25 -> 0 | H11: =+HE25 -> 0 | I11: =+HF25 -> 0 | J11: =+HG25 -> 0 | K11: =+HH25 -> 0 | L11: =+HI25 -> 0 | M11: =+HJ25 -> 0 | N11: =+HK25 -> 0 | O11: =+HL25 -> 0 | P11: =+HM25 -> 0 | Q11: =+HN25 -> 0 | R11: =+HO25 -> 0 | S11: =+HP25 -> 0 | T11: =+HQ25 -> 0 | U11: =+HR25 -> 0 | V11: =+DS25 -> 0 | W11: =+DV25 -> 0 | X11: =+DZ25 -> 0 | Y11: =+DJ25 -> 1 | Z11: =+DM25 -> 0 | AA11: =+DP25 -> 0 | FA11: fx1 | FB11: =+(FB3-FB3^3)/6 -> 0 | FC11: =+(FC3-FC3^3)/6 -> 0.0205078125 | FD11: 0.0390625 | FE11: 0.0537109375 | FF11: 0.0625 | FG11: 0.0634765625 | FH11: 0.0546875 | FI11: 0.0341796875 | FJ11: 0 | FK11: =+(2*FK3-3*FK3^2+FK3^3)/6*Input!$B$1^2 -> 0 | FL11: =+(2*FL3-3*FL3^2+FL3^3)/6*Input!$B$1^2 -> 0.03979339355 | FM11: =+(2*FM3-3*FM3^2+FM3^3)/6*Input!$B$1^2 -> 0.06366942969 | FN11: =+(2*FN3-3*FN3^2+FN3^3)/6*Input!$B$1^2 -> 0.0739020166 | FO11: =+(2*FO3-3*FO3^2+FO3^3)/6*Input!$B$1^2 -> 0.0727650625 | FP11: =+(2*FP3-3*FP3^2+FP3^3)/6*Input!$B$1^2 -> 0.06253247559 | FQ11: =+(2*FQ3-3*FQ3^2+FQ3^3)/6*Input!$B$1^2 -> 0.04547816406 | FR11: =+(2*FR3-3*FR3^2+FR3^3)/6*Input!$B$1^2 -> 0.02387603613 | FS11: =+(2*FS3-3*FS3^2+FS3^3)/6*Input!$B$1^2 -> 0
C12: =+C11+1 -> 1 | D12: 0 | E12: 1.054001411 | F12: 0.8580028213 | G12: 0.662004232 | H12: 0.4660056427 | I12: 0.2700070534 | J12: 0.07400846404 | K12: -0.1219901253 | L12: -0.3179887146 | M12: -0.3179887146 | N12: -0.2676135816 | O12: -0.2172384485 | P12: -0.1668633155 | Q12: -0.1164881824 | R12: -0.0661130494 | S12: -0.01573791636 | T12: 0.03463721669 | U12: 0.08501234973 | V12: -0.1567988715 | W12: 0.03734949623 | X12: 0.03734949623 | Y12: 0.8432011285 | Z12: 0.1941483677 | AA12: -0.04727285435 | AJ12: 0 | AK12: =+$Y12 -> 0.8432011285 | AL12: =+$Y12 -> 0.8432011285 | AM12: =+$V12 -> -0.1567988715 | AN12: =+$V12 -> -0.1567988715 | AZ12: =+$V12 -> -0.1567988715 | BA12: =+$W12 -> 0.03734949623 | BP12: =+$W12 -> 0.03734949623 | BQ12: =+CF12 -> -0.009923358113 | CF12: =-W45 -> -0.009923358113 | CG12: =+CV12 -> 0.002206068431 | CV12: =-Y45 -> 0.002206068431 | CW12: 0 | FA12: fx2 | FB12: =+FB11 -> 0 | FC12: =+FC11 -> 0.0205078125 | FD12: 0.0390625 | FE12: 0.0537109375 | FF12: 0.0625 | FG12: 0.0634765625 | FH12: 0.0546875 | FI12: 0.0341796875 | FJ12: 0 | FK12: =+FK11 -> 0 | FL12: =+FL11 -> 0.03979339355 | FM12: 0.06366942969 | FN12: 0.0739020166 | FO12: 0.0727650625 | FP12: 0.06253247559 | FQ12: 0.04547816406 | FR12: 0.02387603613 | FS12: 0
C13: 2 | D13: 0 | E13: 0.8617884013 | F13: 1.723576803 | G13: 1.335365204 | H13: 0.9471536051 | I13: 0.5589420064 | J13: 0.1707304077 | K13: -0.217481191 | L13: -0.6056927897 | M13: -0.6056927897 | N13: -0.5097401554 | O13: -0.413787521 | P13: -0.3178348866 | Q13: -0.2218822523 | R13: -0.1259296179 | S13: -0.02997698353 | T13: 0.06597565083 | U13: 0.1619282852 | V13: -0.310569279 | W13: 0.07114189758 | X13: 0.07114189758 | Y13: 0.689430721 | Z13: 0.3817111766 | AA13: -0.09004353209 | AJ13: 0 | AK13: =+$Y13 -> 0.689430721 | AN13: =+$Y13 -> 0.689430721 | AO13: =+$V13 -> -0.310569279 | AZ13: -0.310569279 | BA13: 0.07114189758 | BP13: 0.07114189758 | BQ13: -0.0189016345 | CF13: =-W44 -> -0.0189016345 | CG13: 0.004202035107 | CV13: =-Y44 -> 0.004202035107 | CW13: 0 | FA13: fx3 | FK13: =+(FK3-FK3^3)/6*Input!$B$1^2 -> 0 | FL13: =+(FL3-FL3^3)/6*Input!$B$1^2 -> 0.02387603613 | FM13: =+(FM3-FM3^3)/6*Input!$B$1^2 -> 0.04547816406 | FN13: =+(FN3-FN3^3)/6*Input!$B$1^2 -> 0.06253247559 | FO13: =+(FO3-FO3^3)/6*Input!$B$1^2 -> 0.0727650625 | FP13: =+(FP3-FP3^3)/6*Input!$B$1^2 -> 0.0739020166 | FQ13: =+(FQ3-FQ3^3)/6*Input!$B$1^2 -> 0.06366942969 | FR13: =+(FR3-FR3^3)/6*Input!$B$1^2 -> 0.03979339355 | FS13: =+(FS3-FS3^3)/6*Input!$B$1^2 -> 0
C14: 3 | D14: 0 | E14: 0.6771465518 | F14: 1.354293104 | G14: 2.031439655 | H14: 1.458586207 | I14: 0.8857327588 | J14: 0.3128793106 | K14: -0.2599741377 | L14: -0.8328275859 | M14: -0.8328275859 | N14: -0.7008927136 | O14: -0.5689578414 | P14: -0.4370229691 | Q14: -0.3050880969 | R14: -0.1731532246 | S14: -0.04121835236 | T14: 0.0907165199 | U14: 0.2226513922 | V14: -0.4582827586 | W14: 0.09782010918 | X14: 0.09782010918 | Y14: 0.5417172414 | Z14: 0.5561028678 | AA14: -0.1238098566 | AJ14: 0 | AK14: 0.5417172414 | AP14: =+$Y14 -> 0.5417172414 | AQ14: =+$V14 -> -0.4582827586 | AZ14: -0.4582827586 | BA14: 0.09782010918 | BP14: 0.09782010918 | BQ14: -0.02598974744 | CF14: =-W43 -> -0.02598974744 | CG14: 0.005777798272 | CV14: =-Y43 -> 0.005777798272 | CW14: 0 | FA14: fx4
C15: 4 | D15: 0 | E15: 0.5038614421 | F15: 1.007722884 | G15: 1.511584326 | H15: 2.015445768 | I15: 1.26930721 | J15: 0.5231686523 | K15: -0.2229699056 | L15: -0.9691084636 | M15: -0.9691084636 | N15: -0.8155842486 | O15: -0.6620600336 | P15: -0.5085358186 | Q15: -0.3550116036 | R15: -0.2014873886 | S15: -0.04796317365 | T15: 0.1055610413 | U15: 0.2590852563 | V15: -0.5969108464 | W15: 0.1138270361 | X15: 0.1138270361 | Y15: 0.4030891536 | Z15: 0.7107378825 | AA15: -0.1440696513 | AJ15: 0 | AK15: 0.4030891536 | AR15: =+$Y15 -> 0.4030891536 | AS15: =+$V15 -> -0.5969108464 | AZ15: -0.5969108464 | BA15: 0.1138270361 | BP15: 0.1138270361 | BQ15: -0.0302426152 | CF15: =-W42 -> -0.0302426152 | CG15: 0.006723256171 | CV15: =-Y42 -> 0.006723256171 | CW15: 0
C16: 5 | D16: 0 | E16: 0.3457186521 | F16: 0.6914373042 | G16: 1.037155956 | H16: 1.382874608 | I16: 1.72859326 | J16: 0.8243119125 | K16: -0.07996943541 | L16: -0.9842507833 | M16: -0.9842507833 | N16: -0.8283277525 | O16: -0.6724047216 | P16: -0.5164816908 | Q16: -0.3605586599 | R16: -0.2046356291 | S16: -0.04871259824 | T16: 0.1072104326 | U16: 0.2631334635 | V16: -0.7234250783 | W16: 0.1156055836 | X16: 0.1156055836 | Y16: 0.2765749217 | Z16: 0.8390306619 | AA16: -0.1463207396 | AJ16: 0 | AK16: 0.2765749217 | AT16: =+$Y16 -> 0.2765749217 | AU16: =+$V16 -> -0.7234250783 | AZ16: -0.7234250783 | BA16: 0.1156055836 | BP16: 0.1156055836 | BQ16: -0.03071515606 | CF16: =-W41 -> -0.03071515606 | CG16: 0.006828307048 | CV16: =-Y41 -> 0.006828307048 | CW16: 0
C17: 6 | D17: 0 | E17: 0.2065037618 | F17: 0.4130075236 | G17: 0.6195112854 | H17: 0.8260150472 | I17: 1.032518809 | J17: 1.239022571 | K17: 0.1955263326 | L17: -0.8479699056 | M17: -0.8479699056 | N17: -0.7136362175 | O17: -0.5793025294 | P17: -0.4449688413 | Q17: -0.3106351532 | R17: -0.1763014651 | S17: -0.04196777695 | T17: 0.09236591117 | U17: 0.2266995993 | V17: -0.8347969906 | W17: 0.09959865662 | X17: 0.09959865662 | Y17: 0.1652030094 | Z17: 0.9343956472 | AA17: -0.1260609449 | AJ17: 0 | AK17: 0.1652030094 | AV17: =+$Y17 -> 0.1652030094 | AW17: =+$V17 -> -0.8347969906 | AZ17: -0.8347969906 | BA17: 0.09959865662 | BP17: 0.09959865662 | BQ17: -0.0264622883 | CF17: =-W40 -> -0.0264622883 | CG17: 0.005882849149 | CV17: =-Y40 -> 0.005882849149 | CW17: 0
C18: 7 | D18: 0 | E18: 0.09000235112 | F18: 0.1800047022 | G18: 0.2700070534 | H18: 0.3600094045 | I18: 0.4500117556 | J18: 0.5400141067 | K18: 0.6300164579 | L18: -0.529981191 | M18: -0.529981191 | N18: -0.4460226359 | O18: -0.3620640809 | P18: -0.2781055258 | Q18: -0.1941469707 | R18: -0.1101884157 | S18: -0.02622986059 | T18: 0.05772869448 | U18: 0.1416872496 | V18: -0.9279981191 | W18: 0.06224916039 | X18: 0.06224916039 | Y18: 0.0720018809 | Z18: 0.9902472795 | AA18: -0.07878809058 | AJ18: 0 | AK18: 0.0720018809 | AX18: =+$Y18 -> 0.0720018809 | AY18: =+$V18 -> -0.9279981191 | AZ18: -0.9279981191 | BA18: 0.06224916039 | BP18: 0.06224916039 | BQ18: -0.01653893019 | CF18: =-W39 -> -0.01653893019 | CG18: 0.003676780718 | CV18: =-Y39 -> 0.003676780718 | CW18: 0
C19: 8 | D19: 0 | E19: 0 | F19: 0 | G19: 0 | H19: 0 | I19: 0 | J19: 0 | K19: 0 | L19: 0 | M19: 0 | N19: 0 | O19: 0 | P19: 0 | Q19: 0 | R19: 0 | S19: 0 | T19: 0 | U19: 0 | V19: -1 | W19: 0 | X19: 0 | Y19: 0 | Z19: 1 | AA19: 0
C20: =+C19 -> 8 | D20: 0 | E20: 0 | F20: 0 | G20: 0 | H20: 0 | I20: 0 | J20: 0 | K20: 0 | L20: 0 | M20: 0 | N20: 0 | O20: 0 | P20: 0 | Q20: 0 | R20: 0 | S20: 0 | T20: 0 | U20: 0 | V20: 0 | W20: 1 | X20: 0 | Y20: 0 | Z20: 1 | AA20: 0 | DJ20: 1 | DM20: =-(1+1/Input!B1) -> -1.926784059 | DP20: =2/Input!B1 -> 1.853568119 | DS20: 1 | DV20: =-1/Input!B1 -> -0.9267840593 | DZ20: =-1/Input!$B$1 -> -0.9267840593 | EC20: =-1/6 -> -0.1666666667 | ED20: =-1/6 -> -0.1666666667 | EI20: =1/3 -> 0.3333333333 | EJ20: =1/3 -> 0.3333333333 | EO20: =-1/3*Input!B1 -> -0.3596666667 | EP20: =-1/3*Input!B1 -> -0.3596666667 | EQ20: =-1/6*Input!B1 -> -0.1798333333 | EU20: =1/6*Input!B1 -> 0.1798333333 | EV20: =1/6*Input!B1 -> 0.1798333333 | EW20: =1/3*Input!B1 -> 0.3596666667
C21: =+C20+1 -> 9 | D21: 0 | E21: -0.06475637109 | F21: -0.1295127422 | G21: -0.1942691133 | H21: -0.2590254844 | I21: -0.3237818555 | J21: -0.3885382266 | K21: -0.4532945977 | L21: -0.5180509688 | M21: -0.5180509688 | N21: 0.6998056184 | O21: 0.5689122055 | P21: 0.4380187926 | Q21: 0.3071253798 | R21: 0.1762319669 | S21: 0.04533855401 | T21: -0.08555485887 | U21: -0.2164482717 | V21: -0.05180509688 | W21: 0.9029520572 | X21: -0.09704794282 | Y21: -0.05180509688 | Z21: 0.9547571541 | AA21: 0.1223136097 | AJ21: 0 | AK21: =+$Y21 -> -0.05180509688 | AZ21: =+$Y21 -> -0.05180509688 | BA21: =+$W21 -> 0.9029520572 | BB21: =+$W21 -> 0.9029520572 | BC21: =+$X21 -> -0.09704794282 | BP21: =+$X21 -> -0.09704794282 | BQ21: =+CF21 -> 0.02526566693 | CF21: =-W36 -> 0.02526566693 | CG21: =+CV21 -> -0.005616827446 | CV21: =-Y36 -> -0.005616827446 | CW21: 0 | DJ21: 1 | DM21: =-(1+1/Input!B1) -> -1.926784059 | DP21: 0 | DS21: 1 | DV21: =+DV20 -> -0.9267840593 | DZ21: =+DZ20 -> -0.9267840593
C22: 10 | D22: 0 | E22: -0.09983972278 | F22: -0.1996794456 | G22: -0.2995191683 | H22: -0.3993588911 | I22: -0.4991986139 | J22: -0.5990383367 | K22: -0.6988780594 | L22: -0.7987177822 | M22: -0.7987177822 | N22: 0.2548650195 | O22: 1.308447821 | P22: 1.013280623 | Q22: 0.7181134246 | R22: 0.4229462262 | S22: 0.1277790279 | T22: -0.1673881704 | U22: -0.4625553687 | V22: -0.07987177822 | W22: 0.7811549966 | X22: -0.2188450034 | Y22: -0.07987177822 | Z22: 0.8610267748 | AA22: 0.2728383653 | AJ22: 0 | AK22: -0.07987177822 | AZ22: -0.07987177822 | BA22: =+$W22 -> 0.7811549966 | BD22: =+$W22 -> 0.7811549966 | BE22: =+$X22 -> -0.2188450034 | BP22: -0.2188450034 | BQ22: 0.05399336197 | CF22: =-W35 -> 0.05399336197 | CG22: -0.01200330069 | CV22: =-Y35 -> -0.01200330069 | CW22: 0 | DJ22: 0 | DM22: =1/Input!B1 -> 0.9267840593 | DP22: =-DP20 -> -1.853568119 | DS22: 0 | DV22: =-DV21 -> 0.9267840593 | DZ22: =-DZ21 -> 0.9267840593
C23: 11 | D23: 0 | E23: -0.1108356546 | F23: -0.2216713092 | G23: -0.3325069638 | H23: -0.4433426184 | I23: -0.554178273 | J23: -0.6650139276 | K23: -0.7758495822 | L23: -0.8866852368 | M23: -0.8866852368 | N23: -0.01945216925 | O23: 0.8477808983 | P23: 1.715013966 | Q23: 1.233497033 | R23: 0.7519801009 | S23: 0.2704631684 | T23: -0.2110537641 | U23: -0.6925706965 | V23: -0.08866852368 | W23: 0.6429902262 | X23: -0.3570097738 | Y23: -0.08866852368 | Z23: 0.7316587498 | AA23: 0.4378524639 | AJ23: 0 | AK23: -0.08866852368 | AZ23: -0.08866852368 | BA23: 0.6429902262 | BF23: =+$W23 -> 0.6429902262 | BG23: =+$X23 -> -0.3570097738 | BP23: -0.3570097738 | BQ23: 0.08084269006 | CF23: =-W34 -> 0.08084269006 | CG23: -0.01797219292 | CV23: =-Y34 -> -0.01797219292 | CW23: 0
C24: 12 | D24: 0 | E24: -0.1033297661 | F24: -0.2066595322 | G24: -0.3099892983 | H24: -0.4133190644 | I24: -0.5166488305 | J24: -0.6199785966 | K24: -0.7233083627 | L24: -0.8266381288 | M24: -0.8266381288 | N24: -0.1565263204 | O24: 0.5135854881 | P24: 1.183697297 | Q24: 1.853809105 | R24: 1.175170914 | S24: 0.496532722 | T24: -0.1821054695 | U24: -0.860743661 | V24: -0.08266381288 | W24: 0.4968391536 | X24: -0.5031608464 | Y24: -0.08266381288 | Z24: 0.5795029665 | AA24: 0.6036341025 | AJ24: 0 | AK24: -0.08266381288 | AZ24: -0.08266381288 | BA24: 0.4968391536 | BH24: =+$W24 -> 0.4968391536 | BI24: =+$X24 -> -0.5031608464 | BP24: -0.5031608464 | BQ24: 0.1004732562 | CF24: =-W33 -> 0.1004732562 | CG24: -0.0223362773 | CV24: =-Y33 -> -0.0223362773 | CW24: 0 | DD24: Span | DE24: e/L | DF24: X(1)/L1 | DG24: X(2)/L1 | DH24: X(3)/L1 | DI24: RA0 | DJ24: RA | DK24: RA-1 | DL24: RB0 | DM24: RB | DO24: RC0 | DP24: RC | DR24: lQB0 | DS24: lQB | DU24: rQB0 | DV24: rQB | DW24: rQB-1 | DY24: lQC0 | DZ24: lQC | EB24: SA0 | EC24: SA1 | ED24: SA2 | EE24: SA3 | EF24: SA | EH24: lSB0 | EI24: lSB1 | EJ24: lSB2 | EK24: lSB3 | EL24: lSB | EN24: rSB0 | EO24: rSB1 | EP24: rSB2 | EQ24: rSB3 | ER24: rSB | ET24: lSC0 | EU24: lSC1 | EV24: lSC2 | EW24: lSC3 | EX24: lSC
C25: 13 | D25: 0 | E25: -0.08290765685 | F25: -0.1658153137 | G25: -0.2487229706 | H25: -0.3316306274 | I25: -0.4145382843 | J25: -0.4974459411 | K25: -0.580353598 | L25: -0.6632612548 | M25: -0.6632612548 | N25: -0.1897378064 | O25: 0.2837856419 | P25: 0.7573090903 | Q25: 1.230832539 | R25: 1.704355987 | S25: 0.8291294354 | T25: -0.04609711628 | U25: -0.9213236679 | V25: -0.06632612548 | W25: 0.3510831869 | X25: -0.6489168131 | Y25: -0.06632612548 | Z25: 0.4174093124 | AA25: 0.7564614783 | AJ25: 0 | AK25: -0.06632612548 | AZ25: -0.06632612548 | BA25: 0.3510831869 | BJ25: =+$W25 -> 0.3510831869 | BK25: =+$X25 -> -0.6489168131 | BP25: -0.6489168131 | BQ25: 0.1075446653 | CF25: =-W32 -> 0.1075446653 | CG25: -0.02390832702 | CV25: =-Y32 -> -0.02390832702 | CW25: 0 | DC25: =+DE25 -> 0 | DD25: 1 | DE25: 0 | DF25: =-(DE25-DE25^3)/(4+3*Input!$B$1) -> 0 | DG25: =+(-DE25+DE25^3)/(4*(1+Input!$B$1)) -> 0 | DH25: =1/2/(4+3*Input!$B$1)*(DE25-DE25^3) -> 0 | DI25: =1-1*DE25 -> 1 | DJ25: =+DI25+DJ$20*$DF25+DJ$21*$DG25+DJ$22*$DH25 -> 1 | DK25: =+DJ25-1 -> 0 | DL25: =+DE25 -> 0 | DM25: =+DL25+DM$20*$DF25+DM$21*$DG25+DM$22*$DH25 -> 0 | DP25: =+DO25+DP$20*$DF25+DP$21*$DG25+DP$22*$DH25 -> 0 | DR25: =-$DE25 -> 0 | DS25: =+DR25+DS$20*$DF25+DS$21*$DG25+DS$22*$DH25 -> 0 | DV25: =+DU25+DV$20*$DF25+DV$21*$DG25+DV$22*$DH25 -> 0 | DZ25: =+DY25+DZ$20*$DF25+DZ$21*$DG25+DZ$22*$DH25 -> 0 | EB25: =-(1-DE25)*(1-(1-DE25)^2)/6 -> 0 | EC25: =+EC$20*$DF25 -> 0 | ED25: =+ED$20*$DG25 -> 0 | EE25: =+EE$20*$DH25 -> 0 | EF25: =+SUM(EB25:EE25) -> 0 | EH25: =+DE25*(1-DE25^2)/6 -> 0 | EI25: =+EI$20*$DF25 -> 0 | EJ25: =+EJ$20*$DG25 -> 0 | EK25: =+EK$20*$DH25 -> 0 | EL25: =+SUM(EH25:EK25) -> 0 | EO25: =+EO$20*$DF25 -> 0 | EP25: =+EP$20*$DG25 -> 0 | EQ25: =+EQ$20*$DH25 -> 0 | ER25: =+SUM(EN25:EQ25) -> 0 | EU25: =+EU$20*$DF25 -> 0 | EV25: =+EV$20*$DG25 -> 0 | EW25: =+EW$20*$DH25 -> 0 | EX25: =+SUM(ET25:EW25) -> 0 | FB25: 0 | FC25: =+IF($DE25<=FC$3,FC$5/FC$3*$DE25,FC$5-FC$5/(1-FC$3)*($DE25-FC$3)) -> 0 | FD25: 0 | FE25: 0 | FF25: 0 | FG25: 0 | FH25: 0 | FI25: 0 | FJ25: 0 | GA25: =+FB25+FB$6*$DF25+FB$7*$DG25+FB$8*$DH25 -> 0 | GB25: =+FC25+FC$6*$DF25+FC$7*$DG25+FC$8*$DH25 -> 0 | GC25: =+FD25+FD$6*$DF25+FD$7*$DG25+FD$8*$DH25 -> 0 | GD25: =+FE25+FE$6*$DF25+FE$7*$DG25+FE$8*$DH25 -> 0 | GE25: =+FF25+FF$6*$DF25+FF$7*$DG25+FF$8*$DH25 -> 0 | GF25: =+FG25+FG$6*$DF25+FG$7*$DG25+FG$8*$DH25 -> 0 | GG25: =+FH25+FH$6*$DF25+FH$7*$DG25+FH$8*$DH25 -> 0 | GH25: =+FI25+FI$6*$DF25+FI$7*$DG25+FI$8*$DH25 -> 0 | GI25: =+FJ25+FJ$6*$DF25+FJ$7*$DG25+FJ$8*$DH25 -> 0 | GJ25: =+FK25+FK$6*$DF25+FK$7*$DG25+FK$8*$DH25 -> 0 | GK25: =+FL25+FL$6*$DF25+FL$7*$DG25+FL$8*$DH25 -> 0 | GL25: =+FM25+FM$6*$DF25+FM$7*$DG25+FM$8*$DH25 -> 0 | GM25: =+FN25+FN$6*$DF25+FN$7*$DG25+FN$8*$DH25 -> 0 | GN25: =+FO25+FO$6*$DF25+FO$7*$DG25+FO$8*$DH25 -> 0 | GO25: =+FP25+FP$6*$DF25+FP$7*$DG25+FP$8*$DH25 -> 0 | GP25: =+FQ25+FQ$6*$DF25+FQ$7*$DG25+FQ$8*$DH25 -> 0 | GQ25: =+FR25+FR$6*$DF25+FR$7*$DG25+FR$8*$DH25 -> 0 | GR25: =+FS25+FS$6*$DF25+FS$7*$DG25+FS$8*$DH25 -> 0 | HA25: =+GA25*10 -> 0 | HB25: =+GB25*10 -> 0 | HC25: =+GC25*10 -> 0 | HD25: =+GD25*10 -> 0 | HE25: =+GE25*10 -> 0 | HF25: =+GF25*10 -> 0 | HG25: =+GG25*10 -> 0 | HH25: =+GH25*10 -> 0 | HI25: =+GI25*10 -> 0 | HJ25: =+GJ25*10 -> 0 | HK25: =+GK25*10 -> 0 | HL25: =+GL25*10 -> 0 | HM25: =+GM25*10 -> 0 | HN25: =+GN25*10 -> 0 | HO25: =+GO25*10 -> 0 | HP25: 0 | HQ25: 0 | HR25: 0 | ID25: =+IF($DE25<=FB$3,1/6*(1-FB$3)*$DE25*(1-(1-FB$3)^2-$DE25^2),1/6*FB$3*(1-$DE25)*(1-FB$3^2-(1-$DE25)^2)) -> 0 | IE25: =+IF($DE25<=FC$3,1/6*(1-FC$3)*$DE25*(1-(1-FC$3)^2-$DE25^2),1/6*FC$3*(1-$DE25)*(1-FC$3^2-(1-$DE25)^2)) -> 0 | IF25: =+IF($DE25<=FD$3,1/6*(1-FD$3)*$DE25*(1-(1-FD$3)^2-$DE25^2),1/6*FD$3*(1-$DE25)*(1-FD$3^2-(1-$DE25)^2)) -> 0 | IG25: =+IF($DE25<=FE$3,1/6*(1-FE$3)*$DE25*(1-(1-FE$3)^2-$DE25^2),1/6*FE$3*(1-$DE25)*(1-FE$3^2-(1-$DE25)^2)) -> 0 | IH25: =+IF($DE25<=FF$3,1/6*(1-FF$3)*$DE25*(1-(1-FF$3)^2-$DE25^2),1/6*FF$3*(1-$DE25)*(1-FF$3^2-(1-$DE25)^2)) -> 0 | II25: =+IF($DE25<=FG$3,1/6*(1-FG$3)*$DE25*(1-(1-FG$3)^2-$DE25^2),1/6*FG$3*(1-$DE25)*(1-FG$3^2-(1-$DE25)^2)) -> 0 | IJ25: =+IF($DE25<=FH$3,1/6*(1-FH$3)*$DE25*(1-(1-FH$3)^2-$DE25^2),1/6*FH$3*(1-$DE25)*(1-FH$3^2-(1-$DE25)^2)) -> 0 | IK25: =+IF($DE25<=FI$3,1/6*(1-FI$3)*$DE25*(1-(1-FI$3)^2-$DE25^2),1/6*FI$3*(1-$DE25)*(1-FI$3^2-(1-$DE25)^2)) -> 0 | IL25: =+IF($DE25<=FJ$3,1/6*(1-FJ$3)*$DE25*(1-(1-FJ$3)^2-$DE25^2),1/6*FJ$3*(1-$DE25)*(1-FJ$3^2-(1-$DE25)^2)) -> 0 | JH25: =+ID25+FB$11*$DF25+FB$12*$DG25+FB$13*$DH25 -> 0 | JI25: =+IE25+FC$11*$DF25+FC$12*$DG25+FC$13*$DH25 -> 0 | JJ25: =+IF25+FD$11*$DF25+FD$12*$DG25+FD$13*$DH25 -> 0 | JK25: =+IG25+FE$11*$DF25+FE$12*$DG25+FE$13*$DH25 -> 0 | JL25: =+IH25+FF$11*$DF25+FF$12*$DG25+FF$13*$DH25 -> 0 | JM25: =+II25+FG$11*$DF25+FG$12*$DG25+FG$13*$DH25 -> 0 | JN25: =+IJ25+FH$11*$DF25+FH$12*$DG25+FH$13*$DH25 -> 0 | JO25: =+IK25+FI$11*$DF25+FI$12*$DG25+FI$13*$DH25 -> 0 | JP25: =+IL25+FJ$11*$DF25+FJ$12*$DG25+FJ$13*$DH25 -> 0 | JQ25: =+IM25+FK$11*$DF25+FK$12*$DG25+FK$13*$DH25 -> 0 | JR25: =+IN25+FL$11*$DF25+FL$12*$DG25+FL$13*$DH25 -> 0 | JS25: =+IO25+FM$11*$DF25+FM$12*$DG25+FM$13*$DH25 -> 0 | JT25: =+IP25+FN$11*$DF25+FN$12*$DG25+FN$13*$DH25 -> 0 | JU25: =+IQ25+FO$11*$DF25+FO$12*$DG25+FO$13*$DH25 -> 0 | JV25: =+IR25+FP$11*$DF25+FP$12*$DG25+FP$13*$DH25 -> 0 | JW25: =+IS25+FQ$11*$DF25+FQ$12*$DG25+FQ$13*$DH25 -> 0 | JX25: =+IT25+FR$11*$DF25+FR$12*$DG25+FR$13*$DH25 -> 0 | JY25: =+IU25+FS$11*$DF25+FS$12*$DG25+FS$13*$DH25 -> 0 | KF25: =+JH25*100 -> 0 | KG25: =+JI25*100 -> 0 | KH25: =+JJ25*100 -> 0 | KI25: =+JK25*100 -> 0 | KJ25: =+JL25*100 -> 0 | KK25: =+JM25*100 -> 0 | KL25: =+JN25*100 -> 0 | KM25: =+JO25*100 -> 0 | KN25: =+JP25*100 -> 0 | KO25: =+JQ25*100 -> 0 | KP25: =+JR25*100 -> 0 | KQ25: =+JS25*100 -> 0 | KR25: =+JT25*100 -> 0 | KS25: =+JU25*100 -> 0 | KT25: =+JV25*100 -> 0 | KU25: =+JW25*100 -> 0 | KV25: =+JX25*100 -> 0 | KW25: =+JY25*100 -> 0
C26: 14 | D26: 0 | E26: -0.05515492638 | F26: -0.1103098528 | G26: -0.1654647791 | H26: -0.2206197055 | I26: -0.2757746319 | J26: -0.3309295583 | K26: -0.3860844847 | L26: -0.4412394111 | M26: -0.4412394111 | N26: -0.152467 | O26: 0.136305411 | P26: 0.425077822 | Q26: 0.713850233 | R26: 1.002622644 | S26: 1.291395055 | T26: 0.2314174661 | U26: -0.8285601229 | V26: -0.04412394111 | W26: 0.2141037338 | X26: -0.7858962662 | Y26: -0.04412394111 | Z26: 0.2582276749 | AA26: 0.8826127884 | AJ26: 0 | AK26: -0.04412394111 | AZ26: -0.04412394111 | BA26: 0.2141037338 | BL26: =+$W26 -> 0.2141037338 | BM26: =+$X26 -> -0.7858962662 | BP26: -0.7858962662 | BQ26: 0.09671652229 | CF26: =-W31 -> 0.09671652229 | CG26: -0.02150111526 | CV26: =-Y31 -> -0.02150111526 | CW26: 0 | DC26: =+DC25+1 -> 1 | DE26: =+DE25+1/8 -> 0.125 | DF26: =-(DE26-DE26^3)/(4+3*Input!$B$1) -> -0.01700246995 | DG26: =+(-DE26+DE26^3)/(4*(1+Input!$B$1)) -> -0.01479640152 | DH26: =1/2/(4+3*Input!$B$1)*(DE26-DE26^3) -> 0.008501234973 | DI26: 0.875 | DJ26: 0.8432011285 | DK26: -0.1567988715 | DL26: 0.125 | DM26: 0.1941483677 | DP26: -0.04727285435 | DR26: -0.125 | DS26: -0.1567988715 | DV26: 0.03734949623 | DZ26: 0.03734949623 | EB26: -0.0341796875 | EC26: 0.002833744991 | ED26: 0.002466066919 | EE26: 0 | EF26: -0.02887987559 | EH26: 0.0205078125 | EI26: -0.005667489982 | EJ26: -0.004932133838 | EK26: 0 | EL26: 0.00990818868 | EO26: 0.006115221691 | EP26: 0.005321772412 | EQ26: -0.001528805423 | ER26: 0.00990818868 | EU26: -0.003057610845 | EV26: -0.002660886206 | EW26: 0.003057610845 | EX26: =+SUM(ET26:EW26) -> -0.002660886206 | FB26: 0 | FC26: 0.109375 | FD26: 0.09375 | FE26: 0.078125 | FF26: 0.0625 | FG26: 0.046875 | FH26: 0.03125 | FI26: 0.015625 | FJ26: 0 | GA26: 0 | GB26: 0.1054001411 | GC26: 0.08580028213 | GD26: 0.0662004232 | GE26: 0.04660056427 | GF26: 0.02700070534 | GG26: 0.007400846404 | GH26: -0.01219901253 | GI26: -0.03179887146 | GJ26: -0.03179887146 | GK26: -0.02676135816 | GL26: -0.02172384485 | GM26: -0.01668633155 | GN26: -0.01164881824 | GO26: -0.00661130494 | GP26: -0.001573791636 | GQ26: 0.003463721669 | GR26: 0.008501234973 | HA26: 0 | HB26: 1.054001411 | HC26: 0.8580028213 | HD26: 0.662004232 | HE26: 0.4660056427 | HF26: 0.2700070534 | HG26: 0.07400846404 | HH26: -0.1219901253 | HI26: -0.3179887146 | HJ26: -0.3179887146 | HK26: -0.2676135816 | HL26: -0.2172384485 | HM26: -0.1668633155 | HN26: -0.1164881824 | HO26: =+GO26*10 -> -0.0661130494 | HP26: =+GP26*10 -> -0.01573791636 | HQ26: =+GQ26*10 -> 0.03463721669 | HR26: =+GR26*10 -> 0.08501234973 | ID26: 0 | IE26: 0.003987630208 | IF26: 0.006591796875 | IG26: 0.007731119792 | IH26: 0.007649739583 | II26: 0.006591796875 | IJ26: 0.004801432292 | IK26: 0.002522786458 | IL26: 0 | JH26: 0 | JI26: 0.003335504915 | JJ26: 0.005349653459 | JK26: 0.006023172594 | JL26: 0.005662310117 | JM26: 0.004573313823 | JN26: 0.003062431509 | JO26: 0.001435910969 | JP26: 0 | JQ26: 0 | JR26: -0.001062409213 | JS26: -0.001637995452 | JT26: -0.001818397458 | JU26: -0.001695253975 | JV26: -0.001360203745 | JW26: -0.0009048855109 | JX26: -0.000420938015 | JY26: 0 | KF26: 0 | KG26: 0.3335504915 | KH26: 0.5349653459 | KI26: 0.6023172594 | KJ26: 0.5662310117 | KK26: 0.4573313823 | KL26: 0.3062431509 | KM26: 0.1435910969 | KN26: 0 | KO26: 0 | KP26: -0.1062409213 | KQ26: -0.1637995452 | KR26: -0.1818397458 | KS26: -0.1695253975 | KT26: -0.1360203745 | KU26: -0.09048855109 | KV26: -0.0420938015 | KW26: 0
C27: 15 | D27: 0 | E27: -0.02565717425 | F27: -0.0513143485 | G27: -0.07697152274 | H27: -0.102628697 | I27: -0.1282858712 | J27: -0.1539430455 | K27: -0.1796002197 | L27: -0.205257394 | M27: -0.205257394 | N27: -0.0780942737 | O27: 0.04906884659 | P27: 0.1762319669 | Q27: 0.3033950872 | R27: 0.4305582075 | S27: 0.5577213277 | T27: 0.684884448 | U27: -0.5367024317 | V27: -0.0205257394 | W27: 0.09428220225 | X27: -0.9057177977 | Y27: -0.0205257394 | Z27: 0.1148079417 | AA27: 0.96836623 | AJ27: 0 | AK27: -0.0205257394 | AZ27: -0.0205257394 | BA27: 0.09428220225 | BN27: =+$W27 -> 0.09428220225 | BO27: =+$X27 -> -0.9057177977 | BP27: -0.9057177977 | BQ27: 0.06264843222 | CF27: =-W30 -> 0.06264843222 | CG27: -0.01392741519 | CV27: =-Y30 -> -0.01392741519 | CW27: 0 | DC27: 2 | DE27: 0.25 | DF27: =-(DE27-DE27^3)/(4+3*Input!$B$1) -> -0.03238565704 | DG27: =+(-DE27+DE27^3)/(4*(1+Input!$B$1)) -> -0.02818362193 | DH27: =1/2/(4+3*Input!$B$1)*(DE27-DE27^3) -> 0.01619282852 | DI27: 0.75 | DJ27: 0.689430721 | DK27: -0.310569279 | DL27: 0.25 | DM27: 0.3817111766 | DP27: -0.09004353209 | DR27: -0.25 | DS27: -0.310569279 | DV27: 0.07114189758 | DZ27: 0.07114189758 | EB27: -0.0546875 | EC27: 0.005397609507 | ED27: 0.004697270322 | EE27: 0 | EF27: -0.04459262017 | EH27: 0.0390625 | EI27: -0.01079521901 | EJ27: -0.009394540645 | EK27: 0 | EL27: 0.01887274034 | EO27: 0.01164804132 | EP27: 0.01013670936 | EQ27: -0.002912010329 | ER27: 0.01887274034 | EU27: -0.005824020658 | EV27: -0.005068354678 | EW27: 0.005824020658 | EX27: -0.005068354678 | FB27: 0 | FC27: 0.09375 | FD27: 0.1875 | FE27: 0.15625 | FF27: 0.125 | FG27: 0.09375 | FH27: 0.0625 | FI27: 0.03125 | FJ27: 0 | GA27: 0 | GB27: 0.08617884013 | GC27: 0.1723576803 | GD27: 0.1335365204 | GE27: 0.09471536051 | GF27: 0.05589420064 | GG27: 0.01707304077 | GH27: -0.0217481191 | GI27: -0.06056927897 | GJ27: -0.06056927897 | GK27: -0.05097401554 | GL27: -0.0413787521 | GM27: -0.03178348866 | GN27: -0.02218822523 | GO27: -0.01259296179 | GP27: -0.002997698353 | GQ27: 0.006597565083 | GR27: 0.01619282852 | HA27: 0 | HB27: 0.8617884013 | HC27: 1.723576803 | HD27: 1.335365204 | HE27: 0.9471536051 | HF27: 0.5589420064 | HG27: 0.1707304077 | HH27: -0.217481191 | HI27: -0.6056927897 | HJ27: -0.6056927897 | HK27: -0.5097401554 | HL27: -0.413787521 | HM27: -0.3178348866 | HN27: -0.2218822523 | HO27: -0.1259296179 | HP27: -0.02997698353 | HQ27: 0.06597565083 | HR27: 0.1619282852 | ID27: 0 | IE27: 0.006591796875 | IF27: 0.01171875 | IG27: 0.01424153646 | IH27: 0.01432291667 | II27: 0.01245117188 | IJ27: 0.009114583333 | IK27: 0.004801432292 | IL27: 0 | JH27: 0 | JI27: 0.005349653459 | JJ27: 0.00935276254 | JK27: 0.0109883037 | JL27: 0.01053733673 | JM27: 0.008606442253 | JN27: 0.005802200889 | JO27: 0.002731193264 | JP27: 0 | JQ27: 0 | JR27: -0.002023636597 | JS27: -0.003119991337 | JT27: -0.003463614206 | JU27: -0.003229055191 | JV27: -0.002590864277 | JW27: -0.001723591449 | JX27: -0.0008017866953 | JY27: 0 | KF27: 0 | KG27: 0.5349653459 | KH27: 0.935276254 | KI27: 1.09883037 | KJ27: 1.053733673 | KK27: 0.8606442253 | KL27: 0.5802200889 | KM27: 0.2731193264 | KN27: 0 | KO27: 0 | KP27: -0.2023636597 | KQ27: -0.3119991337 | KR27: -0.3463614206 | KS27: -0.3229055191 | KT27: -0.2590864277 | KU27: -0.1723591449 | KV27: -0.08017866953 | KW27: 0
C28: 16 | D28: 0 | E28: 0 | F28: 0 | G28: 0 | H28: 0 | I28: 0 | J28: 0 | K28: 0 | L28: 0 | M28: 0 | N28: 0 | O28: 0 | P28: 0 | Q28: 0 | R28: 0 | S28: 0 | T28: 0 | U28: 0 | V28: 0 | W28: 0 | X28: -1 | Y28: 0 | Z28: 0 | AA28: 1 | DC28: 3 | DE28: 0.375 | DF28: =-(DE28-DE28^3)/(4+3*Input!$B$1) -> -0.04453027843 | DG28: =+(-DE28+DE28^3)/(4*(1+Input!$B$1)) -> -0.03875248016 | DH28: =1/2/(4+3*Input!$B$1)*(DE28-DE28^3) -> 0.02226513922 | DI28: 0.625 | DJ28: 0.5417172414 | DK28: -0.4582827586 | DL28: 0.375 | DM28: 0.5561028678 | DP28: -0.1238098566 | DR28: -0.375 | DS28: -0.4582827586 | DV28: 0.09782010918 | DZ28: 0.09782010918 | EB28: -0.0634765625 | EC28: 0.007421713072 | ED28: 0.006458746693 | EE28: 0 | EF28: -0.04959610274 | EH28: 0.0537109375 | EI28: -0.01484342614 | EJ28: -0.01291749339 | EK28: 0 | EL28: 0.02595001797 | EO28: 0.01601605681 | EP28: 0.01393797536 | EQ28: -0.004004014202 | ER28: 0.02595001797 | EU28: -0.008008028404 | EV28: -0.006968987682 | EW28: 0.008008028404 | EX28: -0.006968987682 | FB28: 0 | FC28: 0.078125 | FD28: 0.15625 | FE28: 0.234375 | FF28: 0.1875 | FG28: 0.140625 | FH28: 0.09375 | FI28: 0.046875 | FJ28: 0 | GA28: 0 | GB28: 0.06771465518 | GC28: 0.1354293104 | GD28: 0.2031439655 | GE28: 0.1458586207 | GF28: 0.08857327588 | GG28: 0.03128793106 | GH28: -0.02599741377 | GI28: -0.08328275859 | GJ28: -0.08328275859 | GK28: -0.07008927136 | GL28: -0.05689578414 | GM28: -0.04370229691 | GN28: -0.03050880969 | GO28: -0.01731532246 | GP28: -0.004121835236 | GQ28: 0.00907165199 | GR28: 0.02226513922 | HA28: 0 | HB28: 0.6771465518 | HC28: 1.354293104 | HD28: 2.031439655 | HE28: 1.458586207 | HF28: 0.8857327588 | HG28: 0.3128793106 | HH28: -0.2599741377 | HI28: -0.8328275859 | HJ28: -0.8328275859 | HK28: -0.7008927136 | HL28: -0.5689578414 | HM28: -0.4370229691 | HN28: -0.3050880969 | HO28: -0.1731532246 | HP28: -0.04121835236 | HQ28: 0.0907165199 | HR28: 0.2226513922 | ID28: 0 | IE28: 0.007731119792 | IF28: 0.01424153646 | IG28: 0.01831054688 | IH28: 0.01904296875 | II28: 0.01684570312 | IJ28: 0.01245117188 | IK28: 0.006591796875 | IL28: 0 | JH28: 0 | JI28: 0.006023172594 | JJ28: 0.0109883037 | JK28: 0.01383735183 | JL28: 0.01383779634 | JM28: 0.01155919989 | JN28: 0.007896646015 | JO28: 0.003745218212 | JP28: 0 | JQ28: 0 | JR28: -0.00278250032 | JS28: -0.004289988088 | JT28: -0.004762469533 | JU28: -0.004439950887 | JV28: -0.00356243838 | JW28: -0.002369938243 | JX28: -0.001102456706 | JY28: 0 | KF28: 0 | KG28: 0.6023172594 | KH28: 1.09883037 | KI28: 1.383735183 | KJ28: 1.383779634 | KK28: 1.155919989 | KL28: 0.7896646015 | KM28: 0.3745218212 | KN28: 0 | KO28: 0 | KP28: -0.278250032 | KQ28: -0.4289988088 | KR28: -0.4762469533 | KS28: -0.4439950887 | KT28: -0.356243838 | KU28: -0.2369938243 | KV28: -0.1102456706 | KW28: 0
C29: =+C28 -> 16 | D29: 0 | E29: 0 | F29: 0 | G29: 0 | H29: 0 | I29: 0 | J29: 0 | K29: 0 | L29: 0 | M29: 0 | N29: 0 | O29: 0 | P29: 0 | Q29: 0 | R29: 0 | S29: 0 | T29: 0 | U29: 0 | V29: 0 | W29: 0 | X29: 0 | Y29: 0 | Z29: 0 | AA29: 1 | DC29: 4 | DE29: 0.5 | DF29: =-(DE29-DE29^3)/(4+3*Input!$B$1) -> -0.05181705126 | DG29: =+(-DE29+DE29^3)/(4*(1+Input!$B$1)) -> -0.04509379509 | DH29: =1/2/(4+3*Input!$B$1)*(DE29-DE29^3) -> 0.02590852563 | DI29: 0.5 | DJ29: 0.4030891536 | DK29: -0.5969108464 | DL29: 0.5 | DM29: 0.7107378825 | DP29: -0.1440696513 | DR29: -0.5 | DS29: -0.5969108464 | DV29: 0.1138270361 | DZ29: 0.1138270361 | EB29: -0.0625 | EC29: 0.008636175211 | ED29: 0.007515632516 | EE29: 0 | EF29: -0.04634819227 | EH29: 0.0625 | EI29: -0.01727235042 | EJ29: -0.01503126503 | EK29: 0 | EL29: 0.03019638455 | EO29: 0.0186368661 | EP29: 0.01621873497 | EQ29: -0.004659216526 | ER29: 0.03019638455 | EU29: -0.009318433052 | EV29: -0.008109367484 | EW29: 0.009318433052 | EX29: -0.008109367484 | FB29: 0 | FC29: 0.0625 | FD29: 0.125 | FE29: 0.1875 | FF29: 0.25 | FG29: 0.1875 | FH29: 0.125 | FI29: 0.0625 | FJ29: 0 | GA29: 0 | GB29: 0.05038614421 | GC29: 0.1007722884 | GD29: 0.1511584326 | GE29: 0.2015445768 | GF29: 0.126930721 | GG29: 0.05231686523 | GH29: -0.02229699056 | GI29: -0.09691084636 | GJ29: -0.09691084636 | GK29: -0.08155842486 | GL29: -0.06620600336 | GM29: -0.05085358186 | GN29: -0.03550116036 | GO29: -0.02014873886 | GP29: -0.004796317365 | GQ29: 0.01055610413 | GR29: 0.02590852563 | HA29: 0 | HB29: 0.5038614421 | HC29: 1.007722884 | HD29: 1.511584326 | HE29: 2.015445768 | HF29: 1.26930721 | HG29: 0.5231686523 | HH29: -0.2229699056 | HI29: -0.9691084636 | HJ29: -0.9691084636 | HK29: -0.8155842486 | HL29: -0.6620600336 | HM29: -0.5085358186 | HN29: -0.3550116036 | HO29: -0.2014873886 | HP29: -0.04796317365 | HQ29: 0.1055610413 | HR29: 0.2590852563 | ID29: 0 | IE29: 0.007649739583 | IF29: 0.01432291667 | IG29: 0.01904296875 | IH29: 0.02083333333 | II29: 0.01904296875 | IJ29: 0.01432291667 | IK29: 0.007649739583 | IL29: 0 | JH29: 0 | JI29: 0.005662310117 | JJ29: 0.01053733673 | JK29: 0.01383779634 | JL29: 0.01477640544 | JM29: 0.01289140135 | JN29: 0.009023104756 | JO29: 0.004337357139 | JP29: 0 | JQ29: 0 | JR29: -0.003237818555 | JS29: -0.004991986139 | JT29: -0.00554178273 | JU29: -0.005166488305 | JV29: -0.004145382843 | JW29: -0.002757746319 | JX29: -0.001282858712 | JY29: 0 | KF29: 0 | KG29: 0.5662310117 | KH29: 1.053733673 | KI29: 1.383779634 | KJ29: 1.477640544 | KK29: 1.289140135 | KL29: 0.9023104756 | KM29: 0.4337357139 | KN29: 0 | KO29: 0 | KP29: -0.3237818555 | KQ29: -0.4991986139 | KR29: -0.554178273 | KS29: -0.5166488305 | KT29: -0.4145382843 | KU29: -0.2757746319 | KV29: -0.1282858712 | KW29: 0
C30: =+C29+1 -> 17 | D30: 0 | E30: 0.01740926899 | F30: 0.03481853799 | G30: 0.05222780698 | H30: 0.06963707597 | I30: 0.08704634496 | J30: 0.104455614 | K30: 0.121864883 | L30: 0.1392741519 | M30: 0.1392741519 | N30: 0.05477707899 | O30: -0.02971999396 | P30: -0.1142170669 | Q30: -0.1987141399 | R30: -0.2832112128 | S30: -0.3677082858 | T30: -0.4522053587 | U30: -0.5367024317 | V30: 0.01392741519 | W30: -0.06264843222 | X30: -0.06264843222 | Y30: 0.01392741519 | Z30: -0.07657584741 | AA30: 0.96836623 | AJ30: 0 | AK30: =+$Y30 -> 0.01392741519 | AZ30: =+$Y30 -> 0.01392741519 | BA30: =+$W30 -> -0.06264843222 | BP30: =+$W30 -> -0.06264843222 | BQ30: =+$X27 -> -0.9057177977 | BR30: =+$X27 -> -0.9057177977 | BS30: =-$W27 -> -0.09428220225 | CF30: =-$W27 -> -0.09428220225 | CG30: =+CV30 -> 0.0205257394 | CV30: =-Y27 -> 0.0205257394 | CW30: 0 | DC30: 5 | DE30: 0.625 | DF30: =-(DE30-DE30^3)/(4+3*Input!$B$1) -> -0.05262669269 | DG30: =+(-DE30+DE30^3)/(4*(1+Input!$B$1)) -> -0.04579838564 | DH30: =1/2/(4+3*Input!$B$1)*(DE30-DE30^3) -> 0.02631334635 | DI30: 0.375 | DJ30: 0.2765749217 | DK30: -0.7234250783 | DL30: 0.625 | DM30: 0.8390306619 | DP30: -0.1463207396 | DR30: -0.625 | DS30: -0.7234250783 | DV30: 0.1156055836 | DZ30: 0.1156055836 | EB30: -0.0537109375 | EC30: 0.008771115448 | ED30: 0.007633064274 | EE30: 0 | EF30: -0.03730675778 | EH30: 0.0634765625 | EI30: -0.0175422309 | EJ30: -0.01526612855 | EK30: 0 | EL30: 0.03066820306 | EO30: 0.01892806714 | EP30: 0.0164721527 | EQ30: -0.004732016784 | ER30: 0.03066820306 | EU30: -0.009464033569 | EV30: -0.008236076351 | EW30: 0.009464033569 | EX30: -0.008236076351 | FB30: 0 | FC30: 0.046875 | FD30: 0.09375 | FE30: 0.140625 | FF30: 0.1875 | FG30: 0.234375 | FH30: 0.15625 | FI30: 0.078125 | FJ30: 0 | GA30: 0 | GB30: 0.03457186521 | GC30: 0.06914373042 | GD30: 0.1037155956 | GE30: 0.1382874608 | GF30: 0.172859326 | GG30: 0.08243119125 | GH30: -0.007996943541 | GI30: -0.09842507833 | GJ30: -0.09842507833 | GK30: -0.08283277525 | GL30: -0.06724047216 | GM30: -0.05164816908 | GN30: -0.03605586599 | GO30: -0.02046356291 | GP30: -0.004871259824 | GQ30: 0.01072104326 | GR30: 0.02631334635 | HA30: 0 | HB30: 0.3457186521 | HC30: 0.6914373042 | HD30: 1.037155956 | HE30: 1.382874608 | HF30: 1.72859326 | HG30: 0.8243119125 | HH30: -0.07996943541 | HI30: -0.9842507833 | HJ30: -0.9842507833 | HK30: -0.8283277525 | HL30: -0.6724047216 | HM30: -0.5164816908 | HN30: -0.3605586599 | HO30: -0.2046356291 | HP30: -0.04871259824 | HQ30: 0.1072104326 | HR30: 0.2631334635 | ID30: 0 | IE30: 0.006591796875 | IF30: 0.01245117188 | IG30: 0.01684570312 | IH30: 0.01904296875 | II30: 0.01831054688 | IJ30: 0.01424153646 | IK30: 0.007731119792 | IL30: 0 | JH30: 0 | JI30: 0.004573313823 | JJ30: 0.008606442253 | JK30: 0.01155919989 | JL30: 0.01289140135 | JM30: 0.01206286124 | JN30: 0.008858914987 | JO30: 0.004366981372 | JP30: 0 | JQ30: 0 | JR30: -0.00328840947 | JS30: -0.005069985922 | JT30: -0.005628373085 | JU30: -0.005247214685 | JV30: -0.004210154449 | JW30: -0.002800836105 | JX30: -0.00130290338 | JY30: 0 | KF30: 0 | KG30: 0.4573313823 | KH30: 0.8606442253 | KI30: 1.155919989 | KJ30: 1.289140135 | KK30: 1.206286124 | KL30: 0.8858914987 | KM30: 0.4366981372 | KN30: 0 | KO30: 0 | KP30: -0.328840947 | KQ30: -0.5069985922 | KR30: -0.5628373085 | KS30: -0.5247214685 | KT30: -0.4210154449 | KU30: -0.2800836105 | KV30: -0.130290338 | KW30: 0
C31: 18 | D31: 0 | E31: 0.02687639408 | F31: 0.05375278816 | G31: 0.08062918223 | H31: 0.1075055763 | I31: 0.1343819704 | J31: 0.1612583645 | K31: 0.1881347585 | L31: 0.2150111526 | M31: 0.2150111526 | N31: 0.08456474318 | O31: -0.04588166626 | P31: -0.1763280757 | Q31: -0.3067744851 | R31: -0.4372208946 | S31: -0.567667304 | T31: -0.6981137135 | U31: -0.8285601229 | V31: 0.02150111526 | W31: -0.09671652229 | X31: -0.09671652229 | Y31: 0.02150111526 | Z31: -0.1182176376 | AA31: 0.8826127884 | AJ31: 0 | AK31: 0.02150111526 | AZ31: 0.02150111526 | BA31: -0.09671652229 | BP31: -0.09671652229 | BQ31: =+$X26 -> -0.7858962662 | BT31: =+$X26 -> -0.7858962662 | BU31: =-$W26 -> -0.2141037338 | CF31: =-$W26 -> -0.2141037338 | CG31: 0.04412394111 | CV31: =-Y26 -> 0.04412394111 | CW31: 0 | DC31: 6 | DE31: 0.75 | DF31: =-(DE31-DE31^3)/(4+3*Input!$B$1) -> -0.04533991986 | DG31: =+(-DE31+DE31^3)/(4*(1+Input!$B$1)) -> -0.03945707071 | DH31: =1/2/(4+3*Input!$B$1)*(DE31-DE31^3) -> 0.02266995993 | DI31: 0.25 | DJ31: 0.1652030094 | DK31: -0.8347969906 | DL31: 0.75 | DM31: 0.9343956472 | DP31: -0.1260609449 | DR31: -0.75 | DS31: -0.8347969906 | DV31: 0.09959865662 | DZ31: 0.09959865662 | EB31: -0.0390625 | EC31: 0.007556653309 | ED31: 0.006576178451 | EE31: 0 | EF31: -0.02492966824 | EH31: 0.0546875 | EI31: -0.01511330662 | EJ31: -0.0131523569 | EK31: 0 | EL31: 0.02642183648 | EO31: 0.01630725784 | EP31: 0.0141913931 | EQ31: -0.00407681446 | ER31: 0.02642183648 | EU31: -0.008153628921 | EV31: -0.007095696549 | EW31: 0.008153628921 | EX31: -0.007095696549 | FB31: 0 | FC31: 0.03125 | FD31: 0.0625 | FE31: 0.09375 | FF31: 0.125 | FG31: 0.15625 | FH31: 0.1875 | FI31: 0.09375 | FJ31: 0 | GA31: 0 | GB31: 0.02065037618 | GC31: 0.04130075236 | GD31: 0.06195112854 | GE31: 0.08260150472 | GF31: 0.1032518809 | GG31: 0.1239022571 | GH31: 0.01955263326 | GI31: -0.08479699056 | GJ31: -0.08479699056 | GK31: -0.07136362175 | GL31: -0.05793025294 | GM31: -0.04449688413 | GN31: -0.03106351532 | GO31: -0.01763014651 | GP31: -0.004196777695 | GQ31: 0.009236591117 | GR31: 0.02266995993 | HA31: 0 | HB31: 0.2065037618 | HC31: 0.4130075236 | HD31: 0.6195112854 | HE31: 0.8260150472 | HF31: 1.032518809 | HG31: 1.239022571 | HH31: 0.1955263326 | HI31: -0.8479699056 | HJ31: -0.8479699056 | HK31: -0.7136362175 | HL31: -0.5793025294 | HM31: -0.4449688413 | HN31: -0.3106351532 | HO31: -0.1763014651 | HP31: -0.04196777695 | HQ31: 0.09236591117 | HR31: 0.2266995993 | ID31: 0 | IE31: 0.004801432292 | IF31: 0.009114583333 | IG31: 0.01245117188 | IH31: 0.01432291667 | II31: 0.01424153646 | IJ31: 0.01171875 | IK31: 0.006591796875 | IL31: 0 | JH31: 0 | JI31: 0.003062431509 | JJ31: 0.005802200889 | JK31: 0.007896646015 | JL31: 0.009023104756 | JM31: 0.008858914987 | JN31: 0.007081414579 | JO31: 0.003693462237 | JP31: 0 | JQ31: 0 | JR31: -0.002833091235 | JS31: -0.004367987871 | JT31: -0.004849059889 | JU31: -0.004520677267 | JV31: -0.003627209987 | JW31: -0.002413028029 | JX31: -0.001122501373 | JY31: 0 | KF31: 0 | KG31: 0.3062431509 | KH31: 0.5802200889 | KI31: 0.7896646015 | KJ31: 0.9023104756 | KK31: 0.8858914987 | KL31: 0.7081414579 | KM31: 0.3693462237 | KN31: 0 | KO31: 0 | KP31: -0.2833091235 | KQ31: -0.4367987871 | KR31: -0.4849059889 | KS31: -0.4520677267 | KT31: -0.3627209987 | KU31: -0.2413028029 | KV31: -0.1122501373 | KW31: 0
C32: 19 | D32: 0 | E32: 0.02988540878 | F32: 0.05977081756 | G32: 0.08965622634 | H32: 0.1195416351 | I32: 0.1494270439 | J32: 0.1793124527 | K32: 0.2091978615 | L32: 0.2390832702 | M32: 0.2390832702 | N32: 0.09403240298 | O32: -0.0510184643 | P32: -0.1960693316 | Q32: -0.3411201988 | R32: -0.4861710661 | S32: -0.6312219334 | T32: -0.7762728007 | U32: -0.9213236679 | V32: 0.02390832702 | W32: -0.1075446653 | X32: -0.1075446653 | Y32: 0.02390832702 | Z32: -0.1314529923 | AA32: 0.7564614783 | AJ32: 0 | AK32: 0.02390832702 | AZ32: 0.02390832702 | BA32: -0.1075446653 | BP32: -0.1075446653 | BQ32: =+$X25 -> -0.6489168131 | BV32: =+$X25 -> -0.6489168131 | BW32: =-$W25 -> -0.3510831869 | CF32: =-$W25 -> -0.3510831869 | CG32: 0.06632612548 | CV32: =-Y25 -> 0.06632612548 | CW32: 0 | DC32: 7 | DE32: 0.875 | DF32: =-(DE32-DE32^3)/(4+3*Input!$B$1) -> -0.02833744991 | DG32: =+(-DE32+DE32^3)/(4*(1+Input!$B$1)) -> -0.02466066919 | DH32: =1/2/(4+3*Input!$B$1)*(DE32-DE32^3) -> 0.01416872496 | DI32: 0.125 | DJ32: 0.0720018809 | DK32: -0.9279981191 | DL32: 0.875 | DM32: 0.9902472795 | DP32: -0.07878809058 | DR32: -0.875 | DS32: -0.9279981191 | DV32: 0.06224916039 | DZ32: 0.06224916039 | EB32: -0.0205078125 | EC32: 0.004722908318 | ED32: 0.004110111532 | EE32: 0 | EF32: -0.01167479265 | EH32: 0.0341796875 | EI32: -0.009445816637 | EJ32: -0.008220223064 | EK32: 0 | EL32: 0.0165136478 | EO32: 0.01019203615 | EP32: 0.008869620686 | EQ32: -0.002548009038 | ER32: 0.0165136478 | EU32: -0.005096018076 | EV32: -0.004434810343 | EW32: 0.005096018076 | EX32: -0.004434810343 | FB32: 0 | FC32: 0.015625 | FD32: 0.03125 | FE32: 0.046875 | FF32: 0.0625 | FG32: 0.078125 | FH32: 0.09375 | FI32: 0.109375 | FJ32: 0 | GA32: 0 | GB32: 0.009000235112 | GC32: 0.01800047022 | GD32: 0.02700070534 | GE32: 0.03600094045 | GF32: 0.04500117556 | GG32: 0.05400141067 | GH32: 0.06300164579 | GI32: -0.0529981191 | GJ32: -0.0529981191 | GK32: -0.04460226359 | GL32: -0.03620640809 | GM32: -0.02781055258 | GN32: -0.01941469707 | GO32: -0.01101884157 | GP32: -0.002622986059 | GQ32: 0.005772869448 | GR32: 0.01416872496 | HA32: 0 | HB32: 0.09000235112 | HC32: 0.1800047022 | HD32: 0.2700070534 | HE32: 0.3600094045 | HF32: 0.4500117556 | HG32: 0.5400141067 | HH32: 0.6300164579 | HI32: -0.529981191 | HJ32: -0.529981191 | HK32: -0.4460226359 | HL32: -0.3620640809 | HM32: -0.2781055258 | HN32: -0.1941469707 | HO32: -0.1101884157 | HP32: -0.02622986059 | HQ32: 0.05772869448 | HR32: 0.1416872496 | ID32: 0 | IE32: 0.002522786458 | IF32: 0.004801432292 | IG32: 0.006591796875 | IH32: 0.007649739583 | II32: 0.007731119792 | IJ32: 0.006591796875 | IK32: 0.003987630208 | IL32: 0 | JH32: 0 | JI32: 0.001435910969 | JJ32: 0.002731193264 | JK32: 0.003745218212 | JL32: 0.004337357139 | JM32: 0.004366981372 | JN32: 0.003693462237 | JO32: 0.002176171059 | JP32: 0 | JQ32: 0 | JR32: -0.001770682022 | JS32: -0.00272999242 | JT32: -0.00303066243 | JU32: -0.002825423292 | JV32: -0.002267006242 | JW32: -0.001508142518 | JX32: -0.0007015633583 | JY32: 0 | KF32: 0 | KG32: 0.1435910969 | KH32: 0.2731193264 | KI32: 0.3745218212 | KJ32: 0.4337357139 | KK32: 0.4366981372 | KL32: 0.3693462237 | KM32: 0.2176171059 | KN32: 0 | KO32: 0 | KP32: -0.1770682022 | KQ32: -0.272999242 | KR32: -0.303066243 | KS32: -0.2825423292 | KT32: -0.2267006242 | KU32: -0.1508142518 | KV32: -0.07015633583 | KW32: 0
C33: 20 | D33: 0 | E33: 0.02792034663 | F33: 0.05584069326 | G33: 0.08376103989 | H33: 0.1116813865 | I33: 0.1396017331 | J33: 0.1675220798 | K33: 0.1954424264 | L33: 0.223362773 | M33: 0.223362773 | N33: 0.08784946877 | O33: -0.04766383549 | P33: -0.1831771397 | Q33: -0.318690444 | R33: -0.4542037483 | S33: -0.5897170525 | T33: -0.7252303568 | U33: -0.860743661 | V33: 0.0223362773 | W33: -0.1004732562 | X33: -0.1004732562 | Y33: 0.0223362773 | Z33: -0.1228095335 | AA33: 0.6036341025 | AJ33: 0 | AK33: 0.0223362773 | AZ33: 0.0223362773 | BA33: -0.1004732562 | BP33: -0.1004732562 | BQ33: =+$X24 -> -0.5031608464 | BX33: =+$X24 -> -0.5031608464 | BY33: =-$W24 -> -0.4968391536 | CF33: =-$W24 -> -0.4968391536 | CG33: 0.08266381288 | CV33: =-Y24 -> 0.08266381288 | CW33: 0 | DC33: 8 | DE33: 1 | DF33: =-(DE33-DE33^3)/(4+3*Input!$B$1) -> 0 | DG33: =+(-DE33+DE33^3)/(4*(1+Input!$B$1)) -> 0 | DH33: =1/2/(4+3*Input!$B$1)*(DE33-DE33^3) -> 0 | DI33: 0 | DJ33: 0 | DK33: -1 | DL33: 1 | DM33: 1 | DP33: 0 | DR33: -1 | DS33: -1 | DV33: 0 | DZ33: 0 | EB33: 0 | EC33: 0 | ED33: 0 | EE33: 0 | EF33: 0 | EH33: 0 | EI33: 0 | EJ33: 0 | EK33: 0 | EL33: 0 | EO33: 0 | EP33: 0 | EQ33: 0 | ER33: 0 | EU33: 0 | EV33: 0 | EW33: 0 | EX33: 0 | FB33: 0 | FC33: 0 | FD33: 0 | FE33: 0 | FF33: 0 | FG33: 0 | FH33: 0 | FI33: 0 | FJ33: 0 | GA33: 0 | GB33: 0 | GC33: 0 | GD33: 0 | GE33: 0 | GF33: 0 | GG33: 0 | GH33: 0 | GI33: 0 | GJ33: 0 | GK33: 0 | GL33: 0 | GM33: 0 | GN33: 0 | GO33: 0 | GP33: 0 | GQ33: 0 | GR33: 0 | HA33: 0 | HB33: 0 | HC33: 0 | HD33: 0 | HE33: 0 | HF33: 0 | HG33: 0 | HH33: 0 | HI33: 0 | HJ33: 0 | HK33: 0 | HL33: 0 | HM33: 0 | HN33: 0 | HO33: 0 | HP33: 0 | HQ33: 0 | HR33: 0 | ID33: 0 | IE33: 0 | IF33: 0 | IG33: 0 | IH33: 0 | II33: 0 | IJ33: 0 | IK33: 0 | IL33: 0 | JH33: 0 | JI33: 0 | JJ33: 0 | JK33: 0 | JL33: 0 | JM33: 0 | JN33: 0 | JO33: 0 | JP33: 0 | JQ33: 0 | JR33: 0 | JS33: 0 | JT33: 0 | JU33: 0 | JV33: 0 | JW33: 0 | JX33: 0 | JY33: 0 | KF33: 0 | KG33: 0 | KH33: 0 | KI33: 0 | KJ33: 0 | KK33: 0 | KL33: 0 | KM33: 0 | KN33: 0 | KO33: 0 | KP33: 0 | KQ33: 0 | KR33: 0 | KS33: 0 | KT33: 0 | KU33: 0 | KV33: 0 | KW33: 0
C34: 21 | D34: 0 | E34: 0.02246524115 | F34: 0.0449304823 | G34: 0.06739572345 | H34: 0.08986096459 | I34: 0.1123262057 | J34: 0.1347914469 | K34: 0.157256688 | L34: 0.1797219292 | M34: 0.1797219292 | N34: 0.07068535097 | O34: -0.03835122724 | P34: -0.1473878055 | Q34: -0.2564243837 | R34: -0.3654609619 | S34: -0.4744975401 | T34: -0.5835341183 | U34: -0.6925706965 | V34: 0.01797219292 | W34: -0.08084269006 | X34: -0.08084269006 | Y34: 0.01797219292 | Z34: -0.09881488298 | AA34: 0.4378524639 | AJ34: 0 | AK34: 0.01797219292 | AZ34: 0.01797219292 | BA34: -0.08084269006 | BP34: -0.08084269006 | BQ34: =+$X23 -> -0.3570097738 | BZ34: =+$X23 -> -0.3570097738 | CA34: =-$W23 -> -0.6429902262 | CF34: =-$W23 -> -0.6429902262 | CG34: 0.08866852368 | CV34: =-Y23 -> 0.08866852368 | CW34: 0 | DC34: =+DC33 -> 8 | DD34: 2 | DE34: 0 | DF34: =+(-3/2*DE34+3*DE34^2-3/2*DE34^3)/(4+3*Input!$B$1)*Input!$B$1^2 -> 0 | DG34: =+(-2*DE34+3*DE34^2-DE34^3)/(4*(1+Input!$B$1))*Input!$B$1^2 -> 0 | DH34: =(-2*DE34-3*Input!$B$1*DE34^2+(2+3*Input!$B$1)*DE34^3)*Input!$B$1/2/(4+3*Input!$B$1) -> 0 | DJ34: 0 | DL34: =1-DE34 -> 1 | DM34: 1 | DO34: =+DE34 -> 0 | DP34: 0 | DS34: 0 | DU34: =1-DE34 -> 1 | DV34: 1 | DW34: =+DV34-1 -> 0 | DY34: =-$DE34 -> 0 | DZ34: 0 | EC34: 0 | ED34: 0 | EE34: 0 | EF34: 0 | EI34: 0 | EJ34: 0 | EK34: 0 | EL34: 0 | EN34: =+EB25*Input!$B$1^2 -> 0 | EO34: 0 | EP34: 0 | EQ34: 0 | ER34: 0 | ET34: =+EH25*Input!$B$1^2 -> 0 | EU34: 0 | EV34: 0 | EW34: 0 | EX34: 0 | FK34: 0 | FL34: =+IF($DE34<=FL$3,FL$5/FL$3*$DE34,FL$5-FL$5/(1-FL$3)*($DE34-FL$3))*Input!$B$1 -> 0 | FM34: =+IF($DE34<=FM$3,FM$5/FM$3*$DE34,FM$5-FM$5/(1-FM$3)*($DE34-FM$3))*Input!$B$1 -> 0 | FN34: =+IF($DE34<=FN$3,FN$5/FN$3*$DE34,FN$5-FN$5/(1-FN$3)*($DE34-FN$3))*Input!$B$1 -> 0 | FO34: =+IF($DE34<=FO$3,FO$5/FO$3*$DE34,FO$5-FO$5/(1-FO$3)*($DE34-FO$3))*Input!$B$1 -> 0 | FP34: =+IF($DE34<=FP$3,FP$5/FP$3*$DE34,FP$5-FP$5/(1-FP$3)*($DE34-FP$3))*Input!$B$1 -> 0 | FQ34: =+IF($DE34<=FQ$3,FQ$5/FQ$3*$DE34,FQ$5-FQ$5/(1-FQ$3)*($DE34-FQ$3))*Input!$B$1 -> 0 | FR34: =+IF($DE34<=FR$3,FR$5/FR$3*$DE34,FR$5-FR$5/(1-FR$3)*($DE34-FR$3))*Input!$B$1 -> 0 | FS34: =+IF($DE34<=FS$3,FS$5/FS$3*$DE34,FS$5-FS$5/(1-FS$3)*($DE34-FS$3))*Input!$B$1 -> 0 | GA34: 0 | GB34: 0 | GC34: 0 | GD34: 0 | GE34: 0 | GF34: 0 | GG34: 0 | GH34: 0 | GI34: 0 | GJ34: 0 | GK34: 0 | GL34: 0 | GM34: 0 | GN34: 0 | GO34: 0 | GP34: 0 | GQ34: 0 | GR34: 0 | HA34: 0 | HB34: 0 | HC34: 0 | HD34: 0 | HE34: 0 | HF34: 0 | HG34: 0 | HH34: 0 | HI34: 0 | HJ34: 0 | HK34: 0 | HL34: 0 | HM34: 0 | HN34: 0 | HO34: 0 | HP34: 0 | HQ34: 0 | HR34: 0 | IM34: =+IF($DE34<=FK$3,1/6*(1-FK$3)*$DE34*(1-(1-FK$3)^2-$DE34^2),1/6*FK$3*(1-$DE34)*(1-FK$3^2-(1-$DE34)^2))*Input!$B$1^3 -> 0 | IN34: =+IF($DE34<=FL$3,1/6*(1-FL$3)*$DE34*(1-(1-FL$3)^2-$DE34^2),1/6*FL$3*(1-$DE34)*(1-FL$3^2-(1-$DE34)^2))*Input!$B$1^3 -> 0 | IO34: =+IF($DE34<=FM$3,1/6*(1-FM$3)*$DE34*(1-(1-FM$3)^2-$DE34^2),1/6*FM$3*(1-$DE34)*(1-FM$3^2-(1-$DE34)^2))*Input!$B$1^3 -> 0 | IP34: =+IF($DE34<=FN$3,1/6*(1-FN$3)*$DE34*(1-(1-FN$3)^2-$DE34^2),1/6*FN$3*(1-$DE34)*(1-FN$3^2-(1-$DE34)^2))*Input!$B$1^3 -> 0 | IQ34: =+IF($DE34<=FO$3,1/6*(1-FO$3)*$DE34*(1-(1-FO$3)^2-$DE34^2),1/6*FO$3*(1-$DE34)*(1-FO$3^2-(1-$DE34)^2))*Input!$B$1^3 -> 0 | IR34: =+IF($DE34<=FP$3,1/6*(1-FP$3)*$DE34*(1-(1-FP$3)^2-$DE34^2),1/6*FP$3*(1-$DE34)*(1-FP$3^2-(1-$DE34)^2))*Input!$B$1^3 -> 0 | IS34: =+IF($DE34<=FQ$3,1/6*(1-FQ$3)*$DE34*(1-(1-FQ$3)^2-$DE34^2),1/6*FQ$3*(1-$DE34)*(1-FQ$3^2-(1-$DE34)^2))*Input!$B$1^3 -> 0 | IT34: =+IF($DE34<=FR$3,1/6*(1-FR$3)*$DE34*(1-(1-FR$3)^2-$DE34^2),1/6*FR$3*(1-$DE34)*(1-FR$3^2-(1-$DE34)^2))*Input!$B$1^3 -> 0 | IU34: =+IF($DE34<=FS$3,1/6*(1-FS$3)*$DE34*(1-(1-FS$3)^2-$DE34^2),1/6*FS$3*(1-$DE34)*(1-FS$3^2-(1-$DE34)^2))*Input!$B$1^3 -> 0 | JH34: 0 | JI34: 0 | JJ34: 0 | JK34: 0 | JL34: 0 | JM34: 0 | JN34: 0 | JO34: 0 | JP34: 0 | JQ34: 0 | JR34: 0 | JS34: 0 | JT34: 0 | JU34: 0 | JV34: 0 | JW34: 0 | JX34: 0 | JY34: 0 | KF34: 0 | KG34: 0 | KH34: 0 | KI34: 0 | KJ34: 0 | KK34: 0 | KL34: 0 | KM34: 0 | KN34: 0 | KO34: 0 | KP34: 0 | KQ34: 0 | KR34: 0 | KS34: 0 | KT34: 0 | KU34: 0 | KV34: 0 | KW34: 0
C35: 22 | D35: 0 | E35: 0.01500412587 | F35: 0.03000825173 | G35: 0.0450123776 | H35: 0.06001650346 | I35: 0.07502062933 | J35: 0.0900247552 | K35: 0.1050288811 | L35: 0.1200330069 | M35: 0.1200330069 | N35: 0.04720945998 | O35: -0.02561408697 | P35: -0.09843763392 | Q35: -0.1712611809 | R35: -0.2440847278 | S35: -0.3169082748 | T35: -0.3897318217 | U35: -0.4625553687 | V35: 0.01200330069 | W35: -0.05399336197 | X35: -0.05399336197 | Y35: 0.01200330069 | Z35: -0.06599666266 | AA35: 0.2728383653 | AJ35: 0 | AK35: 0.01200330069 | AZ35: 0.01200330069 | BA35: -0.05399336197 | BP35: -0.05399336197 | BQ35: =+$X22 -> -0.2188450034 | CB35: =+$X22 -> -0.2188450034 | CC35: =-$W22 -> -0.7811549966 | CF35: =-$W22 -> -0.7811549966 | CG35: 0.07987177822 | CV35: =-Y22 -> 0.07987177822 | CW35: 0 | DC35: =+DC34+1 -> 9 | DE35: =+DE34+1/8 -> 0.125 | DF35: =+(-3/2*DE35+3*DE35^2-3/2*DE35^3)/(4+3*Input!$B$1)*Input!$B$1^2 -> -0.02309413471 | DG35: =+(-2*DE35+3*DE35^2-DE35^3)/(4*(1+Input!$B$1))*Input!$B$1^2 -> -0.02871096216 | DH35: =(-2*DE35-3*Input!$B$1*DE35^2+(2+3*Input!$B$1)*DE35^3)*Input!$B$1/2/(4+3*Input!$B$1) -> -0.02164482717 | DJ35: -0.05180509688 | DL35: 0.875 | DM35: 0.9547571541 | DO35: 0.125 | DP35: 0.1223136097 | DS35: -0.05180509688 | DU35: 0.875 | DV35: 0.9029520572 | DW35: -0.09704794282 | DY35: =-$DE35 -> -0.125 | DZ35: -0.09704794282 | EC35: 0.003849022452 | ED35: 0.00478516036 | EE35: 0 | EF35: 0.008634182813 | EI35: -0.007698044905 | EJ35: -0.00957032072 | EK35: 0 | EL35: -0.01726836563 | EN35: =+EB26*Input!$B$1^2 -> -0.03979339355 | EO35: 0.008306190452 | EP35: 0.01032637606 | EQ35: 0.00389246142 | ER35: -0.01726836563 | ET35: =+EH26*Input!$B$1^2 -> 0.02387603613 | EU35: -0.004153095226 | EV35: -0.005163188029 | EW35: -0.00778492284 | EX35: 0.006774830038 | FK35: 0 | FL35: =+IF($DE35<=FL$3,FL$5/FL$3*$DE35,FL$5-FL$5/(1-FL$3)*($DE35-FL$3))*Input!$B$1 -> 0.118015625 | FM35: =+IF($DE35<=FM$3,FM$5/FM$3*$DE35,FM$5-FM$5/(1-FM$3)*($DE35-FM$3))*Input!$B$1 -> 0.10115625 | FN35: =+IF($DE35<=FN$3,FN$5/FN$3*$DE35,FN$5-FN$5/(1-FN$3)*($DE35-FN$3))*Input!$B$1 -> 0.084296875 | FO35: =+IF($DE35<=FO$3,FO$5/FO$3*$DE35,FO$5-FO$5/(1-FO$3)*($DE35-FO$3))*Input!$B$1 -> 0.0674375 | FP35: =+IF($DE35<=FP$3,FP$5/FP$3*$DE35,FP$5-FP$5/(1-FP$3)*($DE35-FP$3))*Input!$B$1 -> 0.050578125 | FQ35: =+IF($DE35<=FQ$3,FQ$5/FQ$3*$DE35,FQ$5-FQ$5/(1-FQ$3)*($DE35-FQ$3))*Input!$B$1 -> 0.03371875 | FR35: =+IF($DE35<=FR$3,FR$5/FR$3*$DE35,FR$5-FR$5/(1-FR$3)*($DE35-FR$3))*Input!$B$1 -> 0.016859375 | FS35: =+IF($DE35<=FS$3,FS$5/FS$3*$DE35,FS$5-FS$5/(1-FS$3)*($DE35-FS$3))*Input!$B$1 -> 0 | GA35: 0 | GB35: -0.006475637109 | GC35: -0.01295127422 | GD35: -0.01942691133 | GE35: -0.02590254844 | GF35: -0.03237818555 | GG35: -0.03885382266 | GH35: -0.04532945977 | GI35: -0.05180509688 | GJ35: -0.05180509688 | GK35: 0.06998056184 | GL35: 0.05689122055 | GM35: 0.04380187926 | GN35: 0.03071253798 | GO35: 0.01762319669 | GP35: 0.004533855401 | GQ35: -0.008555485887 | GR35: -0.02164482717 | HA35: 0 | HB35: -0.06475637109 | HC35: -0.1295127422 | HD35: -0.1942691133 | HE35: -0.2590254844 | HF35: -0.3237818555 | HG35: -0.3885382266 | HH35: -0.4532945977 | HI35: -0.5180509688 | HJ35: -0.5180509688 | HK35: 0.6998056184 | HL35: 0.5689122055 | HM35: 0.4380187926 | HN35: 0.3071253798 | HO35: 0.1762319669 | HP35: 0.04533855401 | HQ35: -0.08555485887 | HR35: -0.2164482717 | IM35: =+IF($DE35<=FK$3,1/6*(1-FK$3)*$DE35*(1-(1-FK$3)^2-$DE35^2),1/6*FK$3*(1-$DE35)*(1-FK$3^2-(1-$DE35)^2))*Input!$B$1^3 -> 0 | IN35: =+IF($DE35<=FL$3,1/6*(1-FL$3)*$DE35*(1-(1-FL$3)^2-$DE35^2),1/6*FL$3*(1-$DE35)*(1-FL$3^2-(1-$DE35)^2))*Input!$B$1^3 -> 0.005009325025 | IO35: =+IF($DE35<=FM$3,1/6*(1-FM$3)*$DE35*(1-(1-FM$3)^2-$DE35^2),1/6*FM$3*(1-$DE35)*(1-FM$3^2-(1-$DE35)^2))*Input!$B$1^3 -> 0.00828072096 | IP35: =+IF($DE35<=FN$3,1/6*(1-FN$3)*$DE35*(1-(1-FN$3)^2-$DE35^2),1/6*FN$3*(1-$DE35)*(1-FN$3^2-(1-$DE35)^2))*Input!$B$1^3 -> 0.009711956682 | IQ35: =+IF($DE35<=FO$3,1/6*(1-FO$3)*$DE35*(1-(1-FO$3)^2-$DE35^2),1/6*FO$3*(1-$DE35)*(1-FO$3^2-(1-$DE35)^2))*Input!$B$1^3 -> 0.009609725559 | IR35: =+IF($DE35<=FP$3,1/6*(1-FP$3)*$DE35*(1-(1-FP$3)^2-$DE35^2),1/6*FP$3*(1-$DE35)*(1-FP$3^2-(1-$DE35)^2))*Input!$B$1^3 -> 0.00828072096 | IS35: =+IF($DE35<=FQ$3,1/6*(1-FQ$3)*$DE35*(1-(1-FQ$3)^2-$DE35^2),1/6*FQ$3*(1-$DE35)*(1-FQ$3^2-(1-$DE35)^2))*Input!$B$1^3 -> 0.006031636255 | IT35: =+IF($DE35<=FR$3,1/6*(1-FR$3)*$DE35*(1-(1-FR$3)^2-$DE35^2),1/6*FR$3*(1-$DE35)*(1-FR$3^2-(1-$DE35)^2))*Input!$B$1^3 -> 0.003169164812 | IU35: =+IF($DE35<=FS$3,1/6*(1-FS$3)*$DE35*(1-(1-FS$3)^2-$DE35^2),1/6*FS$3*(1-$DE35)*(1-FS$3^2-(1-$DE35)^2))*Input!$B$1^3 -> 0 | JH35: 0 | JI35: -0.001062409213 | JJ35: -0.002023636597 | JK35: -0.00278250032 | JL35: -0.003237818555 | JM35: -0.00328840947 | JN35: -0.002833091235 | JO35: -0.001770682022 | JP35: 0 | JQ35: 0 | JR35: 0.002431031742 | JS35: 0.003997952986 | JT35: 0.004529950926 | JU35: 0.004265137245 | JV35: 0.003441623627 | JW35: 0.002297521758 | JX35: 0.001070943321 | JY35: 0 | KF35: 0 | KG35: -0.1062409213 | KH35: -0.2023636597 | KI35: -0.278250032 | KJ35: -0.3237818555 | KK35: -0.328840947 | KL35: -0.2833091235 | KM35: -0.1770682022 | KN35: 0 | KO35: 0 | KP35: 0.2431031742 | KQ35: 0.3997952986 | KR35: 0.4529950926 | KS35: 0.4265137245 | KT35: 0.3441623627 | KU35: 0.2297521758 | KV35: 0.1070943321 | KW35: 0
C36: 23 | D36: 0 | E36: 0.007021034308 | F36: 0.01404206862 | G36: 0.02106310292 | H36: 0.02808413723 | I36: 0.03510517154 | J36: 0.04212620585 | K36: 0.04914724015 | L36: 0.05616827446 | M36: 0.05616827446 | N36: 0.02209120619 | O36: -0.01198586209 | P36: -0.04606293036 | Q36: -0.08013999864 | R36: -0.1142170669 | S36: -0.1482941352 | T36: -0.1823712035 | U36: -0.2164482717 | V36: 0.005616827446 | W36: -0.02526566693 | X36: -0.02526566693 | Y36: 0.005616827446 | Z36: -0.03088249438 | AA36: 0.1223136097 | AJ36: 0 | AK36: 0.005616827446 | AZ36: 0.005616827446 | BA36: -0.02526566693 | BP36: -0.02526566693 | BQ36: =+$X21 -> -0.09704794282 | CD36: =+$X21 -> -0.09704794282 | CE36: =-$W$21 -> -0.9029520572 | CF36: =-$W$21 -> -0.9029520572 | CG36: 0.05180509688 | CV36: =-Y21 -> 0.05180509688 | CW36: 0 | DC36: =+DC35+1 -> 10 | DE36: =+DE35+1/8 -> 0.25 | DF36: =+(-3/2*DE36+3*DE36^2-3/2*DE36^3)/(4+3*Input!$B$1)*Input!$B$1^2 -> -0.03393423876 | DG36: =+(-2*DE36+3*DE36^2-DE36^3)/(4*(1+Input!$B$1))*Input!$B$1^2 -> -0.04593753946 | DH36: =(-2*DE36-3*Input!$B$1*DE36^2+(2+3*Input!$B$1)*DE36^3)*Input!$B$1/2/(4+3*Input!$B$1) -> -0.04625553687 | DJ36: -0.07987177822 | DL36: 0.75 | DM36: 0.8610267748 | DO36: 0.25 | DP36: 0.2728383653 | DS36: -0.07987177822 | DU36: 0.75 | DV36: 0.7811549966 | DW36: -0.2188450034 | DY36: -0.25 | DZ36: -0.2188450034 | EC36: 0.005655706461 | ED36: 0.007656256576 | EE36: 0 | EF36: 0.01331196304 | EI36: -0.01131141292 | EJ36: -0.01531251315 | EK36: 0 | EL36: -0.02662392607 | EN36: =+EB27*Input!$B$1^2 -> -0.06366942969 | EO36: 0.01220501454 | EP36: 0.01652220169 | EQ36: 0.00831828738 | ER36: -0.02662392607 | ET36: =+EH27*Input!$B$1^2 -> 0.04547816406 | EU36: -0.006102507271 | EV36: -0.008261100846 | EW36: -0.01663657476 | EX36: 0.01447798119 | FK36: 0 | FL36: =+IF($DE36<=FL$3,FL$5/FL$3*$DE36,FL$5-FL$5/(1-FL$3)*($DE36-FL$3))*Input!$B$1 -> 0.10115625 | FM36: =+IF($DE36<=FM$3,FM$5/FM$3*$DE36,FM$5-FM$5/(1-FM$3)*($DE36-FM$3))*Input!$B$1 -> 0.2023125 | FN36: =+IF($DE36<=FN$3,FN$5/FN$3*$DE36,FN$5-FN$5/(1-FN$3)*($DE36-FN$3))*Input!$B$1 -> 0.16859375 | FO36: =+IF($DE36<=FO$3,FO$5/FO$3*$DE36,FO$5-FO$5/(1-FO$3)*($DE36-FO$3))*Input!$B$1 -> 0.134875 | FP36: =+IF($DE36<=FP$3,FP$5/FP$3*$DE36,FP$5-FP$5/(1-FP$3)*($DE36-FP$3))*Input!$B$1 -> 0.10115625 | FQ36: =+IF($DE36<=FQ$3,FQ$5/FQ$3*$DE36,FQ$5-FQ$5/(1-FQ$3)*($DE36-FQ$3))*Input!$B$1 -> 0.0674375 | FR36: =+IF($DE36<=FR$3,FR$5/FR$3*$DE36,FR$5-FR$5/(1-FR$3)*($DE36-FR$3))*Input!$B$1 -> 0.03371875 | FS36: =+IF($DE36<=FS$3,FS$5/FS$3*$DE36,FS$5-FS$5/(1-FS$3)*($DE36-FS$3))*Input!$B$1 -> 0 | GA36: 0 | GB36: -0.009983972278 | GC36: -0.01996794456 | GD36: -0.02995191683 | GE36: -0.03993588911 | GF36: -0.04991986139 | GG36: -0.05990383367 | GH36: -0.06988780594 | GI36: -0.07987177822 | GJ36: -0.07987177822 | GK36: 0.02548650195 | GL36: 0.1308447821 | GM36: 0.1013280623 | GN36: 0.07181134246 | GO36: 0.04229462262 | GP36: 0.01277790279 | GQ36: -0.01673881704 | GR36: -0.04625553687 | HA36: 0 | HB36: -0.09983972278 | HC36: -0.1996794456 | HD36: -0.2995191683 | HE36: -0.3993588911 | HF36: -0.4991986139 | HG36: -0.5990383367 | HH36: -0.6988780594 | HI36: -0.7987177822 | HJ36: -0.7987177822 | HK36: 0.2548650195 | HL36: 1.308447821 | HM36: 1.013280623 | HN36: 0.7181134246 | HO36: 0.4229462262 | HP36: 0.1277790279 | HQ36: -0.1673881704 | HR36: -0.4625553687 | IM36: =+IF($DE36<=FK$3,1/6*(1-FK$3)*$DE36*(1-(1-FK$3)^2-$DE36^2),1/6*FK$3*(1-$DE36)*(1-FK$3^2-(1-$DE36)^2))*Input!$B$1^3 -> 0 | IN36: =+IF($DE36<=FL$3,1/6*(1-FL$3)*$DE36*(1-(1-FL$3)^2-$DE36^2),1/6*FL$3*(1-$DE36)*(1-FL$3^2-(1-$DE36)^2))*Input!$B$1^3 -> 0.00828072096 | IO36: =+IF($DE36<=FM$3,1/6*(1-FM$3)*$DE36*(1-(1-FM$3)^2-$DE36^2),1/6*FM$3*(1-$DE36)*(1-FM$3^2-(1-$DE36)^2))*Input!$B$1^3 -> 0.01472128171 | IP36: =+IF($DE36<=FN$3,1/6*(1-FN$3)*$DE36*(1-(1-FN$3)^2-$DE36^2),1/6*FN$3*(1-$DE36)*(1-FN$3^2-(1-$DE36)^2))*Input!$B$1^3 -> 0.01789044652 | IQ36: =+IF($DE36<=FO$3,1/6*(1-FO$3)*$DE36*(1-(1-FO$3)^2-$DE36^2),1/6*FO$3*(1-$DE36)*(1-FO$3^2-(1-$DE36)^2))*Input!$B$1^3 -> 0.01799267764 | IR36: =+IF($DE36<=FP$3,1/6*(1-FP$3)*$DE36*(1-(1-FP$3)^2-$DE36^2),1/6*FP$3*(1-$DE36)*(1-FP$3^2-(1-$DE36)^2))*Input!$B$1^3 -> 0.01564136181 | IS36: =+IF($DE36<=FQ$3,1/6*(1-FQ$3)*$DE36*(1-(1-FQ$3)^2-$DE36^2),1/6*FQ$3*(1-$DE36)*(1-FQ$3^2-(1-$DE36)^2))*Input!$B$1^3 -> 0.01144988577 | IT36: =+IF($DE36<=FR$3,1/6*(1-FR$3)*$DE36*(1-(1-FR$3)^2-$DE36^2),1/6*FR$3*(1-$DE36)*(1-FR$3^2-(1-$DE36)^2))*Input!$B$1^3 -> 0.006031636255 | IU36: =+IF($DE36<=FS$3,1/6*(1-FS$3)*$DE36*(1-(1-FS$3)^2-$DE36^2),1/6*FS$3*(1-$DE36)*(1-FS$3^2-(1-$DE36)^2))*Input!$B$1^3 -> 0 | JH36: 0 | JI36: -0.001637995452 | JJ36: -0.003119991337 | JK36: -0.004289988088 | JL36: -0.004991986139 | JM36: -0.005069985922 | JN36: -0.004367987871 | JO36: -0.00272999242 | JP36: 0 | JQ36: 0 | JR36: 0.003997952986 | JS36: 0.007532274245 | JT36: 0.009095287809 | JU36: 0.008815015677 | JV36: 0.007228404339 | JW36: 0.004872400286 | JX36: 0.002283950009 | JY36: 0 | KF36: 0 | KG36: -0.1637995452 | KH36: -0.3119991337 | KI36: -0.4289988088 | KJ36: -0.4991986139 | KK36: -0.5069985922 | KL36: -0.4367987871 | KM36: -0.272999242 | KN36: 0 | KO36: 0 | KP36: 0.3997952986 | KQ36: 0.7532274245 | KR36: 0.9095287809 | KS36: 0.8815015677 | KT36: 0.7228404339 | KU36: 0.4872400286 | KV36: 0.2283950009 | KW36: 0
C37: 24 | D37: 0 | E37: 0 | F37: 0 | G37: 0 | H37: 0 | I37: 0 | J37: 0 | K37: 0 | L37: 0 | M37: 0 | N37: -1.655286229e-16 | O37: -3.310572457e-16 | P37: -4.965858686e-16 | Q37: -6.621144914e-16 | R37: -8.276431143e-16 | S37: -9.931717371e-16 | T37: -1.15870036e-15 | U37: -1.324228983e-15 | V37: 0 | W37: -1.227274312e-16 | X37: -1.227274312e-16 | Y37: 0 | Z37: -1.227274312e-16 | AA37: 2.454548624e-16 | DC37: 11 | DE37: 0.375 | DF37: =+(-3/2*DE37+3*DE37^2-3/2*DE37^3)/(4+3*Input!$B$1)*Input!$B$1^2 -> -0.03534816538 | DG37: =+(-2*DE37+3*DE37^2-DE37^3)/(4*(1+Input!$B$1))*Input!$B$1^2 -> -0.0533203583 | DH37: =(-2*DE37-3*Input!$B$1*DE37^2+(2+3*Input!$B$1)*DE37^3)*Input!$B$1/2/(4+3*Input!$B$1) -> -0.06925706965 | DJ37: -0.08866852368 | DL37: 0.625 | DM37: 0.7316587498 | DO37: 0.375 | DP37: 0.4378524639 | DS37: -0.08866852368 | DU37: 0.625 | DV37: 0.6429902262 | DW37: -0.3570097738 | DY37: -0.375 | DZ37: -0.3570097738 | EC37: 0.005891360897 | ED37: 0.008886726383 | EE37: 0 | EF37: 0.01477808728 | EI37: -0.01178272179 | EJ37: -0.01777345277 | EK37: 0 | EL37: -0.02955617456 | EN37: =+EB28*Input!$B$1^2 -> -0.0739020166 | EO37: 0.01271355681 | EP37: 0.01917755553 | EQ37: 0.01245472969 | ER37: -0.02955617456 | ET37: =+EH28*Input!$B$1^2 -> 0.06253247559 | EU37: -0.006356778407 | EV37: -0.009588777767 | EW37: -0.02490945939 | EX37: 0.02167746003 | FK37: 0 | FL37: =+IF($DE37<=FL$3,FL$5/FL$3*$DE37,FL$5-FL$5/(1-FL$3)*($DE37-FL$3))*Input!$B$1 -> 0.084296875 | FM37: =+IF($DE37<=FM$3,FM$5/FM$3*$DE37,FM$5-FM$5/(1-FM$3)*($DE37-FM$3))*Input!$B$1 -> 0.16859375 | FN37: =+IF($DE37<=FN$3,FN$5/FN$3*$DE37,FN$5-FN$5/(1-FN$3)*($DE37-FN$3))*Input!$B$1 -> 0.252890625 | FO37: =+IF($DE37<=FO$3,FO$5/FO$3*$DE37,FO$5-FO$5/(1-FO$3)*($DE37-FO$3))*Input!$B$1 -> 0.2023125 | FP37: =+IF($DE37<=FP$3,FP$5/FP$3*$DE37,FP$5-FP$5/(1-FP$3)*($DE37-FP$3))*Input!$B$1 -> 0.151734375 | FQ37: =+IF($DE37<=FQ$3,FQ$5/FQ$3*$DE37,FQ$5-FQ$5/(1-FQ$3)*($DE37-FQ$3))*Input!$B$1 -> 0.10115625 | FR37: =+IF($DE37<=FR$3,FR$5/FR$3*$DE37,FR$5-FR$5/(1-FR$3)*($DE37-FR$3))*Input!$B$1 -> 0.050578125 | FS37: =+IF($DE37<=FS$3,FS$5/FS$3*$DE37,FS$5-FS$5/(1-FS$3)*($DE37-FS$3))*Input!$B$1 -> 0 | GA37: 0 | GB37: -0.01108356546 | GC37: -0.02216713092 | GD37: -0.03325069638 | GE37: -0.04433426184 | GF37: -0.0554178273 | GG37: -0.06650139276 | GH37: -0.07758495822 | GI37: -0.08866852368 | GJ37: -0.08866852368 | GK37: -0.001945216925 | GL37: 0.08477808983 | GM37: 0.1715013966 | GN37: 0.1233497033 | GO37: 0.07519801009 | GP37: 0.02704631684 | GQ37: -0.02110537641 | GR37: -0.06925706965 | HA37: 0 | HB37: -0.1108356546 | HC37: -0.2216713092 | HD37: -0.3325069638 | HE37: -0.4433426184 | HF37: -0.554178273 | HG37: -0.6650139276 | HH37: -0.7758495822 | HI37: -0.8866852368 | HJ37: -0.8866852368 | HK37: -0.01945216925 | HL37: 0.8477808983 | HM37: 1.715013966 | HN37: 1.233497033 | HO37: 0.7519801009 | HP37: 0.2704631684 | HQ37: -0.2110537641 | HR37: -0.6925706965 | IM37: =+IF($DE37<=FK$3,1/6*(1-FK$3)*$DE37*(1-(1-FK$3)^2-$DE37^2),1/6*FK$3*(1-$DE37)*(1-FK$3^2-(1-$DE37)^2))*Input!$B$1^3 -> 0 | IN37: =+IF($DE37<=FL$3,1/6*(1-FL$3)*$DE37*(1-(1-FL$3)^2-$DE37^2),1/6*FL$3*(1-$DE37)*(1-FL$3^2-(1-$DE37)^2))*Input!$B$1^3 -> 0.009711956682 | IO37: =+IF($DE37<=FM$3,1/6*(1-FM$3)*$DE37*(1-(1-FM$3)^2-$DE37^2),1/6*FM$3*(1-$DE37)*(1-FM$3^2-(1-$DE37)^2))*Input!$B$1^3 -> 0.01789044652 | IP37: =+IF($DE37<=FN$3,1/6*(1-FN$3)*$DE37*(1-(1-FN$3)^2-$DE37^2),1/6*FN$3*(1-$DE37)*(1-FN$3^2-(1-$DE37)^2))*Input!$B$1^3 -> 0.02300200267 | IQ37: =+IF($DE37<=FO$3,1/6*(1-FO$3)*$DE37*(1-(1-FO$3)^2-$DE37^2),1/6*FO$3*(1-$DE37)*(1-FO$3^2-(1-$DE37)^2))*Input!$B$1^3 -> 0.02392208277 | IR37: =+IF($DE37<=FP$3,1/6*(1-FP$3)*$DE37*(1-(1-FP$3)^2-$DE37^2),1/6*FP$3*(1-$DE37)*(1-FP$3^2-(1-$DE37)^2))*Input!$B$1^3 -> 0.02116184245 | IS37: =+IF($DE37<=FQ$3,1/6*(1-FQ$3)*$DE37*(1-(1-FQ$3)^2-$DE37^2),1/6*FQ$3*(1-$DE37)*(1-FQ$3^2-(1-$DE37)^2))*Input!$B$1^3 -> 0.01564136181 | IT37: =+IF($DE37<=FR$3,1/6*(1-FR$3)*$DE37*(1-(1-FR$3)^2-$DE37^2),1/6*FR$3*(1-$DE37)*(1-FR$3^2-(1-$DE37)^2))*Input!$B$1^3 -> 0.00828072096 | IU37: =+IF($DE37<=FS$3,1/6*(1-FS$3)*$DE37*(1-(1-FS$3)^2-$DE37^2),1/6*FS$3*(1-$DE37)*(1-FS$3^2-(1-$DE37)^2))*Input!$B$1^3 -> 0 | JH37: 0 | JI37: -0.001818397458 | JJ37: -0.003463614206 | JK37: -0.004762469533 | JL37: -0.00554178273 | JM37: -0.005628373085 | JN37: -0.004849059889 | JO37: -0.00303066243 | JP37: 0 | JQ37: 0 | JR37: 0.004529950926 | JS37: 0.009095287809 | JT37: 0.01211840394 | JU37: 0.0124306171 | JV37: 0.01049894305 | JW37: 0.00719932202 | JX37: 0.003407694256 | JY37: 0 | KF37: 0 | KG37: -0.1818397458 | KH37: -0.3463614206 | KI37: -0.4762469533 | KJ37: -0.554178273 | KK37: -0.5628373085 | KL37: -0.4849059889 | KM37: -0.303066243 | KN37: 0 | KO37: 0 | KP37: 0.4529950926 | KQ37: 0.9095287809 | KR37: 1.211840394 | KS37: 1.24306171 | KT37: 1.049894305 | KU37: 0.719932202 | KV37: 0.3407694256 | KW37: 0
C38: =+C37 -> 24 | D38: 0 | E38: 0 | F38: 0 | G38: 0 | H38: 0 | I38: 0 | J38: 0 | K38: 0 | L38: 0 | M38: 0 | N38: 0 | O38: 0 | P38: 0 | Q38: 0 | R38: 0 | S38: 0 | T38: 0 | U38: 0 | V38: 0 | W38: 0 | X38: 0 | Y38: 0 | Z38: 0 | AA38: 0 | DC38: 12 | DE38: 0.5 | DF38: =+(-3/2*DE38+3*DE38^2-3/2*DE38^3)/(4+3*Input!$B$1)*Input!$B$1^2 -> -0.03016376779 | DG38: =+(-2*DE38+3*DE38^2-DE38^3)/(4*(1+Input!$B$1))*Input!$B$1^2 -> -0.05250004509 | DH38: =(-2*DE38-3*Input!$B$1*DE38^2+(2+3*Input!$B$1)*DE38^3)*Input!$B$1/2/(4+3*Input!$B$1) -> -0.0860743661 | DJ38: -0.08266381288 | DL38: 0.5 | DM38: 0.5795029665 | DO38: 0.5 | DP38: 0.6036341025 | DS38: -0.08266381288 | DU38: 0.5 | DV38: 0.4968391536 | DW38: -0.5031608464 | DY38: -0.5 | DZ38: -0.5031608464 | EC38: 0.005027294632 | ED38: 0.008750007516 | EE38: 0 | EF38: 0.01377730215 | EI38: -0.01005458926 | EJ38: -0.01750001503 | EK38: 0 | EL38: -0.02755460429 | EN38: =+EB29*Input!$B$1^2 -> -0.0727650625 | EO38: 0.01084890182 | EP38: 0.01888251622 | EQ38: 0.01547904017 | ER38: -0.02755460429 | ET38: =+EH29*Input!$B$1^2 -> 0.0727650625 | EU38: -0.005424450908 | EV38: -0.009441258109 | EW38: -0.03095808034 | EX38: 0.02694127314 | FK38: 0 | FL38: =+IF($DE38<=FL$3,FL$5/FL$3*$DE38,FL$5-FL$5/(1-FL$3)*($DE38-FL$3))*Input!$B$1 -> 0.0674375 | FM38: =+IF($DE38<=FM$3,FM$5/FM$3*$DE38,FM$5-FM$5/(1-FM$3)*($DE38-FM$3))*Input!$B$1 -> 0.134875 | FN38: =+IF($DE38<=FN$3,FN$5/FN$3*$DE38,FN$5-FN$5/(1-FN$3)*($DE38-FN$3))*Input!$B$1 -> 0.2023125 | FO38: =+IF($DE38<=FO$3,FO$5/FO$3*$DE38,FO$5-FO$5/(1-FO$3)*($DE38-FO$3))*Input!$B$1 -> 0.26975 | FP38: =+IF($DE38<=FP$3,FP$5/FP$3*$DE38,FP$5-FP$5/(1-FP$3)*($DE38-FP$3))*Input!$B$1 -> 0.2023125 | FQ38: =+IF($DE38<=FQ$3,FQ$5/FQ$3*$DE38,FQ$5-FQ$5/(1-FQ$3)*($DE38-FQ$3))*Input!$B$1 -> 0.134875 | FR38: =+IF($DE38<=FR$3,FR$5/FR$3*$DE38,FR$5-FR$5/(1-FR$3)*($DE38-FR$3))*Input!$B$1 -> 0.0674375 | FS38: =+IF($DE38<=FS$3,FS$5/FS$3*$DE38,FS$5-FS$5/(1-FS$3)*($DE38-FS$3))*Input!$B$1 -> 0 | GA38: 0 | GB38: -0.01033297661 | GC38: -0.02066595322 | GD38: -0.03099892983 | GE38: -0.04133190644 | GF38: -0.05166488305 | GG38: -0.06199785966 | GH38: -0.07233083627 | GI38: -0.08266381288 | GJ38: -0.08266381288 | GK38: -0.01565263204 | GL38: 0.05135854881 | GM38: 0.1183697297 | GN38: 0.1853809105 | GO38: 0.1175170914 | GP38: 0.0496532722 | GQ38: -0.01821054695 | GR38: -0.0860743661 | HA38: 0 | HB38: -0.1033297661 | HC38: -0.2066595322 | HD38: -0.3099892983 | HE38: -0.4133190644 | HF38: -0.5166488305 | HG38: -0.6199785966 | HH38: -0.7233083627 | HI38: -0.8266381288 | HJ38: -0.8266381288 | HK38: -0.1565263204 | HL38: 0.5135854881 | HM38: 1.183697297 | HN38: 1.853809105 | HO38: 1.175170914 | HP38: 0.496532722 | HQ38: -0.1821054695 | HR38: -0.860743661 | IM38: =+IF($DE38<=FK$3,1/6*(1-FK$3)*$DE38*(1-(1-FK$3)^2-$DE38^2),1/6*FK$3*(1-$DE38)*(1-FK$3^2-(1-$DE38)^2))*Input!$B$1^3 -> 0 | IN38: =+IF($DE38<=FL$3,1/6*(1-FL$3)*$DE38*(1-(1-FL$3)^2-$DE38^2),1/6*FL$3*(1-$DE38)*(1-FL$3^2-(1-$DE38)^2))*Input!$B$1^3 -> 0.009609725559 | IO38: =+IF($DE38<=FM$3,1/6*(1-FM$3)*$DE38*(1-(1-FM$3)^2-$DE38^2),1/6*FM$3*(1-$DE38)*(1-FM$3^2-(1-$DE38)^2))*Input!$B$1^3 -> 0.01799267764 | IP38: =+IF($DE38<=FN$3,1/6*(1-FN$3)*$DE38*(1-(1-FN$3)^2-$DE38^2),1/6*FN$3*(1-$DE38)*(1-FN$3^2-(1-$DE38)^2))*Input!$B$1^3 -> 0.02392208277 | IQ38: =+IF($DE38<=FO$3,1/6*(1-FO$3)*$DE38*(1-(1-FO$3)^2-$DE38^2),1/6*FO$3*(1-$DE38)*(1-FO$3^2-(1-$DE38)^2))*Input!$B$1^3 -> 0.02617116748 | IR38: =+IF($DE38<=FP$3,1/6*(1-FP$3)*$DE38*(1-(1-FP$3)^2-$DE38^2),1/6*FP$3*(1-$DE38)*(1-FP$3^2-(1-$DE38)^2))*Input!$B$1^3 -> 0.02392208277 | IS38: =+IF($DE38<=FQ$3,1/6*(1-FQ$3)*$DE38*(1-(1-FQ$3)^2-$DE38^2),1/6*FQ$3*(1-$DE38)*(1-FQ$3^2-(1-$DE38)^2))*Input!$B$1^3 -> 0.01799267764 | IT38: =+IF($DE38<=FR$3,1/6*(1-FR$3)*$DE38*(1-(1-FR$3)^2-$DE38^2),1/6*FR$3*(1-$DE38)*(1-FR$3^2-(1-$DE38)^2))*Input!$B$1^3 -> 0.009609725559 | IU38: =+IF($DE38<=FS$3,1/6*(1-FS$3)*$DE38*(1-(1-FS$3)^2-$DE38^2),1/6*FS$3*(1-$DE38)*(1-FS$3^2-(1-$DE38)^2))*Input!$B$1^3 -> 0 | JH38: 0 | JI38: -0.001695253975 | JJ38: -0.003229055191 | JK38: -0.004439950887 | JL38: -0.005166488305 | JM38: -0.005247214685 | JN38: -0.004520677267 | JO38: -0.002825423292 | JP38: 0 | JQ38: 0 | JR38: 0.004265137245 | JS38: 0.008815015677 | JT38: 0.0124306171 | JU38: 0.01389292334 | JV38: 0.01239184068 | JW38: 0.008752973397 | JX38: 0.00421085025 | JY38: 0 | KF38: 0 | KG38: -0.1695253975 | KH38: -0.3229055191 | KI38: -0.4439950887 | KJ38: -0.5166488305 | KK38: -0.5247214685 | KL38: -0.4520677267 | KM38: -0.2825423292 | KN38: 0 | KO38: 0 | KP38: 0.4265137245 | KQ38: 0.8815015677 | KR38: 1.24306171 | KS38: 1.389292334 | KT38: 1.239184068 | KU38: 0.8752973397 | KV38: 0.421085025 | KW38: 0
C39: =+C38+1 -> 25 | D39: 0 | E39: -0.004595975898 | F39: -0.009191951796 | G39: -0.01378792769 | H39: -0.01838390359 | I39: -0.02297987949 | J39: -0.02757585539 | K39: -0.03217183128 | L39: -0.03676780718 | M39: -0.03676780718 | N39: -0.01446092509 | O39: 0.007845957001 | P39: 0.03015283909 | Q39: 0.05245972118 | R39: 0.07476660328 | S39: 0.09707348537 | T39: 0.1193803675 | U39: 0.1416872496 | V39: -0.003676780718 | W39: 0.01653893019 | X39: 0.01653893019 | Y39: -0.003676780718 | Z39: 0.02021571091 | AA39: -0.07878809058 | AJ39: 0 | AK39: =+$Y39 -> -0.003676780718 | AZ39: =+$Y39 -> -0.003676780718 | BA39: =+$W39 -> 0.01653893019 | BP39: =+$W39 -> 0.01653893019 | BQ39: =-$X18 -> -0.06224916039 | CF39: =-$X18 -> -0.06224916039 | CG39: =-$V18 -> 0.9279981191 | CH39: =+$Y18 -> 0.0720018809 | CV39: =-$Y18 -> -0.0720018809 | CW39: 0 | DC39: 13 | DE39: 0.625 | DF39: =+(-3/2*DE39+3*DE39^2-3/2*DE39^3)/(4+3*Input!$B$1)*Input!$B$1^2 -> -0.02120889923 | DG39: =+(-2*DE39+3*DE39^2-DE39^3)/(4*(1+Input!$B$1))*Input!$B$1^2 -> -0.04511722625 | DH39: =(-2*DE39-3*Input!$B$1*DE39^2+(2+3*Input!$B$1)*DE39^3)*Input!$B$1/2/(4+3*Input!$B$1) -> -0.09213236679 | DJ39: -0.06632612548 | DL39: 0.375 | DM39: 0.4174093124 | DO39: 0.625 | DP39: 0.7564614783 | DS39: -0.06632612548 | DU39: 0.375 | DV39: 0.3510831869 | DW39: -0.6489168131 | DY39: -0.625 | DZ39: -0.6489168131 | EC39: 0.003534816538 | ED39: 0.007519537709 | EE39: 0 | EF39: 0.01105435425 | EI39: -0.007069633076 | EJ39: -0.01503907542 | EK39: 0 | EL39: -0.02210870849 | EN39: =+EB30*Input!$B$1^2 -> -0.06253247559 | EO39: 0.007628134089 | EP39: 0.01622716238 | EQ39: 0.01656847063 | ER39: -0.02210870849 | ET39: =+EH30*Input!$B$1^2 -> 0.0739020166 | EU39: -0.003814067044 | EV39: -0.008113581188 | EW39: -0.03313694126 | EX39: 0.02883742711 | FK39: 0 | FL39: =+IF($DE39<=FL$3,FL$5/FL$3*$DE39,FL$5-FL$5/(1-FL$3)*($DE39-FL$3))*Input!$B$1 -> 0.050578125 | FM39: =+IF($DE39<=FM$3,FM$5/FM$3*$DE39,FM$5-FM$5/(1-FM$3)*($DE39-FM$3))*Input!$B$1 -> 0.10115625 | FN39: =+IF($DE39<=FN$3,FN$5/FN$3*$DE39,FN$5-FN$5/(1-FN$3)*($DE39-FN$3))*Input!$B$1 -> 0.151734375 | FO39: =+IF($DE39<=FO$3,FO$5/FO$3*$DE39,FO$5-FO$5/(1-FO$3)*($DE39-FO$3))*Input!$B$1 -> 0.2023125 | FP39: =+IF($DE39<=FP$3,FP$5/FP$3*$DE39,FP$5-FP$5/(1-FP$3)*($DE39-FP$3))*Input!$B$1 -> 0.252890625 | FQ39: =+IF($DE39<=FQ$3,FQ$5/FQ$3*$DE39,FQ$5-FQ$5/(1-FQ$3)*($DE39-FQ$3))*Input!$B$1 -> 0.16859375 | FR39: =+IF($DE39<=FR$3,FR$5/FR$3*$DE39,FR$5-FR$5/(1-FR$3)*($DE39-FR$3))*Input!$B$1 -> 0.084296875 | FS39: =+IF($DE39<=FS$3,FS$5/FS$3*$DE39,FS$5-FS$5/(1-FS$3)*($DE39-FS$3))*Input!$B$1 -> 0 | GA39: 0 | GB39: -0.008290765685 | GC39: -0.01658153137 | GD39: -0.02487229706 | GE39: -0.03316306274 | GF39: -0.04145382843 | GG39: -0.04974459411 | GH39: -0.0580353598 | GI39: -0.06632612548 | GJ39: -0.06632612548 | GK39: -0.01897378064 | GL39: 0.02837856419 | GM39: 0.07573090903 | GN39: 0.1230832539 | GO39: 0.1704355987 | GP39: 0.08291294354 | GQ39: -0.004609711628 | GR39: -0.09213236679 | HA39: 0 | HB39: -0.08290765685 | HC39: -0.1658153137 | HD39: -0.2487229706 | HE39: -0.3316306274 | HF39: -0.4145382843 | HG39: -0.4974459411 | HH39: -0.580353598 | HI39: -0.6632612548 | HJ39: -0.6632612548 | HK39: -0.1897378064 | HL39: 0.2837856419 | HM39: 0.7573090903 | HN39: 1.230832539 | HO39: 1.704355987 | HP39: 0.8291294354 | HQ39: -0.04609711628 | HR39: -0.9213236679 | IM39: =+IF($DE39<=FK$3,1/6*(1-FK$3)*$DE39*(1-(1-FK$3)^2-$DE39^2),1/6*FK$3*(1-$DE39)*(1-FK$3^2-(1-$DE39)^2))*Input!$B$1^3 -> 0 | IN39: =+IF($DE39<=FL$3,1/6*(1-FL$3)*$DE39*(1-(1-FL$3)^2-$DE39^2),1/6*FL$3*(1-$DE39)*(1-FL$3^2-(1-$DE39)^2))*Input!$B$1^3 -> 0.00828072096 | IO39: =+IF($DE39<=FM$3,1/6*(1-FM$3)*$DE39*(1-(1-FM$3)^2-$DE39^2),1/6*FM$3*(1-$DE39)*(1-FM$3^2-(1-$DE39)^2))*Input!$B$1^3 -> 0.01564136181 | IP39: =+IF($DE39<=FN$3,1/6*(1-FN$3)*$DE39*(1-(1-FN$3)^2-$DE39^2),1/6*FN$3*(1-$DE39)*(1-FN$3^2-(1-$DE39)^2))*Input!$B$1^3 -> 0.02116184245 | IQ39: =+IF($DE39<=FO$3,1/6*(1-FO$3)*$DE39*(1-(1-FO$3)^2-$DE39^2),1/6*FO$3*(1-$DE39)*(1-FO$3^2-(1-$DE39)^2))*Input!$B$1^3 -> 0.02392208277 | IR39: =+IF($DE39<=FP$3,1/6*(1-FP$3)*$DE39*(1-(1-FP$3)^2-$DE39^2),1/6*FP$3*(1-$DE39)*(1-FP$3^2-(1-$DE39)^2))*Input!$B$1^3 -> 0.02300200267 | IS39: =+IF($DE39<=FQ$3,1/6*(1-FQ$3)*$DE39*(1-(1-FQ$3)^2-$DE39^2),1/6*FQ$3*(1-$DE39)*(1-FQ$3^2-(1-$DE39)^2))*Input!$B$1^3 -> 0.01789044652 | IT39: =+IF($DE39<=FR$3,1/6*(1-FR$3)*$DE39*(1-(1-FR$3)^2-$DE39^2),1/6*FR$3*(1-$DE39)*(1-FR$3^2-(1-$DE39)^2))*Input!$B$1^3 -> 0.009711956682 | IU39: =+IF($DE39<=FS$3,1/6*(1-FS$3)*$DE39*(1-(1-FS$3)^2-$DE39^2),1/6*FS$3*(1-$DE39)*(1-FS$3^2-(1-$DE39)^2))*Input!$B$1^3 -> 0 | JH39: 0 | JI39: -0.001360203745 | JJ39: -0.002590864277 | JK39: -0.00356243838 | JL39: -0.004145382843 | JM39: -0.004210154449 | JN39: -0.003627209987 | JO39: -0.002267006242 | JP39: 0 | JQ39: 0 | JR39: 0.003441623627 | JS39: 0.007228404339 | JT39: 0.01049894305 | JU39: 0.01239184068 | JV39: 0.01204569814 | JW39: 0.009008040853 | JX39: 0.004462092182 | JY39: 0 | KF39: 0 | KG39: -0.1360203745 | KH39: -0.2590864277 | KI39: -0.356243838 | KJ39: -0.4145382843 | KK39: -0.4210154449 | KL39: -0.3627209987 | KM39: -0.2267006242 | KN39: 0 | KO39: 0 | KP39: 0.3441623627 | KQ39: 0.7228404339 | KR39: 1.049894305 | KS39: 1.239184068 | KT39: 1.204569814 | KU39: 0.9008040853 | KV39: 0.4462092182 | KW39: 0
C40: 26 | D40: 0 | E40: -0.007353561437 | F40: -0.01470712287 | G40: -0.02206068431 | H40: -0.02941424575 | I40: -0.03676780718 | J40: -0.04412136862 | K40: -0.05147493006 | L40: -0.05882849149 | M40: -0.05882849149 | N40: -0.02313748015 | O40: 0.0125535312 | P40: 0.04824454255 | Q40: 0.08393555389 | R40: 0.1196265652 | S40: 0.1553175766 | T40: 0.1910085879 | U40: 0.2266995993 | V40: -0.005882849149 | W40: 0.0264622883 | X40: 0.0264622883 | Y40: -0.005882849149 | Z40: 0.03234513745 | AA40: -0.1260609449 | AJ40: 0 | AK40: -0.005882849149 | AZ40: -0.005882849149 | BA40: 0.0264622883 | BP40: 0.0264622883 | BQ40: =-$X17 -> -0.09959865662 | CF40: =-$X17 -> -0.09959865662 | CG40: =-$V17 -> 0.8347969906 | CJ40: =-$V17 -> 0.8347969906 | CK40: =+$Y17 -> 0.1652030094 | CV40: =-$Y17 -> -0.1652030094 | CW40: 0 | DC40: 14 | DE40: 0.75 | DF40: =+(-3/2*DE40+3*DE40^2-3/2*DE40^3)/(4+3*Input!$B$1)*Input!$B$1^2 -> -0.01131141292 | DG40: =+(-2*DE40+3*DE40^2-DE40^3)/(4*(1+Input!$B$1))*Input!$B$1^2 -> -0.03281252818 | DH40: =(-2*DE40-3*Input!$B$1*DE40^2+(2+3*Input!$B$1)*DE40^3)*Input!$B$1/2/(4+3*Input!$B$1) -> -0.08285601229 | DJ40: -0.04412394111 | DL40: 0.25 | DM40: 0.2582276749 | DO40: 0.75 | DP40: 0.8826127884 | DS40: -0.04412394111 | DU40: 0.25 | DV40: 0.2141037338 | DW40: -0.7858962662 | DY40: -0.75 | DZ40: -0.7858962662 | EC40: 0.001885235487 | ED40: 0.005468754697 | EE40: 0 | EF40: 0.007353990184 | EI40: -0.003770470974 | EJ40: -0.01093750939 | EK40: 0 | EL40: -0.01470798037 | EN40: =+EB31*Input!$B$1^2 -> -0.04547816406 | EO40: 0.004068338181 | EP40: 0.01180157264 | EQ40: 0.01490027288 | ER40: -0.01470798037 | ET40: =+EH31*Input!$B$1^2 -> 0.06366942969 | EU40: -0.00203416909 | EV40: -0.005900786318 | EW40: -0.02980054575 | EX40: 0.02593392853 | FK40: 0 | FL40: =+IF($DE40<=FL$3,FL$5/FL$3*$DE40,FL$5-FL$5/(1-FL$3)*($DE40-FL$3))*Input!$B$1 -> 0.03371875 | FM40: =+IF($DE40<=FM$3,FM$5/FM$3*$DE40,FM$5-FM$5/(1-FM$3)*($DE40-FM$3))*Input!$B$1 -> 0.0674375 | FN40: =+IF($DE40<=FN$3,FN$5/FN$3*$DE40,FN$5-FN$5/(1-FN$3)*($DE40-FN$3))*Input!$B$1 -> 0.10115625 | FO40: =+IF($DE40<=FO$3,FO$5/FO$3*$DE40,FO$5-FO$5/(1-FO$3)*($DE40-FO$3))*Input!$B$1 -> 0.134875 | FP40: =+IF($DE40<=FP$3,FP$5/FP$3*$DE40,FP$5-FP$5/(1-FP$3)*($DE40-FP$3))*Input!$B$1 -> 0.16859375 | FQ40: =+IF($DE40<=FQ$3,FQ$5/FQ$3*$DE40,FQ$5-FQ$5/(1-FQ$3)*($DE40-FQ$3))*Input!$B$1 -> 0.2023125 | FR40: =+IF($DE40<=FR$3,FR$5/FR$3*$DE40,FR$5-FR$5/(1-FR$3)*($DE40-FR$3))*Input!$B$1 -> 0.10115625 | FS40: =+IF($DE40<=FS$3,FS$5/FS$3*$DE40,FS$5-FS$5/(1-FS$3)*($DE40-FS$3))*Input!$B$1 -> 0 | GA40: 0 | GB40: -0.005515492638 | GC40: -0.01103098528 | GD40: -0.01654647791 | GE40: -0.02206197055 | GF40: -0.02757746319 | GG40: -0.03309295583 | GH40: -0.03860844847 | GI40: -0.04412394111 | GJ40: -0.04412394111 | GK40: -0.0152467 | GL40: 0.0136305411 | GM40: 0.0425077822 | GN40: 0.0713850233 | GO40: 0.1002622644 | GP40: 0.1291395055 | GQ40: 0.02314174661 | GR40: -0.08285601229 | HA40: 0 | HB40: -0.05515492638 | HC40: -0.1103098528 | HD40: -0.1654647791 | HE40: -0.2206197055 | HF40: -0.2757746319 | HG40: -0.3309295583 | HH40: -0.3860844847 | HI40: -0.4412394111 | HJ40: -0.4412394111 | HK40: -0.152467 | HL40: 0.136305411 | HM40: 0.425077822 | HN40: 0.713850233 | HO40: 1.002622644 | HP40: 1.291395055 | HQ40: 0.2314174661 | HR40: -0.8285601229 | IM40: =+IF($DE40<=FK$3,1/6*(1-FK$3)*$DE40*(1-(1-FK$3)^2-$DE40^2),1/6*FK$3*(1-$DE40)*(1-FK$3^2-(1-$DE40)^2))*Input!$B$1^3 -> 0 | IN40: =+IF($DE40<=FL$3,1/6*(1-FL$3)*$DE40*(1-(1-FL$3)^2-$DE40^2),1/6*FL$3*(1-$DE40)*(1-FL$3^2-(1-$DE40)^2))*Input!$B$1^3 -> 0.006031636255 | IO40: =+IF($DE40<=FM$3,1/6*(1-FM$3)*$DE40*(1-(1-FM$3)^2-$DE40^2),1/6*FM$3*(1-$DE40)*(1-FM$3^2-(1-$DE40)^2))*Input!$B$1^3 -> 0.01144988577 | IP40: =+IF($DE40<=FN$3,1/6*(1-FN$3)*$DE40*(1-(1-FN$3)^2-$DE40^2),1/6*FN$3*(1-$DE40)*(1-FN$3^2-(1-$DE40)^2))*Input!$B$1^3 -> 0.01564136181 | IQ40: =+IF($DE40<=FO$3,1/6*(1-FO$3)*$DE40*(1-(1-FO$3)^2-$DE40^2),1/6*FO$3*(1-$DE40)*(1-FO$3^2-(1-$DE40)^2))*Input!$B$1^3 -> 0.01799267764 | IR40: =+IF($DE40<=FP$3,1/6*(1-FP$3)*$DE40*(1-(1-FP$3)^2-$DE40^2),1/6*FP$3*(1-$DE40)*(1-FP$3^2-(1-$DE40)^2))*Input!$B$1^3 -> 0.01789044652 | IS40: =+IF($DE40<=FQ$3,1/6*(1-FQ$3)*$DE40*(1-(1-FQ$3)^2-$DE40^2),1/6*FQ$3*(1-$DE40)*(1-FQ$3^2-(1-$DE40)^2))*Input!$B$1^3 -> 0.01472128171 | IT40: =+IF($DE40<=FR$3,1/6*(1-FR$3)*$DE40*(1-(1-FR$3)^2-$DE40^2),1/6*FR$3*(1-$DE40)*(1-FR$3^2-(1-$DE40)^2))*Input!$B$1^3 -> 0.00828072096 | IU40: =+IF($DE40<=FS$3,1/6*(1-FS$3)*$DE40*(1-(1-FS$3)^2-$DE40^2),1/6*FS$3*(1-$DE40)*(1-FS$3^2-(1-$DE40)^2))*Input!$B$1^3 -> 0 | JH40: 0 | JI40: -0.0009048855109 | JJ40: -0.001723591449 | JK40: -0.002369938243 | JL40: -0.002757746319 | JM40: -0.002800836105 | JN40: -0.002413028029 | JO40: -0.001508142518 | JP40: 0 | JQ40: 0 | JR40: 0.002297521758 | JS40: 0.004872400286 | JT40: 0.00719932202 | JU40: 0.008752973397 | JV40: 0.009008040853 | JW40: 0.007439210826 | JX40: 0.003930094243 | JY40: 0 | KF40: 0 | KG40: -0.09048855109 | KH40: -0.1723591449 | KI40: -0.2369938243 | KJ40: -0.2757746319 | KK40: -0.2800836105 | KL40: -0.2413028029 | KM40: -0.1508142518 | KN40: 0 | KO40: 0 | KP40: 0.2297521758 | KQ40: 0.4872400286 | KR40: 0.719932202 | KS40: 0.8752973397 | KT40: 0.9008040853 | KU40: 0.7439210826 | KV40: 0.3930094243 | KW40: 0
C41: 27 | D41: 0 | E41: -0.00853538381 | F41: -0.01707076762 | G41: -0.02560615143 | H41: -0.03414153524 | I41: -0.04267691905 | J41: -0.05121230286 | K41: -0.05974768667 | L41: -0.06828307048 | M41: -0.06828307048 | N41: -0.02685600374 | O41: 0.014571063 | P41: 0.05599812974 | Q41: 0.09742519648 | R41: 0.1388522632 | S41: 0.18027933 | T41: 0.2217063967 | U41: 0.2631334635 | V41: -0.006828307048 | W41: 0.03071515606 | X41: 0.03071515606 | Y41: -0.006828307048 | Z41: 0.03754346311 | AA41: -0.1463207396 | AJ41: 0 | AK41: -0.006828307048 | AZ41: -0.006828307048 | BA41: 0.03071515606 | BP41: 0.03071515606 | BQ41: =-$X16 -> -0.1156055836 | CF41: =-$X16 -> -0.1156055836 | CG41: =-$V16 -> 0.7234250783 | CL41: =-$V16 -> 0.7234250783 | CM41: =+$Y16 -> 0.2765749217 | CV41: =-$Y16 -> -0.2765749217 | CW41: 0 | DC41: 15 | DE41: 0.875 | DF41: =+(-3/2*DE41+3*DE41^2-3/2*DE41^3)/(4+3*Input!$B$1)*Input!$B$1^2 -> -0.003299162102 | DG41: =+(-2*DE41+3*DE41^2-DE41^3)/(4*(1+Input!$B$1))*Input!$B$1^2 -> -0.0172265773 | DH41: =(-2*DE41-3*Input!$B$1*DE41^2+(2+3*Input!$B$1)*DE41^3)*Input!$B$1/2/(4+3*Input!$B$1) -> -0.05367024317 | DJ41: -0.0205257394 | DL41: 0.125 | DM41: 0.1148079417 | DO41: 0.875 | DP41: 0.96836623 | DS41: -0.0205257394 | DU41: 0.125 | DV41: 0.09428220225 | DW41: -0.9057177977 | DY41: -0.875 | DZ41: -0.9057177977 | EC41: 0.0005498603503 | ED41: 0.002871096216 | EE41: 0 | EF41: 0.003420956566 | EI41: -0.001099720701 | EJ41: -0.005742192432 | EK41: 0 | EL41: -0.006841913133 | EN41: =+EB32*Input!$B$1^2 -> -0.02387603613 | EO41: 0.001186598636 | EP41: 0.006195825634 | EQ41: 0.00965169873 | ER41: -0.006841913133 | ET41: =+EH32*Input!$B$1^2 -> 0.03979339355 | EU41: -0.000593299318 | EV41: -0.003097912817 | EW41: -0.01930339746 | EX41: 0.01679878396 | FK41: 0 | FL41: =+IF($DE41<=FL$3,FL$5/FL$3*$DE41,FL$5-FL$5/(1-FL$3)*($DE41-FL$3))*Input!$B$1 -> 0.016859375 | FM41: =+IF($DE41<=FM$3,FM$5/FM$3*$DE41,FM$5-FM$5/(1-FM$3)*($DE41-FM$3))*Input!$B$1 -> 0.03371875 | FN41: =+IF($DE41<=FN$3,FN$5/FN$3*$DE41,FN$5-FN$5/(1-FN$3)*($DE41-FN$3))*Input!$B$1 -> 0.050578125 | FO41: =+IF($DE41<=FO$3,FO$5/FO$3*$DE41,FO$5-FO$5/(1-FO$3)*($DE41-FO$3))*Input!$B$1 -> 0.0674375 | FP41: =+IF($DE41<=FP$3,FP$5/FP$3*$DE41,FP$5-FP$5/(1-FP$3)*($DE41-FP$3))*Input!$B$1 -> 0.084296875 | FQ41: =+IF($DE41<=FQ$3,FQ$5/FQ$3*$DE41,FQ$5-FQ$5/(1-FQ$3)*($DE41-FQ$3))*Input!$B$1 -> 0.10115625 | FR41: =+IF($DE41<=FR$3,FR$5/FR$3*$DE41,FR$5-FR$5/(1-FR$3)*($DE41-FR$3))*Input!$B$1 -> 0.118015625 | FS41: =+IF($DE41<=FS$3,FS$5/FS$3*$DE41,FS$5-FS$5/(1-FS$3)*($DE41-FS$3))*Input!$B$1 -> 0 | GA41: 0 | GB41: -0.002565717425 | GC41: -0.00513143485 | GD41: -0.007697152274 | GE41: -0.0102628697 | GF41: -0.01282858712 | GG41: -0.01539430455 | GH41: -0.01796002197 | GI41: -0.0205257394 | GJ41: -0.0205257394 | GK41: -0.00780942737 | GL41: 0.004906884659 | GM41: 0.01762319669 | GN41: 0.03033950872 | GO41: 0.04305582075 | GP41: 0.05577213277 | GQ41: 0.0684884448 | GR41: -0.05367024317 | HA41: 0 | HB41: -0.02565717425 | HC41: -0.0513143485 | HD41: -0.07697152274 | HE41: -0.102628697 | HF41: -0.1282858712 | HG41: -0.1539430455 | HH41: -0.1796002197 | HI41: -0.205257394 | HJ41: -0.205257394 | HK41: -0.0780942737 | HL41: 0.04906884659 | HM41: 0.1762319669 | HN41: 0.3033950872 | HO41: 0.4305582075 | HP41: 0.5577213277 | HQ41: 0.684884448 | HR41: -0.5367024317 | IM41: =+IF($DE41<=FK$3,1/6*(1-FK$3)*$DE41*(1-(1-FK$3)^2-$DE41^2),1/6*FK$3*(1-$DE41)*(1-FK$3^2-(1-$DE41)^2))*Input!$B$1^3 -> 0 | IN41: =+IF($DE41<=FL$3,1/6*(1-FL$3)*$DE41*(1-(1-FL$3)^2-$DE41^2),1/6*FL$3*(1-$DE41)*(1-FL$3^2-(1-$DE41)^2))*Input!$B$1^3 -> 0.003169164812 | IO41: =+IF($DE41<=FM$3,1/6*(1-FM$3)*$DE41*(1-(1-FM$3)^2-$DE41^2),1/6*FM$3*(1-$DE41)*(1-FM$3^2-(1-$DE41)^2))*Input!$B$1^3 -> 0.006031636255 | IP41: =+IF($DE41<=FN$3,1/6*(1-FN$3)*$DE41*(1-(1-FN$3)^2-$DE41^2),1/6*FN$3*(1-$DE41)*(1-FN$3^2-(1-$DE41)^2))*Input!$B$1^3 -> 0.00828072096 | IQ41: =+IF($DE41<=FO$3,1/6*(1-FO$3)*$DE41*(1-(1-FO$3)^2-$DE41^2),1/6*FO$3*(1-$DE41)*(1-FO$3^2-(1-$DE41)^2))*Input!$B$1^3 -> 0.009609725559 | IR41: =+IF($DE41<=FP$3,1/6*(1-FP$3)*$DE41*(1-(1-FP$3)^2-$DE41^2),1/6*FP$3*(1-$DE41)*(1-FP$3^2-(1-$DE41)^2))*Input!$B$1^3 -> 0.009711956682 | IS41: =+IF($DE41<=FQ$3,1/6*(1-FQ$3)*$DE41*(1-(1-FQ$3)^2-$DE41^2),1/6*FQ$3*(1-$DE41)*(1-FQ$3^2-(1-$DE41)^2))*Input!$B$1^3 -> 0.00828072096 | IT41: =+IF($DE41<=FR$3,1/6*(1-FR$3)*$DE41*(1-(1-FR$3)^2-$DE41^2),1/6*FR$3*(1-$DE41)*(1-FR$3^2-(1-$DE41)^2))*Input!$B$1^3 -> 0.005009325025 | IU41: =+IF($DE41<=FS$3,1/6*(1-FS$3)*$DE41*(1-(1-FS$3)^2-$DE41^2),1/6*FS$3*(1-$DE41)*(1-FS$3^2-(1-$DE41)^2))*Input!$B$1^3 -> 0 | JH41: 0 | JI41: -0.000420938015 | JJ41: -0.0008017866953 | JK41: -0.001102456706 | JL41: -0.001282858712 | JM41: -0.00130290338 | JN41: -0.001122501373 | JO41: -0.0007015633583 | JP41: 0 | JQ41: 0 | JR41: 0.001070943321 | JS41: 0.002283950009 | JT41: 0.003407694256 | JU41: 0.00421085025 | JV41: 0.004462092182 | JW41: 0.003930094243 | JX41: 0.002383530621 | JY41: 0 | KF41: 0 | KG41: -0.0420938015 | KH41: -0.08017866953 | KI41: -0.1102456706 | KJ41: -0.1282858712 | KK41: -0.130290338 | KL41: -0.1122501373 | KM41: -0.07015633583 | KN41: 0 | KO41: 0 | KP41: 0.1070943321 | KQ41: 0.2283950009 | KR41: 0.3407694256 | KS41: 0.421085025 | KT41: 0.4462092182 | KU41: 0.3930094243 | KV41: 0.2383530621 | KW41: 0
C42: 28 | D42: 0 | E42: -0.008404070213 | F42: -0.01680814043 | G42: -0.02521221064 | H42: -0.03361628085 | I42: -0.04202035107 | J42: -0.05042442128 | K42: -0.05882849149 | L42: -0.06723256171 | M42: -0.06723256171 | N42: -0.02644283445 | O42: 0.0143468928 | P42: 0.05513662005 | Q42: 0.09592634731 | R42: 0.1367160746 | S42: 0.1775058018 | T42: 0.2182955291 | U42: 0.2590852563 | V42: -0.006723256171 | W42: 0.0302426152 | X42: 0.0302426152 | Y42: -0.006723256171 | Z42: 0.03696587137 | AA42: -0.1440696513 | AJ42: 0 | AK42: -0.006723256171 | AZ42: -0.006723256171 | BA42: 0.0302426152 | BP42: 0.0302426152 | BQ42: =-$X15 -> -0.1138270361 | CF42: =-$X15 -> -0.1138270361 | CG42: =-$V15 -> 0.5969108464 | CN42: =-$V15 -> 0.5969108464 | CO42: =+$Y15 -> 0.4030891536 | CV42: =-$Y15 -> -0.4030891536 | CW42: 0 | DC42: 16 | DE42: 1 | DF42: =+(-3/2*DE42+3*DE42^2-3/2*DE42^3)/(4+3*Input!$B$1)*Input!$B$1^2 -> 0 | DG42: =+(-2*DE42+3*DE42^2-DE42^3)/(4*(1+Input!$B$1))*Input!$B$1^2 -> 0 | DH42: =(-2*DE42-3*Input!$B$1*DE42^2+(2+3*Input!$B$1)*DE42^3)*Input!$B$1/2/(4+3*Input!$B$1) -> 0 | DJ42: 0 | DL42: 0 | DM42: 0 | DO42: 1 | DP42: 1 | DS42: 0 | DU42: 0 | DV42: 0 | DW42: -1 | DY42: -1 | DZ42: -1 | EC42: 0 | ED42: 0 | EE42: 0 | EF42: 0 | EI42: 0 | EJ42: 0 | EK42: 0 | EL42: 0 | EN42: =+EB33*Input!$B$1^2 -> 0 | EO42: 0 | EP42: 0 | EQ42: 0 | ER42: 0 | ET42: =+EH33*Input!$B$1^2 -> 0 | EU42: 0 | EV42: 0 | EW42: 0 | EX42: 0 | FK42: 0 | FL42: =+IF($DE42<=FL$3,FL$5/FL$3*$DE42,FL$5-FL$5/(1-FL$3)*($DE42-FL$3))*Input!$B$1 -> 0 | FM42: =+IF($DE42<=FM$3,FM$5/FM$3*$DE42,FM$5-FM$5/(1-FM$3)*($DE42-FM$3))*Input!$B$1 -> 0 | FN42: =+IF($DE42<=FN$3,FN$5/FN$3*$DE42,FN$5-FN$5/(1-FN$3)*($DE42-FN$3))*Input!$B$1 -> 0 | FO42: =+IF($DE42<=FO$3,FO$5/FO$3*$DE42,FO$5-FO$5/(1-FO$3)*($DE42-FO$3))*Input!$B$1 -> 0 | FP42: =+IF($DE42<=FP$3,FP$5/FP$3*$DE42,FP$5-FP$5/(1-FP$3)*($DE42-FP$3))*Input!$B$1 -> 0 | FQ42: =+IF($DE42<=FQ$3,FQ$5/FQ$3*$DE42,FQ$5-FQ$5/(1-FQ$3)*($DE42-FQ$3))*Input!$B$1 -> 0 | FR42: =+IF($DE42<=FR$3,FR$5/FR$3*$DE42,FR$5-FR$5/(1-FR$3)*($DE42-FR$3))*Input!$B$1 -> 0 | FS42: =+IF($DE42<=FS$3,FS$5/FS$3*$DE42,FS$5-FS$5/(1-FS$3)*($DE42-FS$3))*Input!$B$1 -> 0 | GA42: 0 | GB42: 0 | GC42: 0 | GD42: 0 | GE42: 0 | GF42: 0 | GG42: 0 | GH42: 0 | GI42: 0 | GJ42: 0 | GK42: 0 | GL42: 0 | GM42: 0 | GN42: 0 | GO42: 0 | GP42: 0 | GQ42: 0 | GR42: 0 | HA42: 0 | HB42: 0 | HC42: 0 | HD42: 0 | HE42: 0 | HF42: 0 | HG42: 0 | HH42: 0 | HI42: 0 | HJ42: 0 | HK42: 0 | HL42: 0 | HM42: 0 | HN42: 0 | HO42: 0 | HP42: 0 | HQ42: 0 | HR42: 0 | IM42: =+IF($DE42<=FK$3,1/6*(1-FK$3)*$DE42*(1-(1-FK$3)^2-$DE42^2),1/6*FK$3*(1-$DE42)*(1-FK$3^2-(1-$DE42)^2))*Input!$B$1^3 -> 0 | IN42: =+IF($DE42<=FL$3,1/6*(1-FL$3)*$DE42*(1-(1-FL$3)^2-$DE42^2),1/6*FL$3*(1-$DE42)*(1-FL$3^2-(1-$DE42)^2))*Input!$B$1^3 -> 0 | IO42: =+IF($DE42<=FM$3,1/6*(1-FM$3)*$DE42*(1-(1-FM$3)^2-$DE42^2),1/6*FM$3*(1-$DE42)*(1-FM$3^2-(1-$DE42)^2))*Input!$B$1^3 -> 0 | IP42: =+IF($DE42<=FN$3,1/6*(1-FN$3)*$DE42*(1-(1-FN$3)^2-$DE42^2),1/6*FN$3*(1-$DE42)*(1-FN$3^2-(1-$DE42)^2))*Input!$B$1^3 -> 0 | IQ42: =+IF($DE42<=FO$3,1/6*(1-FO$3)*$DE42*(1-(1-FO$3)^2-$DE42^2),1/6*FO$3*(1-$DE42)*(1-FO$3^2-(1-$DE42)^2))*Input!$B$1^3 -> 0 | IR42: =+IF($DE42<=FP$3,1/6*(1-FP$3)*$DE42*(1-(1-FP$3)^2-$DE42^2),1/6*FP$3*(1-$DE42)*(1-FP$3^2-(1-$DE42)^2))*Input!$B$1^3 -> 0 | IS42: =+IF($DE42<=FQ$3,1/6*(1-FQ$3)*$DE42*(1-(1-FQ$3)^2-$DE42^2),1/6*FQ$3*(1-$DE42)*(1-FQ$3^2-(1-$DE42)^2))*Input!$B$1^3 -> 0 | IT42: =+IF($DE42<=FR$3,1/6*(1-FR$3)*$DE42*(1-(1-FR$3)^2-$DE42^2),1/6*FR$3*(1-$DE42)*(1-FR$3^2-(1-$DE42)^2))*Input!$B$1^3 -> 0 | IU42: =+IF($DE42<=FS$3,1/6*(1-FS$3)*$DE42*(1-(1-FS$3)^2-$DE42^2),1/6*FS$3*(1-$DE42)*(1-FS$3^2-(1-$DE42)^2))*Input!$B$1^3 -> 0 | JH42: 0 | JI42: 0 | JJ42: 0 | JK42: 0 | JL42: 0 | JM42: 0 | JN42: 0 | JO42: 0 | JP42: 0 | JQ42: 0 | JR42: 0 | JS42: 0 | JT42: 0 | JU42: 0 | JV42: 0 | JW42: 0 | JX42: 0 | JY42: 0 | KF42: 0 | KG42: 0 | KH42: 0 | KI42: 0 | KJ42: 0 | KK42: 0 | KL42: 0 | KM42: 0 | KN42: 0 | KO42: 0 | KP42: 0 | KQ42: 0 | KR42: 0 | KS42: 0 | KT42: 0 | KU42: 0 | KV42: 0 | KW42: 0
C43: 29 | D43: 0 | E43: -0.007222247839 | F43: -0.01444449568 | G43: -0.02166674352 | H43: -0.02888899136 | I43: -0.0361112392 | J43: -0.04333348704 | K43: -0.05055573488 | L43: -0.05777798272 | M43: -0.05777798272 | N43: -0.02272431086 | O43: 0.012329361 | P43: 0.04738303286 | Q43: 0.08243670472 | R43: 0.1174903766 | S43: 0.1525440484 | T43: 0.1875977203 | U43: 0.2226513922 | V43: -0.005777798272 | W43: 0.02598974744 | X43: 0.02598974744 | Y43: -0.005777798272 | Z43: 0.03176754571 | AA43: -0.1238098566 | AJ43: 0 | AK43: -0.005777798272 | AZ43: -0.005777798272 | BA43: 0.02598974744 | BP43: 0.02598974744 | BQ43: =-$X14 -> -0.09782010918 | CF43: =-$X14 -> -0.09782010918 | CG43: =-$V14 -> 0.4582827586 | CP43: =-$V14 -> 0.4582827586 | CQ43: =+$Y14 -> 0.5417172414 | CV43: =-$Y14 -> -0.5417172414 | CW43: 0 | DC43: =+DC42 -> 16 | DD43: 3 | DE43: 0 | DF43: =+(-3/2*DE43^2+3/2*DE43^3)/(4+3*Input!$B$1)*Input!$B$1^2 -> 0 | DG43: =+(DE43-DE43^3)/(4*(1+Input!$B$1))*Input!$B$1^2 -> 0 | DH43: =((-4-3*Input!$B$1)*DE43+6*(1+Input!$B$1)*DE43^2+(-2-3*Input!$B$1)*DE43^3)*Input!$B$1/2/(4+3*Input!$B$1) -> 0 | DJ43: 0 | DM43: 0 | DO43: =1-DE43 -> 1 | DP43: 1 | DS43: 0 | DV43: 0 | DZ43: 0 | EC43: 0 | ED43: 0 | EE43: 0 | EF43: 0 | EI43: 0 | EJ43: 0 | EK43: 0 | EL43: 0 | EO43: 0 | EP43: 0 | EQ43: 0 | ER43: 0 | EU43: 0 | EV43: 0 | EW43: 0 | EX43: 0 | GA43: 0 | GB43: 0 | GC43: 0 | GD43: 0 | GE43: 0 | GF43: 0 | GG43: 0 | GH43: 0 | GI43: 0 | GJ43: 0 | GK43: 0 | GL43: 0 | GM43: 0 | GN43: 0 | GO43: 0 | GP43: 0 | GQ43: 0 | GR43: 0 | HA43: 0 | HB43: 0 | HC43: 0 | HD43: 0 | HE43: 0 | HF43: 0 | HG43: 0 | HH43: 0 | HI43: 0 | HJ43: 0 | HK43: 0 | HL43: 0 | HM43: 0 | HN43: 0 | HO43: 0 | HP43: 0 | HQ43: 0 | HR43: 0 | JH43: 0 | JI43: 0 | JJ43: 0 | JK43: 0 | JL43: 0 | JM43: 0 | JN43: 0 | JO43: 0 | JP43: 0 | JQ43: 0 | JR43: 0 | JS43: 0 | JT43: 0 | JU43: 0 | JV43: 0 | JW43: 0 | JX43: 0 | JY43: 0 | KF43: 0 | KG43: 0 | KH43: 0 | KI43: 0 | KJ43: 0 | KK43: 0 | KL43: 0 | KM43: 0 | KN43: 0 | KO43: 0 | KP43: 0 | KQ43: 0 | KR43: 0 | KS43: 0 | KT43: 0 | KU43: 0 | KV43: 0 | KW43: 0
C44: 30 | D44: 0 | E44: -0.005252543883 | F44: -0.01050508777 | G44: -0.01575763165 | H44: -0.02101017553 | I44: -0.02626271942 | J44: -0.0315152633 | K44: -0.03676780718 | L44: -0.04202035107 | M44: -0.04202035107 | N44: -0.01652677153 | O44: 0.008966808001 | P44: 0.03446038753 | Q44: 0.05995396707 | R44: 0.0854475466 | S44: 0.1109411261 | T44: 0.1364347057 | U44: 0.1619282852 | V44: -0.004202035107 | W44: 0.0189016345 | X44: 0.0189016345 | Y44: -0.004202035107 | Z44: 0.02310366961 | AA44: -0.09004353209 | AJ44: 0 | AK44: -0.004202035107 | AZ44: -0.004202035107 | BA44: 0.0189016345 | BP44: 0.0189016345 | BQ44: =-$X13 -> -0.07114189758 | CF44: =-$X13 -> -0.07114189758 | CG44: =-$V13 -> 0.310569279 | CR44: =-$V13 -> 0.310569279 | CS44: =+$Y13 -> 0.689430721 | CV44: =-$Y13 -> -0.689430721 | CW44: 0 | DC44: =+DC43+1 -> 17 | DE44: =+DE43+1/8 -> 0.125 | DF44: =+(-3/2*DE44^2+3/2*DE44^3)/(4+3*Input!$B$1)*Input!$B$1^2 -> -0.003299162102 | DG44: =+(DE44-DE44^3)/(4*(1+Input!$B$1))*Input!$B$1^2 -> 0.0172265773 | DH44: =((-4-3*Input!$B$1)*DE44+6*(1+Input!$B$1)*DE44^2+(-2-3*Input!$B$1)*DE44^3)*Input!$B$1/2/(4+3*Input!$B$1) -> -0.05367024317 | DJ44: 0.01392741519 | DM44: -0.07657584741 | DO44: 0.875 | DP44: 0.96836623 | DS44: 0.01392741519 | DV44: -0.06264843222 | DZ44: -0.06264843222 | EC44: 0.0005498603503 | ED44: -0.002871096216 | EE44: 0 | EF44: -0.002321235866 | EI44: -0.001099720701 | EJ44: 0.005742192432 | EK44: 0 | EL44: 0.004642471731 | EO44: 0.001186598636 | EP44: -0.006195825634 | EQ44: 0.00965169873 | ER44: 0.004642471731 | EU44: -0.000593299318 | EV44: 0.003097912817 | EW44: -0.01930339746 | EX44: -0.01679878396 | GA44: 0 | GB44: 0.001740926899 | GC44: 0.003481853799 | GD44: 0.005222780698 | GE44: 0.006963707597 | GF44: 0.008704634496 | GG44: 0.0104455614 | GH44: 0.0121864883 | GI44: 0.01392741519 | GJ44: 0.01392741519 | GK44: 0.005477707899 | GL44: -0.002971999396 | GM44: -0.01142170669 | GN44: -0.01987141399 | GO44: -0.02832112128 | GP44: -0.03677082858 | GQ44: -0.04522053587 | GR44: -0.05367024317 | HA44: 0 | HB44: 0.01740926899 | HC44: 0.03481853799 | HD44: 0.05222780698 | HE44: 0.06963707597 | HF44: 0.08704634496 | HG44: 0.104455614 | HH44: 0.121864883 | HI44: 0.1392741519 | HJ44: 0.1392741519 | HK44: 0.05477707899 | HL44: -0.02971999396 | HM44: -0.1142170669 | HN44: -0.1987141399 | HO44: -0.2832112128 | HP44: -0.3677082858 | HQ44: -0.4522053587 | HR44: -0.5367024317 | JH44: 0 | JI44: 0.0002856208194 | JJ44: 0.000544039656 | JK44: 0.000748054527 | JL44: 0.0008704634496 | JM44: 0.000884064441 | JN44: 0.0007616555184 | JO44: 0.000476034699 | JP44: 0 | JQ44: 0 | JR44: -0.0007272135511 | JS44: -0.001554073542 | JT44: -0.002326869102 | JU44: -0.002891889361 | JV44: -0.003095423451 | JW44: -0.002783760501 | JX44: -0.00180318964 | JY44: 0 | KF44: 0 | KG44: 0.02856208194 | KH44: 0.0544039656 | KI44: 0.0748054527 | KJ44: 0.08704634496 | KK44: 0.0884064441 | KL44: 0.07616555184 | KM44: 0.0476034699 | KN44: 0 | KO44: 0 | KP44: -0.07272135511 | KQ44: -0.1554073542 | KR44: -0.2326869102 | KS44: -0.2891889361 | KT44: -0.3095423451 | KU44: -0.2783760501 | KV44: -0.180318964 | KW44: 0
C45: 31 | D45: 0 | E45: -0.002757585539 | F45: -0.005515171077 | G45: -0.008272756616 | H45: -0.01103034215 | I45: -0.01378792769 | J45: -0.01654551323 | K45: -0.01930309877 | L45: -0.02206068431 | M45: -0.02206068431 | N45: -0.008676555055 | O45: 0.0047075742 | P45: 0.01809170346 | Q45: 0.03147583271 | R45: 0.04485996197 | S45: 0.05824409122 | T45: 0.07162822048 | U45: 0.08501234973 | V45: -0.002206068431 | W45: 0.009923358113 | X45: 0.009923358113 | Y45: -0.002206068431 | Z45: 0.01212942654 | AA45: -0.04727285435 | AJ45: 0 | AK45: -0.002206068431 | AZ45: -0.002206068431 | BA45: 0.009923358113 | BP45: 0.009923358113 | BQ45: =-$X12 -> -0.03734949623 | CF45: =-$X12 -> -0.03734949623 | CG45: =-$V12 -> 0.1567988715 | CT45: =-$V12 -> 0.1567988715 | CU45: =+$Y12 -> 0.8432011285 | CV45: =-$Y12 -> -0.8432011285 | CW45: 0 | DC45: =+DC44+1 -> 18 | DE45: =+DE44+1/8 -> 0.25 | DF45: =+(-3/2*DE45^2+3/2*DE45^3)/(4+3*Input!$B$1)*Input!$B$1^2 -> -0.01131141292 | DG45: =+(DE45-DE45^3)/(4*(1+Input!$B$1))*Input!$B$1^2 -> 0.03281252818 | DH45: =((-4-3*Input!$B$1)*DE45+6*(1+Input!$B$1)*DE45^2+(-2-3*Input!$B$1)*DE45^3)*Input!$B$1/2/(4+3*Input!$B$1) -> -0.08285601229 | DJ45: 0.02150111526 | DM45: -0.1182176376 | DO45: 0.75 | DP45: 0.8826127884 | DS45: 0.02150111526 | DV45: -0.09671652229 | DZ45: -0.09671652229 | EC45: 0.001885235487 | ED45: -0.005468754697 | EE45: 0 | EF45: -0.00358351921 | EI45: -0.003770470974 | EJ45: 0.01093750939 | EK45: 0 | EL45: 0.007167038421 | EO45: 0.004068338181 | EP45: -0.01180157264 | EQ45: 0.01490027288 | ER45: 0.007167038421 | EU45: -0.00203416909 | EV45: 0.005900786318 | EW45: -0.02980054575 | EX45: -0.02593392853 | GA45: 0 | GB45: 0.002687639408 | GC45: 0.005375278816 | GD45: 0.008062918223 | GE45: 0.01075055763 | GF45: 0.01343819704 | GG45: 0.01612583645 | GH45: 0.01881347585 | GI45: 0.02150111526 | GJ45: 0.02150111526 | GK45: 0.008456474318 | GL45: -0.004588166626 | GM45: -0.01763280757 | GN45: -0.03067744851 | GO45: -0.04372208946 | GP45: -0.0567667304 | GQ45: -0.06981137135 | GR45: -0.08285601229 | HA45: 0 | HB45: 0.02687639408 | HC45: 0.05375278816 | HD45: 0.08062918223 | HE45: 0.1075055763 | HF45: 0.1343819704 | HG45: 0.1612583645 | HH45: 0.1881347585 | HI45: 0.2150111526 | HJ45: 0.2150111526 | HK45: 0.08456474318 | HL45: -0.04588166626 | HM45: -0.1763280757 | HN45: -0.3067744851 | HO45: -0.4372208946 | HP45: -0.567667304 | HQ45: -0.6981137135 | HR45: -0.8285601229 | JH45: 0 | JI45: 0.0004409408403 | JJ45: 0.0008398873149 | JK45: 0.001154845058 | JL45: 0.001343819704 | JM45: 0.001364816887 | JN45: 0.001175842241 | JO45: 0.0007349014006 | JP45: 0 | JQ45: 0 | JR45: -0.001122670802 | JS45: -0.002399175574 | JT45: -0.003592215789 | JU45: -0.004464492917 | JV45: -0.004778708431 | JW45: -0.004297563801 | JX45: -0.002783760501 | JY45: 0 | KF45: 0 | KG45: 0.04409408403 | KH45: 0.08398873149 | KI45: 0.1154845058 | KJ45: 0.1343819704 | KK45: 0.1364816887 | KL45: 0.1175842241 | KM45: 0.07349014006 | KN45: 0 | KO45: 0 | KP45: -0.1122670802 | KQ45: -0.2399175574 | KR45: -0.3592215789 | KS45: -0.4464492917 | KT45: -0.4778708431 | KU45: -0.4297563801 | KV45: -0.2783760501 | KW45: 0
C46: 32 | D46: 0 | E46: 0 | F46: 0 | G46: 0 | H46: 0 | I46: 0 | J46: 0 | K46: 0 | L46: 0 | M46: 0 | N46: 0 | O46: 0 | P46: 0 | Q46: 0 | R46: 0 | S46: 0 | T46: 0 | U46: 0 | V46: 0 | W46: 0 | X46: 0 | Y46: 0 | Z46: 0 | AA46: 0 | DC46: 19 | DE46: 0.375 | DF46: =+(-3/2*DE46^2+3/2*DE46^3)/(4+3*Input!$B$1)*Input!$B$1^2 -> -0.02120889923 | DG46: =+(DE46-DE46^3)/(4*(1+Input!$B$1))*Input!$B$1^2 -> 0.04511722625 | DH46: =((-4-3*Input!$B$1)*DE46+6*(1+Input!$B$1)*DE46^2+(-2-3*Input!$B$1)*DE46^3)*Input!$B$1/2/(4+3*Input!$B$1) -> -0.09213236679 | DJ46: 0.02390832702 | DM46: -0.1314529923 | DO46: 0.625 | DP46: 0.7564614783 | DS46: 0.02390832702 | DV46: -0.1075446653 | DZ46: -0.1075446653 | EC46: 0.003534816538 | ED46: -0.007519537709 | EE46: 0 | EF46: -0.003984721171 | EI46: -0.007069633076 | EJ46: 0.01503907542 | EK46: 0 | EL46: 0.007969442342 | EO46: 0.007628134089 | EP46: -0.01622716238 | EQ46: 0.01656847063 | ER46: 0.007969442342 | EU46: -0.003814067044 | EV46: 0.008113581188 | EW46: -0.03313694126 | EX46: -0.02883742711 | GA46: 0 | GB46: 0.002988540878 | GC46: 0.005977081756 | GD46: 0.008965622634 | GE46: 0.01195416351 | GF46: 0.01494270439 | GG46: 0.01793124527 | GH46: 0.02091978615 | GI46: 0.02390832702 | GJ46: 0.02390832702 | GK46: 0.009403240298 | GL46: -0.00510184643 | GM46: -0.01960693316 | GN46: -0.03411201988 | GO46: -0.04861710661 | GP46: -0.06312219334 | GQ46: -0.07762728007 | GR46: -0.09213236679 | HA46: 0 | HB46: 0.02988540878 | HC46: 0.05977081756 | HD46: 0.08965622634 | HE46: 0.1195416351 | HF46: 0.1494270439 | HG46: 0.1793124527 | HH46: 0.2091978615 | HI46: 0.2390832702 | HJ46: 0.2390832702 | HK46: 0.09403240298 | HL46: -0.0510184643 | HM46: -0.1960693316 | HN46: -0.3411201988 | HO46: -0.4861710661 | HP46: -0.6312219334 | HQ46: -0.7762728007 | HR46: -0.9213236679 | JH46: 0 | JI46: 0.0004903074878 | JJ46: 0.0009339190244 | JK46: 0.001284138659 | JL46: 0.001494270439 | JM46: 0.001517618415 | JN46: 0.001307486634 | JO46: 0.0008171791464 | JP46: 0 | JQ46: 0 | JR46: -0.001248362252 | JS46: -0.002667781346 | JT46: -0.003994391396 | JU46: -0.004964326518 | JV46: -0.005313720824 | JW46: -0.004778708431 | JX46: -0.003095423451 | JY46: 0 | KF46: 0 | KG46: 0.04903074878 | KH46: 0.09339190244 | KI46: 0.1284138659 | KJ46: 0.1494270439 | KK46: 0.1517618415 | KL46: 0.1307486634 | KM46: 0.08171791464 | KN46: 0 | KO46: 0 | KP46: -0.1248362252 | KQ46: -0.2667781346 | KR46: -0.3994391396 | KS46: -0.4964326518 | KT46: -0.5313720824 | KU46: -0.4778708431 | KV46: -0.3095423451 | KW46: 0
D47: ×L1/10 | V47: ×1 | DC47: 20 | DE47: 0.5 | DF47: =+(-3/2*DE47^2+3/2*DE47^3)/(4+3*Input!$B$1)*Input!$B$1^2 -> -0.03016376779 | DG47: =+(DE47-DE47^3)/(4*(1+Input!$B$1))*Input!$B$1^2 -> 0.05250004509 | DH47: =((-4-3*Input!$B$1)*DE47+6*(1+Input!$B$1)*DE47^2+(-2-3*Input!$B$1)*DE47^3)*Input!$B$1/2/(4+3*Input!$B$1) -> -0.0860743661 | DJ47: 0.0223362773 | DM47: -0.1228095335 | DO47: 0.5 | DP47: 0.6036341025 | DS47: 0.0223362773 | DV47: -0.1004732562 | DZ47: -0.1004732562 | EC47: 0.005027294632 | ED47: -0.008750007516 | EE47: 0 | EF47: -0.003722712884 | EI47: -0.01005458926 | EJ47: 0.01750001503 | EK47: 0 | EL47: 0.007445425768 | EO47: 0.01084890182 | EP47: -0.01888251622 | EQ47: 0.01547904017 | ER47: 0.007445425768 | EU47: -0.005424450908 | EV47: 0.009441258109 | EW47: -0.03095808034 | EX47: -0.02694127314 | GA47: 0 | GB47: 0.002792034663 | GC47: 0.005584069326 | GD47: 0.008376103989 | GE47: 0.01116813865 | GF47: 0.01396017331 | GG47: 0.01675220798 | GH47: 0.01954424264 | GI47: 0.0223362773 | GJ47: 0.0223362773 | GK47: 0.008784946877 | GL47: -0.004766383549 | GM47: -0.01831771397 | GN47: -0.0318690444 | GO47: -0.04542037483 | GP47: -0.05897170525 | GQ47: -0.07252303568 | GR47: -0.0860743661 | HA47: 0 | HB47: 0.02792034663 | HC47: 0.05584069326 | HD47: 0.08376103989 | HE47: 0.1116813865 | HF47: 0.1396017331 | HG47: 0.1675220798 | HH47: 0.1954424264 | HI47: 0.223362773 | HJ47: 0.223362773 | HK47: 0.08784946877 | HL47: -0.04766383549 | HM47: -0.1831771397 | HN47: -0.318690444 | HO47: -0.4542037483 | HP47: -0.5897170525 | HQ47: -0.7252303568 | HR47: -0.860743661 | JH47: 0 | JI47: 0.0004580681869 | JJ47: 0.0008725108322 | JK47: 0.001199702394 | JL47: 0.001396017331 | JM47: 0.001417830102 | JN47: 0.001221515165 | JO47: 0.0007634469781 | JP47: 0 | JQ47: 0 | JR47: -0.001166278402 | JS47: -0.002492366106 | JT47: -0.003731747261 | JU47: -0.004637906015 | JV47: -0.004964326518 | JW47: -0.004464492917 | JX47: -0.002891889361 | JY47: 0 | KF47: 0 | KG47: 0.04580681869 | KH47: 0.08725108322 | KI47: 0.1199702394 | KJ47: 0.1396017331 | KK47: 0.1417830102 | KL47: 0.1221515165 | KM47: 0.07634469781 | KN47: 0 | KO47: 0 | KP47: -0.1166278402 | KQ47: -0.2492366106 | KR47: -0.3731747261 | KS47: -0.4637906015 | KT47: -0.4964326518 | KU47: -0.4464492917 | KV47: -0.2891889361 | KW47: 0
C48: Span 1 | D48: =+HA70 -> 0 | E48: 0.4661159614 | F48: 0.7759819227 | G48: 0.9295978841 | H48: 0.9269638455 | I48: 0.7680798068 | J48: 0.4529457682 | K48: -0.01843827042 | L48: -0.6460723091 | M48: -0.6460723091 | N48: =+HK70 -> -0.5437228324 | O48: -0.4413733557 | P48: -0.3390238791 | Q48: -0.2366744024 | R48: -0.1343249258 | S48: -0.0319754491 | T48: 0.07037402756 | U48: 0.1727235042 | V48: =+DS70 -> -0.5646072309 | W48: =+DV70 -> 0.07588469076 | X48: =+DZ70 -> 0.07588469076 | Y48: =+DJ70 -> 0.4353927691 | Z48: =+DM70 -> 0.6404919217 | AA48: =+DP70 -> -0.09604643422 | AJ48: =+Y48 -> 0.4353927691 | AZ48: =+V48 -> -0.5646072309 | BA48: =+W48 -> 0.07588469076 | BP48: =+BA48 -> 0.07588469076 | BQ48: =-W51 -> -0.02016174347 | CF48: =-W51 -> -0.02016174347 | CG48: =-Y51 -> 0.00448217078 | CW48: =-Y51 -> 0.00448217078 | DC48: 21 | DE48: 0.625 | DF48: =+(-3/2*DE48^2+3/2*DE48^3)/(4+3*Input!$B$1)*Input!$B$1^2 -> -0.03534816538 | DG48: =+(DE48-DE48^3)/(4*(1+Input!$B$1))*Input!$B$1^2 -> 0.0533203583 | DH48: =((-4-3*Input!$B$1)*DE48+6*(1+Input!$B$1)*DE48^2+(-2-3*Input!$B$1)*DE48^3)*Input!$B$1/2/(4+3*Input!$B$1) -> -0.06925706965 | DJ48: 0.01797219292 | DM48: -0.09881488298 | DO48: 0.375 | DP48: 0.4378524639 | DS48: 0.01797219292 | DV48: -0.08084269006 | DZ48: -0.08084269006 | EC48: 0.005891360897 | ED48: -0.008886726383 | EE48: 0 | EF48: -0.002995365486 | EI48: -0.01178272179 | EJ48: 0.01777345277 | EK48: 0 | EL48: 0.005990730973 | EO48: 0.01271355681 | EP48: -0.01917755553 | EQ48: 0.01245472969 | ER48: 0.005990730973 | EU48: -0.006356778407 | EV48: 0.009588777767 | EW48: -0.02490945939 | EX48: -0.02167746003 | GA48: 0 | GB48: 0.002246524115 | GC48: 0.00449304823 | GD48: 0.006739572345 | GE48: 0.008986096459 | GF48: 0.01123262057 | GG48: 0.01347914469 | GH48: 0.0157256688 | GI48: 0.01797219292 | GJ48: 0.01797219292 | GK48: 0.007068535097 | GL48: -0.003835122724 | GM48: -0.01473878055 | GN48: -0.02564243837 | GO48: -0.03654609619 | GP48: -0.04744975401 | GQ48: -0.05835341183 | GR48: -0.06925706965 | HA48: 0 | HB48: 0.02246524115 | HC48: 0.0449304823 | HD48: 0.06739572345 | HE48: 0.08986096459 | HF48: 0.1123262057 | HG48: 0.1347914469 | HH48: 0.157256688 | HI48: 0.1797219292 | HJ48: 0.1797219292 | HK48: 0.07068535097 | HL48: -0.03835122724 | HM48: -0.1473878055 | HN48: -0.2564243837 | HO48: -0.3654609619 | HP48: -0.4744975401 | HQ48: -0.5835341183 | HR48: -0.6925706965 | JH48: 0 | JI48: 0.0003685703626 | JJ48: 0.0007020387859 | JK48: 0.0009653033306 | JL48: 0.001123262057 | JM48: 0.001140813027 | JN48: 0.0009828543003 | JO48: 0.0006142839377 | JP48: 0 | JQ48: 0 | JR48: -0.0009384097517 | JS48: -0.002005405103 | JT48: -0.003002634718 | JU48: -0.003731747261 | JV48: -0.003994391396 | JW48: -0.003592215789 | JX48: -0.002326869102 | JY48: 0 | KF48: 0 | KG48: 0.03685703626 | KH48: 0.07020387859 | KI48: 0.09653033306 | KJ48: 0.1123262057 | KK48: 0.1140813027 | KL48: 0.09828543003 | KM48: 0.06142839377 | KN48: 0 | KO48: 0 | KP48: -0.09384097517 | KQ48: -0.2005405103 | KR48: -0.3002634718 | KS48: -0.3731747261 | KT48: -0.3994391396 | KU48: -0.3592215789 | KV48: -0.2326869102 | KW48: 0
C49: Span 2 | D49: 0 | E49: -0.07432854509 | F49: -0.1486570902 | G49: -0.2229856353 | H49: -0.2973141803 | I49: -0.3716427254 | J49: -0.4459712705 | K49: -0.5202998156 | L49: -0.5946283607 | M49: -0.5946283607 | N49: 0.03899928042 | O49: 0.4907142653 | P49: 0.7605165939 | Q49: 0.8484062662 | R49: 0.7543832823 | S49: 0.4784476422 | T49: 0.0205993458 | U49: -0.6191616068 | V49: =+DS71 -> -0.05946283607 | W49: =+DV71 -> 0.5372262979 | X49: =+DZ71 -> -0.5417737021 | Y49: =+DJ71 -> -0.05946283607 | Z49: =+DM71 -> 0.5966891339 | AA49: =+DP71 -> 0.6140474644 | AJ49: =+Y49 -> -0.05946283607 | AZ49: =+Y49 -> -0.05946283607 | BA49: =+W49 -> 0.5372262979 | BP49: =+X49 -> -0.5417737021 | BQ49: =-W50 -> 0.07227376227 | CF49: =-W50 -> 0.07227376227 | CG49: =-Y50 -> -0.01606722881 | CW49: =-Y50 -> -0.01606722881 | DC49: 22 | DE49: 0.75 | DF49: =+(-3/2*DE49^2+3/2*DE49^3)/(4+3*Input!$B$1)*Input!$B$1^2 -> -0.03393423876 | DG49: =+(DE49-DE49^3)/(4*(1+Input!$B$1))*Input!$B$1^2 -> 0.04593753946 | DH49: =((-4-3*Input!$B$1)*DE49+6*(1+Input!$B$1)*DE49^2+(-2-3*Input!$B$1)*DE49^3)*Input!$B$1/2/(4+3*Input!$B$1) -> -0.04625553687 | DJ49: 0.01200330069 | DM49: -0.06599666266 | DO49: 0.25 | DP49: 0.2728383653 | DS49: 0.01200330069 | DV49: -0.05399336197 | DZ49: -0.05399336197 | EC49: 0.005655706461 | ED49: -0.007656256576 | EE49: 0 | EF49: -0.002000550115 | EI49: -0.01131141292 | EJ49: 0.01531251315 | EK49: 0 | EL49: 0.004001100231 | EO49: 0.01220501454 | EP49: -0.01652220169 | EQ49: 0.00831828738 | ER49: 0.004001100231 | EU49: -0.006102507271 | EV49: 0.008261100846 | EW49: -0.01663657476 | EX49: -0.01447798119 | GA49: 0 | GB49: 0.001500412587 | GC49: 0.003000825173 | GD49: 0.00450123776 | GE49: 0.006001650346 | GF49: 0.007502062933 | GG49: 0.00900247552 | GH49: 0.01050288811 | GI49: 0.01200330069 | GJ49: 0.01200330069 | GK49: 0.004720945998 | GL49: -0.002561408697 | GM49: -0.009843763392 | GN49: -0.01712611809 | GO49: -0.02440847278 | GP49: -0.03169082748 | GQ49: -0.03897318217 | GR49: -0.04625553687 | HA49: 0 | HB49: 0.01500412587 | HC49: 0.03000825173 | HD49: 0.0450123776 | HE49: 0.06001650346 | HF49: 0.07502062933 | HG49: 0.0900247552 | HH49: 0.1050288811 | HI49: 0.1200330069 | HJ49: 0.1200330069 | HK49: 0.04720945998 | HL49: -0.02561408697 | HM49: -0.09843763392 | HN49: -0.1712611809 | HO49: -0.2440847278 | HP49: -0.3169082748 | HQ49: -0.3897318217 | HR49: -0.4625553687 | JH49: 0 | JI49: 0.00024616144 | JJ49: 0.0004688789333 | JK49: 0.0006447085333 | JL49: 0.0007502062933 | JM49: 0.0007619282666 | JN49: 0.0006564305066 | JO49: 0.0004102690666 | JP49: 0 | JQ49: 0 | JR49: -0.0006267468012 | JS49: -0.001339373585 | JT49: -0.002005405103 | JU49: -0.002492366106 | JV49: -0.002667781346 | JW49: -0.002399175574 | JX49: -0.001554073542 | JY49: 0 | KF49: 0 | KG49: 0.024616144 | KH49: 0.04688789333 | KI49: 0.06447085333 | KJ49: 0.07502062933 | KK49: 0.07619282666 | KL49: 0.06564305066 | KM49: 0.04102690666 | KN49: 0 | KO49: 0 | KP49: -0.06267468012 | KQ49: -0.1339373585 | KR49: -0.2005405103 | KS49: -0.2492366106 | KT49: -0.2667781346 | KU49: -0.2399175574 | KV49: -0.1554073542 | KW49: 0
C50: Span 3 | D50: 0 | E50: 0.02008403601 | F50: 0.04016807202 | G50: 0.06025210803 | H50: 0.08033614403 | I50: 0.10042018 | J50: 0.1205042161 | K50: 0.1405882521 | L50: 0.1606722881 | M50: 0.1606722881 | N50: 0.0631930512 | O50: -0.03428618566 | P50: -0.1317654225 | Q50: -0.2292446594 | R50: -0.3267238963 | S50: -0.4242031331 | T50: -0.52168237 | U50: -0.6191616068 | V50: =+DS72 -> 0.01606722881 | W50: =+DV72 -> -0.07227376227 | X50: =+DZ72 -> -0.07227376227 | Y50: =+DJ72 -> 0.01606722881 | Z50: =+DM72 -> -0.08834099108 | AA50: =+DP72 -> 0.6140474644 | DC50: 23 | DE50: 0.875 | DF50: =+(-3/2*DE50^2+3/2*DE50^3)/(4+3*Input!$B$1)*Input!$B$1^2 -> -0.02309413471 | DG50: =+(DE50-DE50^3)/(4*(1+Input!$B$1))*Input!$B$1^2 -> 0.02871096216 | DH50: =((-4-3*Input!$B$1)*DE50+6*(1+Input!$B$1)*DE50^2+(-2-3*Input!$B$1)*DE50^3)*Input!$B$1/2/(4+3*Input!$B$1) -> -0.02164482717 | DJ50: 0.005616827446 | DM50: -0.03088249438 | DO50: 0.125 | DP50: 0.1223136097 | DS50: 0.005616827446 | DV50: -0.02526566693 | DZ50: -0.02526566693 | EC50: 0.003849022452 | ED50: -0.00478516036 | EE50: 0 | EF50: -0.0009361379077 | EI50: -0.007698044905 | EJ50: 0.00957032072 | EK50: 0 | EL50: 0.001872275815 | EO50: 0.008306190452 | EP50: -0.01032637606 | EQ50: 0.00389246142 | ER50: 0.001872275815 | EU50: -0.004153095226 | EV50: 0.005163188029 | EW50: -0.00778492284 | EX50: -0.006774830038 | GA50: 0 | GB50: 0.0007021034308 | GC50: 0.001404206862 | GD50: 0.002106310292 | GE50: 0.002808413723 | GF50: 0.003510517154 | GG50: 0.004212620585 | GH50: 0.004914724015 | GI50: 0.005616827446 | GJ50: 0.005616827446 | GK50: 0.002209120619 | GL50: -0.001198586209 | GM50: -0.004606293036 | GN50: -0.008013999864 | GO50: -0.01142170669 | GP50: -0.01482941352 | GQ50: -0.01823712035 | GR50: -0.02164482717 | HA50: 0 | HB50: 0.007021034308 | HC50: 0.01404206862 | HD50: 0.02106310292 | HE50: 0.02808413723 | HF50: 0.03510517154 | HG50: 0.04212620585 | HH50: 0.04914724015 | HI50: 0.05616827446 | HJ50: 0.05616827446 | HK50: 0.02209120619 | HL50: -0.01198586209 | HM50: -0.04606293036 | HN50: -0.08013999864 | HO50: -0.1142170669 | HP50: -0.1482941352 | HQ50: -0.1823712035 | HR50: -0.2164482717 | JH50: 0 | JI50: 0.0001151888441 | JJ50: 0.0002194073221 | JK50: 0.0003016850679 | JL50: 0.0003510517154 | JM50: 0.0003565368984 | JN50: 0.000307170251 | JO50: 0.0001919814068 | JP50: 0 | JQ50: 0 | JR50: -0.0002932800506 | JS50: -0.0006267468012 | JT50: -0.0009384097517 | JU50: -0.001166278402 | JV50: -0.001248362252 | JW50: -0.001122670802 | JX50: -0.0007272135511 | JY50: 0 | KF50: 0 | KG50: 0.01151888441 | KH50: 0.02194073221 | KI50: 0.03016850679 | KJ50: 0.03510517154 | KK50: 0.03565368984 | KL50: 0.0307170251 | KM50: 0.01919814068 | KN50: 0 | KO50: 0 | KP50: -0.02932800506 | KQ50: -0.06267468012 | KR50: -0.09384097517 | KS50: -0.1166278402 | KT50: -0.1248362252 | KU50: -0.1122670802 | KV50: -0.07272135511 | KW50: 0
C51: Span 4 | D51: 0 | E51: -0.005602713475 | F51: -0.01120542695 | G51: -0.01680814043 | H51: -0.0224108539 | I51: -0.02801356738 | J51: -0.03361628085 | K51: -0.03921899433 | L51: -0.0448217078 | M51: -0.0448217078 | N51: -0.0176285563 | O51: 0.009564595201 | P51: 0.0367577467 | Q51: 0.06395089821 | R51: 0.09114404971 | S51: 0.1183372012 | T51: 0.1455303527 | U51: 0.1727235042 | V51: =+DS73 -> -0.00448217078 | W51: =+DV73 -> 0.02016174347 | X51: =+DZ73 -> 0.02016174347 | Y51: =+DJ73 -> -0.00448217078 | Z51: =+DM73 -> 0.02464391425 | AA51: =+DP73 -> -0.09604643422 | DC51: 24 | DE51: 1 | DF51: =+(-3/2*DE51^2+3/2*DE51^3)/(4+3*Input!$B$1)*Input!$B$1^2 -> 0 | DG51: =+(DE51-DE51^3)/(4*(1+Input!$B$1))*Input!$B$1^2 -> 0 | DH51: =((-4-3*Input!$B$1)*DE51+6*(1+Input!$B$1)*DE51^2+(-2-3*Input!$B$1)*DE51^3)*Input!$B$1/2/(4+3*Input!$B$1) -> -1.324228983e-16 | DJ51: 0 | DM51: -1.227274312e-16 | DO51: 0 | DP51: 2.454548624e-16 | DS51: 0 | DV51: -1.227274312e-16 | DZ51: -1.227274312e-16 | EC51: 0 | ED51: 0 | EE51: 0 | EF51: 0 | EI51: 0 | EJ51: 0 | EK51: 0 | EL51: 0 | EO51: 0 | EP51: 0 | EQ51: 2.381405121e-17 | ER51: 2.381405121e-17 | EU51: 0 | EV51: 0 | EW51: -4.762810241e-17 | EX51: -4.762810241e-17 | GA51: 0 | GB51: 0 | GC51: 0 | GD51: 0 | GE51: 0 | GF51: 0 | GG51: 0 | GH51: 0 | GI51: 0 | GJ51: 0 | GK51: -1.655286229e-17 | GL51: -3.310572457e-17 | GM51: -4.965858686e-17 | GN51: -6.621144914e-17 | GO51: -8.276431143e-17 | GP51: -9.931717371e-17 | GQ51: -1.15870036e-16 | GR51: -1.324228983e-16 | HA51: 0 | HB51: 0 | HC51: 0 | HD51: 0 | HE51: 0 | HF51: 0 | HG51: 0 | HH51: 0 | HI51: 0 | HJ51: 0 | HK51: -1.655286229e-16 | HL51: -3.310572457e-16 | HM51: -4.965858686e-16 | HN51: -6.621144914e-16 | HO51: -8.276431143e-16 | HP51: -9.931717371e-16 | HQ51: -1.15870036e-15 | HR51: -1.324228983e-15 | JH51: 0 | JI51: 0 | JJ51: 0 | JK51: 0 | JL51: 0 | JM51: 0 | JN51: 0 | JO51: 0 | JP51: 0 | JQ51: 0 | JR51: -3.161733904e-18 | JS51: -6.022350294e-18 | JT51: -8.280731654e-18 | JU51: -9.63576047e-18 | JV51: -9.786319227e-18 | JW51: -8.431290411e-18 | JX51: -5.269556507e-18 | JY51: 0 | KF51: 0 | KG51: 0 | KH51: 0 | KI51: 0 | KJ51: 0 | KK51: 0 | KL51: 0 | KM51: 0 | KN51: 0 | KO51: 0 | KP51: -3.161733904e-16 | KQ51: -6.022350294e-16 | KR51: -8.280731654e-16 | KS51: -9.63576047e-16 | KT51: -9.786319227e-16 | KU51: -8.431290411e-16 | KV51: -5.269556507e-16 | KW51: 0
C52: Sum | D52: =+HA75 -> 0 | E52: 0.4062687388 | F52: 0.6562874776 | G52: 0.7500562164 | H52: 0.6875749553 | I52: 0.4688436941 | J52: 0.0938624329 | K52: -0.4373688283 | L52: -1.124850089 | M52: -1.124850089 | N52: -0.4591590571 | O52: 0.02461931908 | P52: 0.326485039 | Q52: 0.4464381026 | R52: 0.38447851 | S52: 0.1406062612 | T52: -0.2851786439 | U52: -0.8928762053 | V52: =+DS75 -> -0.6124850089 | W52: =+DV75 -> 0.5609989698 | X52: =+DZ75 -> -0.5180010302 | Y52: =+DJ75 -> 0.3875149911 | Z52: =+DM75 -> 1.173483979 | AA52: =+DP75 -> 1.03600206 | AJ52: =+Y52 -> 0.3875149911 | AZ52: =+V52 -> -0.6124850089 | BA52: =+W52 -> 0.5609989698 | BP52: =+X52 -> -0.5180010302 | BQ52: =-X52 -> 0.5180010302 | CF52: =-W52 -> -0.5609989698 | CG52: =-V52 -> 0.6124850089 | CW52: =-Y52 -> -0.3875149911 | DC52: =+DC51 -> 24 | DD52: 4 | DE52: 0 | DF52: =+(-2*DE52+3*DE52^2-DE52^3)/(4+3*Input!$B$1) -> 0 | DG52: =+(2*DE52-3*DE52^2+DE52^3)/(4*(1+Input!$B$1)) -> 0 | DH52: =((-2-3/2*Input!$B$1)*DE52+3*(1+Input!$B$1)*DE52^2+(-1-3/2*Input!$B$1)*DE52^3)/(4+3*Input!$B$1)/Input!$B$1 -> 0 | DJ52: 0 | DM52: 0 | DP52: 0 | DS52: 0 | DV52: 0 | DZ52: 0 | EC52: 0 | ED52: 0 | EE52: 0 | EF52: 0 | EI52: 0 | EJ52: 0 | EK52: 0 | EL52: 0 | EO52: 0 | EP52: 0 | EQ52: 0 | ER52: 0 | EU52: 0 | EV52: 0 | EW52: 0 | EX52: 0 | GA52: 0 | GB52: 0 | GC52: 0 | GD52: 0 | GE52: 0 | GF52: 0 | GG52: 0 | GH52: 0 | GI52: 0 | GJ52: 0 | GK52: 0 | GL52: 0 | GM52: 0 | GN52: 0 | GO52: 0 | GP52: 0 | GQ52: 0 | GR52: 0 | HA52: 0 | HB52: 0 | HC52: 0 | HD52: 0 | HE52: 0 | HF52: 0 | HG52: 0 | HH52: 0 | HI52: 0 | HJ52: 0 | HK52: 0 | HL52: 0 | HM52: 0 | HN52: 0 | HO52: 0 | HP52: 0 | HQ52: 0 | HR52: 0 | JH52: 0 | JI52: 0 | JJ52: 0 | JK52: 0 | JL52: 0 | JM52: 0 | JN52: 0 | JO52: 0 | JP52: 0 | JQ52: 0 | JR52: 0 | JS52: 0 | JT52: 0 | JU52: 0 | JV52: 0 | JW52: 0 | JX52: 0 | JY52: 0 | KF52: 0 | KG52: 0 | KH52: 0 | KI52: 0 | KJ52: 0 | KK52: 0 | KL52: 0 | KM52: 0 | KN52: 0 | KO52: 0 | KP52: 0 | KQ52: 0 | KR52: 0 | KS52: 0 | KT52: 0 | KU52: 0 | KV52: 0 | KW52: 0
D53: ×L12/10 | V53: ×L1 | DC53: =+DC52+1 -> 25 | DE53: =+DE52+1/8 -> 0.125 | DF53: =+(-2*DE53+3*DE53^2-DE53^3)/(4+3*Input!$B$1) -> -0.02833744991 | DG53: =+(2*DE53-3*DE53^2+DE53^3)/(4*(1+Input!$B$1)) -> 0.02466066919 | DH53: =(DE53-3/2*DE53^2+1/2*DE53^3)/(4+3*Input!$B$1) -> 0.01416872496 | DJ53: -0.003676780718 | DM53: 0.02021571091 | DP53: -0.07878809058 | DS53: -0.003676780718 | DV53: 0.01653893019 | DZ53: 0.01653893019 | EC53: 0.004722908318 | ED53: -0.004110111532 | EE53: 0 | EF53: 0.0006127967864 | EI53: -0.009445816637 | EJ53: 0.008220223064 | EK53: 0 | EL53: -0.001225593573 | EO53: 0.01019203615 | EP53: -0.008869620686 | EQ53: -0.002548009038 | ER53: -0.001225593573 | EU53: -0.005096018076 | EV53: 0.004434810343 | EW53: 0.005096018076 | EX53: 0.004434810343 | GA53: 0 | GB53: -0.0004595975898 | GC53: -0.0009191951796 | GD53: -0.001378792769 | GE53: -0.001838390359 | GF53: -0.002297987949 | GG53: -0.002757585539 | GH53: -0.003217183128 | GI53: -0.003676780718 | GJ53: -0.003676780718 | GK53: -0.001446092509 | GL53: 0.0007845957001 | GM53: 0.003015283909 | GN53: 0.005245972118 | GO53: 0.007476660328 | GP53: 0.009707348537 | GQ53: 0.01193803675 | GR53: 0.01416872496 | HA53: =+GA53*10 -> 0 | HB53: =+GB53*10 -> -0.004595975898 | HC53: =+GC53*10 -> -0.009191951796 | HD53: =+GD53*10 -> -0.01378792769 | HE53: =+GE53*10 -> -0.01838390359 | HF53: =+GF53*10 -> -0.02297987949 | HG53: =+GG53*10 -> -0.02757585539 | HH53: =+GH53*10 -> -0.03217183128 | HI53: =+GI53*10 -> -0.03676780718 | HJ53: =+GJ53*10 -> -0.03676780718 | HK53: =+GK53*10 -> -0.01446092509 | HL53: =+GL53*10 -> 0.007845957001 | HM53: =+GM53*10 -> 0.03015283909 | HN53: =+GN53*10 -> 0.05245972118 | HO53: =+GO53*10 -> 0.07476660328 | HP53: =+GP53*10 -> 0.09707348537 | HQ53: =+GQ53*10 -> 0.1193803675 | HR53: =+GR53*10 -> 0.1416872496 | JH53: 0 | JI53: -7.540272957e-05 | JJ53: -0.0001436242468 | JK53: -0.0001974833394 | JL53: -0.0002297987949 | JM53: -0.0002333894011 | JN53: -0.0002010739455 | JO53: -0.000125671216 | JP53: 0 | JQ53: 0 | JR53: 0.0001919814068 | JS53: 0.0004102690666 | JT53: 0.0006142839377 | JU53: 0.0007634469781 | JV53: 0.0008171791464 | JW53: 0.0007349014006 | JX53: 0.000476034699 | JY53: 0 | KF53: =+JH53*100 -> 0 | KG53: =+JI53*100 -> -0.007540272957 | KH53: =+JJ53*100 -> -0.01436242468 | KI53: =+JK53*100 -> -0.01974833394 | KJ53: =+JL53*100 -> -0.02297987949 | KK53: =+JM53*100 -> -0.02333894011 | KL53: =+JN53*100 -> -0.02010739455 | KM53: =+JO53*100 -> -0.0125671216 | KN53: =+JP53*100 -> 0 | KO53: =+JQ53*100 -> 0 | KP53: =+JR53*100 -> 0.01919814068 | KQ53: =+JS53*100 -> 0.04102690666 | KR53: =+JT53*100 -> 0.06142839377 | KS53: =+JU53*100 -> 0.07634469781 | KT53: =+JV53*100 -> 0.08171791464 | KU53: =+JW53*100 -> 0.07349014006 | KV53: =+JX53*100 -> 0.0476034699 | KW53: =+JY53*100 -> 0
DC54: =+DC53+1 -> 26 | DE54: =+DE53+1/8 -> 0.25 | DF54: =+(-2*DE54+3*DE54^2-DE54^3)/(4+3*Input!$B$1) -> -0.04533991986 | DG54: =+(2*DE54-3*DE54^2+DE54^3)/(4*(1+Input!$B$1)) -> 0.03945707071 | DH54: =(DE54-3/2*DE54^2+1/2*DE54^3)/(4+3*Input!$B$1) -> 0.02266995993 | DJ54: -0.005882849149 | DM54: 0.03234513745 | DP54: -0.1260609449 | DS54: -0.005882849149 | DV54: 0.0264622883 | DZ54: 0.0264622883 | EC54: 0.007556653309 | ED54: -0.006576178451 | EE54: 0 | EF54: 0.0009804748582 | EI54: -0.01511330662 | EJ54: 0.0131523569 | EK54: 0 | EL54: -0.001960949716 | EO54: 0.01630725784 | EP54: -0.0141913931 | EQ54: -0.00407681446 | ER54: -0.001960949716 | EU54: -0.008153628921 | EV54: 0.007095696549 | EW54: 0.008153628921 | EX54: 0.007095696549 | GA54: 0 | GB54: -0.0007353561437 | GC54: -0.001470712287 | GD54: -0.002206068431 | GE54: -0.002941424575 | GF54: -0.003676780718 | GG54: -0.004412136862 | GH54: -0.005147493006 | GI54: -0.005882849149 | GJ54: -0.005882849149 | GK54: -0.002313748015 | GL54: 0.00125535312 | GM54: 0.004824454255 | GN54: 0.008393555389 | GO54: 0.01196265652 | GP54: 0.01553175766 | GQ54: 0.01910085879 | GR54: 0.02266995993 | HA54: 0 | HB54: -0.007353561437 | HC54: -0.01470712287 | HD54: -0.02206068431 | HE54: -0.02941424575 | HF54: -0.03676780718 | HG54: -0.04412136862 | HH54: -0.05147493006 | HI54: -0.05882849149 | HJ54: -0.05882849149 | HK54: -0.02313748015 | HL54: 0.0125535312 | HM54: 0.04824454255 | HN54: 0.08393555389 | HO54: 0.1196265652 | HP54: 0.1553175766 | HQ54: 0.1910085879 | HR54: 0.2266995993 | JH54: 0 | JI54: -0.0001206443673 | JJ54: -0.0002297987949 | JK54: -0.000315973343 | JL54: -0.0003676780718 | JM54: -0.0003734230417 | JN54: -0.0003217183128 | JO54: -0.0002010739455 | JP54: 0 | JQ54: 0 | JR54: 0.000307170251 | JS54: 0.0006564305066 | JT54: 0.0009828543003 | JU54: 0.001221515165 | JV54: 0.001307486634 | JW54: 0.001175842241 | JX54: 0.0007616555184 | JY54: 0 | KF54: 0 | KG54: -0.01206443673 | KH54: -0.02297987949 | KI54: -0.0315973343 | KJ54: -0.03676780718 | KK54: -0.03734230417 | KL54: -0.03217183128 | KM54: -0.02010739455 | KN54: 0 | KO54: 0 | KP54: 0.0307170251 | KQ54: 0.06564305066 | KR54: 0.09828543003 | KS54: 0.1221515165 | KT54: 0.1307486634 | KU54: 0.1175842241 | KV54: 0.07616555184 | KW54: 0
D55: Deflection | V55: Slope | DC55: 27 | DE55: 0.375 | DF55: =+(-2*DE55+3*DE55^2-DE55^3)/(4+3*Input!$B$1) -> -0.05262669269 | DG55: =+(2*DE55-3*DE55^2+DE55^3)/(4*(1+Input!$B$1)) -> 0.04579838564 | DH55: =(DE55-3/2*DE55^2+1/2*DE55^3)/(4+3*Input!$B$1) -> 0.02631334635 | DJ55: -0.006828307048 | DM55: 0.03754346311 | DP55: -0.1463207396 | DS55: -0.006828307048 | DV55: 0.03071515606 | DZ55: 0.03071515606 | EC55: 0.008771115448 | ED55: -0.007633064274 | EE55: 0 | EF55: 0.001138051175 | EI55: -0.0175422309 | EJ55: 0.01526612855 | EK55: 0 | EL55: -0.002276102349 | EO55: 0.01892806714 | EP55: -0.0164721527 | EQ55: -0.004732016784 | ER55: -0.002276102349 | EU55: -0.009464033569 | EV55: 0.008236076351 | EW55: 0.009464033569 | EX55: 0.008236076351 | GA55: 0 | GB55: -0.000853538381 | GC55: -0.001707076762 | GD55: -0.002560615143 | GE55: -0.003414153524 | GF55: -0.004267691905 | GG55: -0.005121230286 | GH55: -0.005974768667 | GI55: -0.006828307048 | GJ55: -0.006828307048 | GK55: -0.002685600374 | GL55: 0.0014571063 | GM55: 0.005599812974 | GN55: 0.009742519648 | GO55: 0.01388522632 | GP55: 0.018027933 | GQ55: 0.02217063967 | GR55: 0.02631334635 | HA55: 0 | HB55: -0.00853538381 | HC55: -0.01707076762 | HD55: -0.02560615143 | HE55: -0.03414153524 | HF55: -0.04267691905 | HG55: -0.05121230286 | HH55: -0.05974768667 | HI55: -0.06828307048 | HJ55: -0.06828307048 | HK55: -0.02685600374 | HL55: 0.014571063 | HM55: 0.05599812974 | HN55: 0.09742519648 | HO55: 0.1388522632 | HP55: 0.18027933 | HQ55: 0.2217063967 | HR55: 0.2631334635 | JH55: 0 | JI55: -0.0001400336406 | JJ55: -0.0002667307441 | JK55: -0.0003667547731 | JL55: -0.0004267691905 | JM55: -0.0004334374591 | JN55: -0.0003734230417 | JO55: -0.0002333894011 | JP55: 0 | JQ55: 0 | JR55: 0.0003565368984 | JS55: 0.0007619282666 | JT55: 0.001140813027 | JU55: 0.001417830102 | JV55: 0.001517618415 | JW55: 0.001364816887 | JX55: 0.000884064441 | JY55: 0 | KF55: 0 | KG55: -0.01400336406 | KH55: -0.02667307441 | KI55: -0.03667547731 | KJ55: -0.04267691905 | KK55: -0.04334374591 | KL55: -0.03734230417 | KM55: -0.02333894011 | KN55: 0 | KO55: 0 | KP55: 0.03565368984 | KQ55: 0.07619282666 | KR55: 0.1140813027 | KS55: 0.1417830102 | KT55: 0.1517618415 | KU55: 0.1364816887 | KV55: 0.0884064441 | KW55: 0
D56: 0 | E56: =+D56+1 -> 1 | F56: 2 | G56: 3 | H56: 4 | I56: 5 | J56: 6 | K56: 7 | L56: 8 | M56: 8 | N56: =+M56+1 -> 9 | O56: 10 | P56: 11 | Q56: 12 | R56: 13 | S56: 14 | T56: 15 | U56: 16 | V56: SA | W56: lSB | X56: lSC | DC56: 28 | DE56: 0.5 | DF56: =+(-2*DE56+3*DE56^2-DE56^3)/(4+3*Input!$B$1) -> -0.05181705126 | DG56: =+(2*DE56-3*DE56^2+DE56^3)/(4*(1+Input!$B$1)) -> 0.04509379509 | DH56: =(DE56-3/2*DE56^2+1/2*DE56^3)/(4+3*Input!$B$1) -> 0.02590852563 | DJ56: -0.006723256171 | DM56: 0.03696587137 | DP56: -0.1440696513 | DS56: -0.006723256171 | DV56: 0.0302426152 | DZ56: 0.0302426152 | EC56: 0.008636175211 | ED56: -0.007515632516 | EE56: 0 | EF56: 0.001120542695 | EI56: -0.01727235042 | EJ56: 0.01503126503 | EK56: 0 | EL56: -0.00224108539 | EO56: 0.0186368661 | EP56: -0.01621873497 | EQ56: -0.004659216526 | ER56: -0.00224108539 | EU56: -0.009318433052 | EV56: 0.008109367484 | EW56: 0.009318433052 | EX56: 0.008109367484 | GA56: 0 | GB56: -0.0008404070213 | GC56: -0.001680814043 | GD56: -0.002521221064 | GE56: -0.003361628085 | GF56: -0.004202035107 | GG56: -0.005042442128 | GH56: -0.005882849149 | GI56: -0.006723256171 | GJ56: -0.006723256171 | GK56: -0.002644283445 | GL56: 0.00143468928 | GM56: 0.005513662005 | GN56: 0.009592634731 | GO56: 0.01367160746 | GP56: 0.01775058018 | GQ56: 0.02182955291 | GR56: 0.02590852563 | HA56: 0 | HB56: -0.008404070213 | HC56: -0.01680814043 | HD56: -0.02521221064 | HE56: -0.03361628085 | HF56: -0.04202035107 | HG56: -0.05042442128 | HH56: -0.05882849149 | HI56: -0.06723256171 | HJ56: -0.06723256171 | HK56: -0.02644283445 | HL56: 0.0143468928 | HM56: 0.05513662005 | HN56: 0.09592634731 | HO56: 0.1367160746 | HP56: 0.1775058018 | HQ56: 0.2182955291 | HR56: 0.2590852563 | JH56: 0 | JI56: -0.0001378792769 | JJ56: -0.0002626271942 | JK56: -0.000361112392 | JL56: -0.0004202035107 | JM56: -0.0004267691905 | JN56: -0.0003676780718 | JO56: -0.0002297987949 | JP56: 0 | JQ56: 0 | JR56: 0.0003510517154 | JS56: 0.0007502062933 | JT56: 0.001123262057 | JU56: 0.001396017331 | JV56: 0.001494270439 | JW56: 0.001343819704 | JX56: 0.0008704634496 | JY56: 0 | KF56: 0 | KG56: -0.01378792769 | KH56: -0.02626271942 | KI56: -0.0361112392 | KJ56: -0.04202035107 | KK56: -0.04267691905 | KL56: -0.03676780718 | KM56: -0.02297987949 | KN56: 0 | KO56: 0 | KP56: 0.03510517154 | KQ56: 0.07502062933 | KR56: 0.1123262057 | KS56: 0.1396017331 | KT56: 0.1494270439 | KU56: 0.1343819704 | KV56: 0.08704634496 | KW56: 0
D57: =+E57+1 -> 32 | E57: 31 | F57: 30 | G57: 29 | H57: 28 | I57: 27 | J57: 26 | K57: 25 | L57: =+M57 -> 24 | M57: =+N57+1 -> 24 | N57: 23 | O57: 22 | P57: 21 | Q57: 20 | R57: 19 | S57: 18 | T57: 17 | U57: 16 | DC57: 29 | DE57: 0.625 | DF57: =+(-2*DE57+3*DE57^2-DE57^3)/(4+3*Input!$B$1) -> -0.04453027843 | DG57: =+(2*DE57-3*DE57^2+DE57^3)/(4*(1+Input!$B$1)) -> 0.03875248016 | DH57: =(DE57-3/2*DE57^2+1/2*DE57^3)/(4+3*Input!$B$1) -> 0.02226513922 | DJ57: -0.005777798272 | DM57: 0.03176754571 | DP57: -0.1238098566 | DS57: -0.005777798272 | DV57: 0.02598974744 | DZ57: 0.02598974744 | EC57: 0.007421713072 | ED57: -0.006458746693 | EE57: 0 | EF57: 0.0009629663786 | EI57: -0.01484342614 | EJ57: 0.01291749339 | EK57: 0 | EL57: -0.001925932757 | EO57: 0.01601605681 | EP57: -0.01393797536 | EQ57: -0.004004014202 | ER57: -0.001925932757 | EU57: -0.008008028404 | EV57: 0.006968987682 | EW57: 0.008008028404 | EX57: 0.006968987682 | GA57: 0 | GB57: -0.0007222247839 | GC57: -0.001444449568 | GD57: -0.002166674352 | GE57: -0.002888899136 | GF57: -0.00361112392 | GG57: -0.004333348704 | GH57: -0.005055573488 | GI57: -0.005777798272 | GJ57: -0.005777798272 | GK57: -0.002272431086 | GL57: 0.0012329361 | GM57: 0.004738303286 | GN57: 0.008243670472 | GO57: 0.01174903766 | GP57: 0.01525440484 | GQ57: 0.01875977203 | GR57: 0.02226513922 | HA57: 0 | HB57: -0.007222247839 | HC57: -0.01444449568 | HD57: -0.02166674352 | HE57: -0.02888899136 | HF57: -0.0361112392 | HG57: -0.04333348704 | HH57: -0.05055573488 | HI57: -0.05777798272 | HJ57: -0.05777798272 | HK57: -0.02272431086 | HL57: 0.012329361 | HM57: 0.04738303286 | HN57: 0.08243670472 | HO57: 0.1174903766 | HP57: 0.1525440484 | HQ57: 0.1875977203 | HR57: 0.2226513922 | JH57: 0 | JI57: -0.0001184900036 | JJ57: -0.000225695245 | JK57: -0.0003103309619 | JL57: -0.000361112392 | JM57: -0.0003667547731 | JN57: -0.000315973343 | JO57: -0.0001974833394 | JP57: 0 | JQ57: 0 | JR57: 0.0003016850679 | JS57: 0.0006447085333 | JT57: 0.0009653033306 | JU57: 0.001199702394 | JV57: 0.001284138659 | JW57: 0.001154845058 | JX57: 0.000748054527 | JY57: 0 | KF57: 0 | KG57: -0.01184900036 | KH57: -0.0225695245 | KI57: -0.03103309619 | KJ57: -0.0361112392 | KK57: -0.03667547731 | KL57: -0.0315973343 | KM57: -0.01974833394 | KN57: 0 | KO57: 0 | KP57: 0.03016850679 | KQ57: 0.06447085333 | KR57: 0.09653033306 | KS57: 0.1199702394 | KT57: 0.1284138659 | KU57: 0.1154845058 | KV57: 0.0748054527 | KW57: 0
C58: =+E58 -> 0 | D58: =+KF25 -> 0 | E58: =+KG25 -> 0 | F58: =+KH25 -> 0 | G58: =+KI25 -> 0 | H58: =+KJ25 -> 0 | I58: =+KK25 -> 0 | J58: =+KL25 -> 0 | K58: =+KM25 -> 0 | L58: =+KN25 -> 0 | M58: =+KO25 -> 0 | N58: =+KP25 -> 0 | O58: =+KQ25 -> 0 | P58: =+KR25 -> 0 | Q58: =+KS25 -> 0 | R58: =+KT25 -> 0 | S58: =+KU25 -> 0 | T58: =+KV25 -> 0 | U58: =+KW25 -> 0 | V58: =+EF25*10 -> 0 | W58: =+EL25*10 -> 0 | X58: =+EX25*10 -> 0 | DC58: 30 | DE58: 0.75 | DF58: =+(-2*DE58+3*DE58^2-DE58^3)/(4+3*Input!$B$1) -> -0.03238565704 | DG58: =+(2*DE58-3*DE58^2+DE58^3)/(4*(1+Input!$B$1)) -> 0.02818362193 | DH58: =(DE58-3/2*DE58^2+1/2*DE58^3)/(4+3*Input!$B$1) -> 0.01619282852 | DJ58: -0.004202035107 | DM58: 0.02310366961 | DP58: -0.09004353209 | DS58: -0.004202035107 | DV58: 0.0189016345 | DZ58: 0.0189016345 | EC58: 0.005397609507 | ED58: -0.004697270322 | EE58: 0 | EF58: 0.0007003391844 | EI58: -0.01079521901 | EJ58: 0.009394540645 | EK58: 0 | EL58: -0.001400678369 | EO58: 0.01164804132 | EP58: -0.01013670936 | EQ58: -0.002912010329 | ER58: -0.001400678369 | EU58: -0.005824020658 | EV58: 0.005068354678 | EW58: 0.005824020658 | EX58: 0.005068354678 | GA58: 0 | GB58: -0.0005252543883 | GC58: -0.001050508777 | GD58: -0.001575763165 | GE58: -0.002101017553 | GF58: -0.002626271942 | GG58: -0.00315152633 | GH58: -0.003676780718 | GI58: -0.004202035107 | GJ58: -0.004202035107 | GK58: -0.001652677153 | GL58: 0.0008966808001 | GM58: 0.003446038753 | GN58: 0.005995396707 | GO58: 0.00854475466 | GP58: 0.01109411261 | GQ58: 0.01364347057 | GR58: 0.01619282852 | HA58: 0 | HB58: -0.005252543883 | HC58: -0.01050508777 | HD58: -0.01575763165 | HE58: -0.02101017553 | HF58: -0.02626271942 | HG58: -0.0315152633 | HH58: -0.03676780718 | HI58: -0.04202035107 | HJ58: -0.04202035107 | HK58: -0.01652677153 | HL58: 0.008966808001 | HM58: 0.03446038753 | HN58: 0.05995396707 | HO58: 0.0854475466 | HP58: 0.1109411261 | HQ58: 0.1364347057 | HR58: 0.1619282852 | JH58: 0 | JI58: -8.617454808e-05 | JJ58: -0.0001641419964 | JK58: -0.000225695245 | JL58: -0.0002626271942 | JM58: -0.0002667307441 | JN58: -0.0002297987949 | JO58: -0.0001436242468 | JP58: 0 | JQ58: 0 | JR58: 0.0002194073221 | JS58: 0.0004688789333 | JT58: 0.0007020387859 | JU58: 0.0008725108322 | JV58: 0.0009339190244 | JW58: 0.0008398873149 | JX58: 0.000544039656 | JY58: 0 | KF58: 0 | KG58: -0.008617454808 | KH58: -0.01641419964 | KI58: -0.0225695245 | KJ58: -0.02626271942 | KK58: -0.02667307441 | KL58: -0.02297987949 | KM58: -0.01436242468 | KN58: 0 | KO58: 0 | KP58: 0.02194073221 | KQ58: 0.04688789333 | KR58: 0.07020387859 | KS58: 0.08725108322 | KT58: 0.09339190244 | KU58: 0.08398873149 | KV58: 0.0544039656 | KW58: 0
C59: =+C58+1 -> 1 | D59: 0 | E59: 0.3335504915 | F59: 0.5349653459 | G59: 0.6023172594 | H59: 0.5662310117 | I59: 0.4573313823 | J59: 0.3062431509 | K59: 0.1435910969 | L59: 0 | M59: 0 | N59: -0.1062409213 | O59: -0.1637995452 | P59: -0.1818397458 | Q59: -0.1695253975 | R59: -0.1360203745 | S59: -0.09048855109 | T59: -0.0420938015 | U59: 0 | V59: -0.2887987559 | W59: 0.0990818868 | X59: -0.02660886206 | DC59: 31 | DE59: 0.875 | DF59: =+(-2*DE59+3*DE59^2-DE59^3)/(4+3*Input!$B$1) -> -0.01700246995 | DG59: =+(2*DE59-3*DE59^2+DE59^3)/(4*(1+Input!$B$1)) -> 0.01479640152 | DH59: =(DE59-3/2*DE59^2+1/2*DE59^3)/(4+3*Input!$B$1) -> 0.008501234973 | DJ59: -0.002206068431 | DM59: 0.01212942654 | DP59: -0.04727285435 | DS59: -0.002206068431 | DV59: 0.009923358113 | DZ59: 0.009923358113 | EC59: 0.002833744991 | ED59: -0.002466066919 | EE59: 0 | EF59: 0.0003676780718 | EI59: -0.005667489982 | EJ59: 0.004932133838 | EK59: 0 | EL59: -0.0007353561437 | EO59: 0.006115221691 | EP59: -0.005321772412 | EQ59: -0.001528805423 | ER59: -0.0007353561437 | EU59: -0.003057610845 | EV59: 0.002660886206 | EW59: 0.003057610845 | EX59: 0.002660886206 | GA59: 0 | GB59: -0.0002757585539 | GC59: -0.0005515171077 | GD59: -0.0008272756616 | GE59: -0.001103034215 | GF59: -0.001378792769 | GG59: -0.001654551323 | GH59: -0.001930309877 | GI59: -0.002206068431 | GJ59: -0.002206068431 | GK59: -0.0008676555055 | GL59: 0.00047075742 | GM59: 0.001809170346 | GN59: 0.003147583271 | GO59: 0.004485996197 | GP59: 0.005824409122 | GQ59: 0.007162822048 | GR59: 0.008501234973 | HA59: 0 | HB59: -0.002757585539 | HC59: -0.005515171077 | HD59: -0.008272756616 | HE59: -0.01103034215 | HF59: -0.01378792769 | HG59: -0.01654551323 | HH59: -0.01930309877 | HI59: -0.02206068431 | HJ59: -0.02206068431 | HK59: -0.008676555055 | HL59: 0.0047075742 | HM59: 0.01809170346 | HN59: 0.03147583271 | HO59: 0.04485996197 | HP59: 0.05824409122 | HQ59: 0.07162822048 | HR59: 0.08501234973 | JH59: 0 | JI59: -4.524163774e-05 | JJ59: -8.617454808e-05 | JK59: -0.0001184900036 | JL59: -0.0001378792769 | JM59: -0.0001400336406 | JN59: -0.0001206443673 | JO59: -7.540272957e-05 | JP59: 0 | JQ59: 0 | JR59: 0.0001151888441 | JS59: 0.00024616144 | JT59: 0.0003685703626 | JU59: 0.0004580681869 | JV59: 0.0004903074878 | JW59: 0.0004409408403 | JX59: 0.0002856208194 | JY59: 0 | KF59: 0 | KG59: -0.004524163774 | KH59: -0.008617454808 | KI59: -0.01184900036 | KJ59: -0.01378792769 | KK59: -0.01400336406 | KL59: -0.01206443673 | KM59: -0.007540272957 | KN59: 0 | KO59: 0 | KP59: 0.01151888441 | KQ59: 0.024616144 | KR59: 0.03685703626 | KS59: 0.04580681869 | KT59: 0.04903074878 | KU59: 0.04409408403 | KV59: 0.02856208194 | KW59: 0
C60: 2 | D60: 0 | E60: 0.5349653459 | F60: 0.935276254 | G60: 1.09883037 | H60: 1.053733673 | I60: 0.8606442253 | J60: 0.5802200889 | K60: 0.2731193264 | L60: 0 | M60: 0 | N60: -0.2023636597 | O60: -0.3119991337 | P60: -0.3463614206 | Q60: -0.3229055191 | R60: -0.2590864277 | S60: -0.1723591449 | T60: -0.08017866953 | U60: 0 | V60: -0.4459262017 | W60: 0.1887274034 | X60: -0.05068354678 | DC60: 32 | DE60: 1 | DF60: =+(-2*DE60+3*DE60^2-DE60^3)/(4+3*Input!$B$1) -> 0 | DG60: =+(2*DE60-3*DE60^2+DE60^3)/(4*(1+Input!$B$1)) -> 0 | DH60: =(DE60-3/2*DE60^2+1/2*DE60^3)/(4+3*Input!$B$1) -> 0 | DJ60: 0 | DM60: 0 | DP60: 0 | DS60: 0 | DV60: 0 | DZ60: 0 | EC60: 0 | ED60: 0 | EE60: 0 | EF60: 0 | EI60: 0 | EJ60: 0 | EK60: 0 | EL60: 0 | EO60: 0 | EP60: 0 | EQ60: 0 | ER60: 0 | EU60: 0 | EV60: 0 | EW60: 0 | EX60: 0 | GA60: 0 | GB60: 0 | GC60: 0 | GD60: 0 | GE60: 0 | GF60: 0 | GG60: 0 | GH60: 0 | GI60: 0 | GJ60: 0 | GK60: 0 | GL60: 0 | GM60: 0 | GN60: 0 | GO60: 0 | GP60: 0 | GQ60: 0 | GR60: 0 | HA60: 0 | HB60: 0 | HC60: 0 | HD60: 0 | HE60: 0 | HF60: 0 | HG60: 0 | HH60: 0 | HI60: 0 | HJ60: 0 | HK60: 0 | HL60: 0 | HM60: 0 | HN60: 0 | HO60: 0 | HP60: 0 | HQ60: 0 | HR60: 0 | JH60: 0 | JI60: 0 | JJ60: 0 | JK60: 0 | JL60: 0 | JM60: 0 | JN60: 0 | JO60: 0 | JP60: 0 | JQ60: 0 | JR60: 0 | JS60: 0 | JT60: 0 | JU60: 0 | JV60: 0 | JW60: 0 | JX60: 0 | JY60: 0 | KF60: 0 | KG60: 0 | KH60: 0 | KI60: 0 | KJ60: 0 | KK60: 0 | KL60: 0 | KM60: 0 | KN60: 0 | KO60: 0 | KP60: 0 | KQ60: 0 | KR60: 0 | KS60: 0 | KT60: 0 | KU60: 0 | KV60: 0 | KW60: 0
C61: 3 | D61: 0 | E61: 0.6023172594 | F61: 1.09883037 | G61: 1.383735183 | H61: 1.383779634 | I61: 1.155919989 | J61: 0.7896646015 | K61: 0.3745218212 | L61: 0 | M61: 0 | N61: -0.278250032 | O61: -0.4289988088 | P61: -0.4762469533 | Q61: -0.4439950887 | R61: -0.356243838 | S61: -0.2369938243 | T61: -0.1102456706 | U61: 0 | V61: -0.4959610274 | W61: 0.2595001797 | X61: -0.06968987682
C62: 4 | D62: 0 | E62: 0.5662310117 | F62: 1.053733673 | G62: 1.383779634 | H62: 1.477640544 | I62: 1.289140135 | J62: 0.9023104756 | K62: 0.4337357139 | L62: 0 | M62: 0 | N62: -0.3237818555 | O62: -0.4991986139 | P62: -0.554178273 | Q62: -0.5166488305 | R62: -0.4145382843 | S62: -0.2757746319 | T62: -0.1282858712 | U62: 0 | V62: -0.4634819227 | W62: 0.3019638455 | X62: -0.08109367484
C63: 5 | D63: 0 | E63: 0.4573313823 | F63: 0.8606442253 | G63: 1.155919989 | H63: 1.289140135 | I63: 1.206286124 | J63: 0.8858914987 | K63: 0.4366981372 | L63: 0 | M63: 0 | N63: -0.328840947 | O63: -0.5069985922 | P63: -0.5628373085 | Q63: -0.5247214685 | R63: -0.4210154449 | S63: -0.2800836105 | T63: -0.130290338 | U63: 0 | V63: -0.3730675778 | W63: 0.3066820306 | X63: -0.08236076351
C64: 6 | D64: 0 | E64: 0.3062431509 | F64: 0.5802200889 | G64: 0.7896646015 | H64: 0.9023104756 | I64: 0.8858914987 | J64: 0.7081414579 | K64: 0.3693462237 | L64: 0 | M64: 0 | N64: -0.2833091235 | O64: -0.4367987871 | P64: -0.4849059889 | Q64: -0.4520677267 | R64: -0.3627209987 | S64: -0.2413028029 | T64: -0.1122501373 | U64: 0 | V64: -0.2492966824 | W64: 0.2642183648 | X64: -0.07095696549
C65: 7 | D65: 0 | E65: 0.1435910969 | F65: 0.2731193264 | G65: 0.3745218212 | H65: 0.4337357139 | I65: 0.4366981372 | J65: 0.3693462237 | K65: 0.2176171059 | L65: 0 | M65: 0 | N65: -0.1770682022 | O65: -0.272999242 | P65: -0.303066243 | Q65: -0.2825423292 | R65: -0.2267006242 | S65: -0.1508142518 | T65: -0.07015633583 | U65: 0 | V65: -0.1167479265 | W65: 0.165136478 | X65: -0.04434810343
C66: 8 | D66: 0 | E66: 0 | F66: 0 | G66: 0 | H66: 0 | I66: 0 | J66: 0 | K66: 0 | L66: 0 | M66: 0 | N66: 0 | O66: 0 | P66: 0 | Q66: 0 | R66: 0 | S66: 0 | T66: 0 | U66: 0 | V66: 0 | W66: 0 | X66: 0
C67: =+C66 -> 8 | D67: 0 | E67: 0 | F67: 0 | G67: 0 | H67: 0 | I67: 0 | J67: 0 | K67: 0 | L67: 0 | M67: 0 | N67: 0 | O67: 0 | P67: 0 | Q67: 0 | R67: 0 | S67: 0 | T67: 0 | U67: 0 | V67: 0 | W67: 0 | X67: 0
C68: =+C67+1 -> 9 | D68: 0 | E68: -0.1062409213 | F68: -0.2023636597 | G68: -0.278250032 | H68: -0.3237818555 | I68: -0.328840947 | J68: -0.2833091235 | K68: -0.1770682022 | L68: 0 | M68: 0 | N68: 0.2431031742 | O68: 0.3997952986 | P68: 0.4529950926 | Q68: 0.4265137245 | R68: 0.3441623627 | S68: 0.2297521758 | T68: 0.1070943321 | U68: 0 | V68: 0.08634182813 | W68: -0.1726836563 | X68: 0.06774830038 | JH68: =+(FB$4*(0.5*FB$3^2-0.5*FB$3^2*FB$4^2-0.25*FB$3^4)+FB$3*(0.5*FB$4^2-0.5*FB$3^2*FB$4^2-0.25*FB$4^4))/6 -> 0 | JI68: 0.005055745443 | JJ68: 0.00927734375 | JK68: 0.01205444336 | JL68: 0.01302083333 | JM68: 0.01205444336 | JN68: 0.00927734375 | JO68: 0.005055745443 | JP68: 0 | JQ68: =+(FK$4*(0.5*FK$3^2-0.5*FK$3^2*FK$4^2-0.25*FK$3^4)+FK$3*(0.5*FK$4^2-0.5*FK$3^2*FK$4^2-0.25*FK$4^4))/6*Input!$B$1^4 -> 0 | JR68: =+(FL$4*(0.5*FL$3^2-0.5*FL$3^2*FL$4^2-0.25*FL$3^4)+FL$3*(0.5*FL$4^2-0.5*FL$3^2*FL$4^2-0.25*FL$4^4))/6*Input!$B$1^4 -> 0.006852846087 | JS68: =+(FM$4*(0.5*FM$3^2-0.5*FM$3^2*FM$4^2-0.25*FM$3^4)+FM$3*(0.5*FM$4^2-0.5*FM$3^2*FM$4^2-0.25*FM$4^4))/6*Input!$B$1^4 -> 0.01257504151 | JT68: =+(FN$4*(0.5*FN$3^2-0.5*FN$3^2*FN$4^2-0.25*FN$3^4)+FN$3*(0.5*FN$4^2-0.5*FN$3^2*FN$4^2-0.25*FN$4^4))/6*Input!$B$1^4 -> 0.01633928091 | JU68: =+(FO$4*(0.5*FO$3^2-0.5*FO$3^2*FO$4^2-0.25*FO$3^4)+FO$3*(0.5*FO$4^2-0.5*FO$3^2*FO$4^2-0.25*FO$4^4))/6*Input!$B$1^4 -> 0.01764918107 | JV68: =+(FP$4*(0.5*FP$3^2-0.5*FP$3^2*FP$4^2-0.25*FP$3^4)+FP$3*(0.5*FP$4^2-0.5*FP$3^2*FP$4^2-0.25*FP$4^4))/6*Input!$B$1^4 -> 0.01633928091 | JW68: =+(FQ$4*(0.5*FQ$3^2-0.5*FQ$3^2*FQ$4^2-0.25*FQ$3^4)+FQ$3*(0.5*FQ$4^2-0.5*FQ$3^2*FQ$4^2-0.25*FQ$4^4))/6*Input!$B$1^4 -> 0.01257504151 | JX68: =+(FR$4*(0.5*FR$3^2-0.5*FR$3^2*FR$4^2-0.25*FR$3^4)+FR$3*(0.5*FR$4^2-0.5*FR$3^2*FR$4^2-0.25*FR$4^4))/6*Input!$B$1^4 -> 0.006852846087 | JY68: =+(FS$4*(0.5*FS$3^2-0.5*FS$3^2*FS$4^2-0.25*FS$3^4)+FS$3*(0.5*FS$4^2-0.5*FS$3^2*FS$4^2-0.25*FS$4^4))/6*Input!$B$1^4 -> 0
C69: 10 | D69: 0 | E69: -0.1637995452 | F69: -0.3119991337 | G69: -0.4289988088 | H69: -0.4991986139 | I69: -0.5069985922 | J69: -0.4367987871 | K69: -0.272999242 | L69: 0 | M69: 0 | N69: 0.3997952986 | O69: 0.7532274245 | P69: 0.9095287809 | Q69: 0.8815015677 | R69: 0.7228404339 | S69: 0.4872400286 | T69: 0.2283950009 | U69: 0 | V69: 0.1331196304 | W69: -0.2662392607 | X69: 0.1447798119
C70: 11 | D70: 0 | E70: -0.1818397458 | F70: -0.3463614206 | G70: -0.4762469533 | H70: -0.554178273 | I70: -0.5628373085 | J70: -0.4849059889 | K70: -0.303066243 | L70: 0 | M70: 0 | N70: 0.4529950926 | O70: 0.9095287809 | P70: 1.211840394 | Q70: 1.24306171 | R70: 1.049894305 | S70: 0.719932202 | T70: 0.3407694256 | U70: 0 | V70: 0.1477808728 | W70: -0.2955617456 | X70: 0.2167746003 | DE70: Fx(1)1/(L1^2) = | DF70: =-(1/2)/(2*(4+3*Input!B1)) -> -0.03454470084 | DG70: =-(1/4)/(4*(1+Input!B1)) -> -0.03006253006 | DH70: =(1/4)/(2*(4+3*Input!B1)) -> 0.01727235042 | DI70: 0.5 | DJ70: =DI70+DJ$20*DF70+DJ$21*DG70+DJ$22*DH70 -> 0.4353927691 | DL70: 0.5 | DM70: =+DL70+DM$20*DF70+DM$21*DG70+DM$22*DH70 -> 0.6404919217 | DO70: 0 | DP70: =+DO70+DP$20*DF70+DP$21*DG70+DP$22*DH70 -> -0.09604643422 | DR70: -0.5 | DS70: =+DR70+DS$20*$DF70+DS$21*$DG70++DS$22*$DH70 -> -0.5646072309 | DU70: 0 | DV70: =+DU70+DV$20*$DF70+DV$21*$DG70++DV$22*$DH70 -> 0.07588469076 | DY70: 0 | DZ70: =+DY70+DZ$20*$DF70+DZ$21*$DG70++DZ$22*$DH70 -> 0.07588469076 | EB70: =-1/24 -> -0.04166666667 | EC70: =+EC$20*$DF70 -> 0.00575745014 | ED70: =+ED$20*$DG70 -> 0.005010421677 | EE70: =+EE$20*$DH70 -> 0 | EF70: =+SUM(EB70:EE70) -> -0.03089879485 | EH70: =1/24 -> 0.04166666667 | EI70: =+EI$20*$DF70 -> -0.01151490028 | EJ70: =+EJ$20*$DG70 -> -0.01002084335 | EK70: =+EK$20*$DH70 -> 0 | EL70: =+SUM(EH70:EK70) -> 0.02013092303 | EO70: =+EO$20*$DF70 -> 0.0124245774 | EP70: =+EP$20*$DG70 -> 0.01081248998 | EQ70: =+EQ$20*$DH70 -> -0.003106144351 | ER70: =+SUM(EN70:EQ70) -> 0.02013092303 | EU70: =+EU$20*$DF70 -> -0.006212288702 | EV70: =+EV$20*$DG70 -> -0.00540624499 | EW70: =+EW$20*$DH70 -> 0.006212288702 | EX70: =+SUM(ET70:EW70) -> -0.00540624499 | GA70: =+FB$5/2+FB$6*$DF70+FB$7*$DG70+FB$8*$DH70 -> 0 | GB70: 0.04661159614 | GC70: 0.07759819227 | GD70: 0.09295978841 | GE70: 0.09269638455 | GF70: 0.07680798068 | GG70: 0.04529457682 | GH70: -0.001843827042 | GI70: -0.06460723091 | GJ70: =+FK$6*$DF70+FK$7*$DG70+FK$8*$DH70 -> -0.06460723091 | GK70: -0.05437228324 | GL70: -0.04413733557 | GM70: -0.03390238791 | GN70: -0.02366744024 | GO70: -0.01343249258 | GP70: -0.00319754491 | GQ70: 0.007037402756 | GR70: 0.01727235042 | HA70: =+GA70*10 -> 0 | HB70: 0.4661159614 | HC70: 0.7759819227 | HD70: 0.9295978841 | HE70: 0.9269638455 | HF70: 0.7680798068 | HG70: 0.4529457682 | HH70: -0.01843827042 | HI70: -0.6460723091 | HJ70: -0.6460723091 | HK70: -0.5437228324 | HL70: -0.4413733557 | HM70: -0.3390238791 | HN70: -0.2366744024 | HO70: =+GO70*10 -> -0.1343249258 | HP70: -0.0319754491 | HQ70: 0.07037402756 | HR70: 0.1727235042 | JH70: =+JH68+FB$11*$DF70+FB$12*$DG70+FB$13*$DH70 -> 0 | JI70: 0.003730792465 | JJ70: 0.006753623793 | JK70: 0.008584328418 | JL70: 0.008982881402 | JM70: 0.007953398429 | JN70: 0.00574413581 | JO70: 0.00284749048 | JP70: 0 | JQ70: =+FK$11*$DF70+FK$12*$DG70+FK$13*$DH70 -> 0 | JR70: -0.002158545703 | JS70: -0.003327990759 | JT70: -0.00369452182 | JU70: -0.003444325537 | JV70: -0.002763588562 | JW70: -0.001838497546 | JX70: -0.0008552391416 | JY70: 0 | KF70: =+JH70*100 -> 0 | KG70: =+JI70*100 -> 0.3730792465 | KH70: 0.6753623793 | KI70: 0.8584328418 | KJ70: 0.8982881402 | KK70: 0.7953398429 | KL70: 0.574413581 | KM70: 0.284749048 | KN70: 0 | KO70: 0 | KP70: -0.2158545703 | KQ70: -0.3327990759 | KR70: -0.369452182 | KS70: -0.3444325537 | KT70: -0.2763588562 | KU70: -0.1838497546 | KV70: -0.08552391416 | KW70: 0
C71: 12 | D71: 0 | E71: -0.1695253975 | F71: -0.3229055191 | G71: -0.4439950887 | H71: -0.5166488305 | I71: -0.5247214685 | J71: -0.4520677267 | K71: -0.2825423292 | L71: 0 | M71: 0 | N71: 0.4265137245 | O71: 0.8815015677 | P71: 1.24306171 | Q71: 1.389292334 | R71: 1.239184068 | S71: 0.8752973397 | T71: 0.421085025 | U71: 0 | V71: 0.1377730215 | W71: -0.2755460429 | X71: 0.2694127314 | DE71: Fx(1)2/(L1^2) = | DF71: =-(1/4)/(2*(4+3*Input!$B$1))*Input!$B$1^3 -> -0.02169780363 | DG71: =-(1/4)/(4*(1+Input!B1))*Input!B1^3 -> -0.03776503244 | DH71: =1/4*(-2-Input!$B$1)/(2*(4+3*Input!B1))*(Input!B1^2) -> -0.06191616068 | DI71: 0 | DJ71: =DI71+DJ$20*DF71+DJ$21*DG71+DJ$22*DH71 -> -0.05946283607 | DL71: =0.5*Input!B1 -> 0.5395 | DM71: =+DL71+DM$20*DF71+DM$21*DG71+DM$22*DH71 -> 0.5966891339 | DO71: =0.5*Input!B1 -> 0.5395 | DP71: =+DO71+DP$20*DF71+DP$21*DG71+DP$22*DH71 -> 0.6140474644 | DR71: 0 | DS71: =+DR71+DS$20*$DF71+DS$21*$DG71++DS$22*$DH71 -> -0.05946283607 | DU71: =0.5*Input!B1 -> 0.5395 | DV71: =+DU71+DV$20*$DF71+DV$21*$DG71++DV$22*$DH71 -> 0.5372262979 | DY71: =-0.5*Input!B1 -> -0.5395 | DZ71: =+DY71+DZ$20*$DF71+DZ$21*$DG71++DZ$22*$DH71 -> -0.5417737021 | EC71: =+EC$20*$DF71 -> 0.003616300605 | ED71: =+ED$20*$DG71 -> 0.006294172073 | EE71: =+EE$20*$DH71 -> 0 | EF71: 0.009910472678 | EI71: =+EI$20*$DF71 -> -0.00723260121 | EJ71: =+EJ$20*$DG71 -> -0.01258834415 | EK71: =+EK$20*$DH71 -> 0 | EL71: -0.01982094536 | EN71: =-1/24*Input!$B$1^3 -> -0.05234233496 | EO71: =+EO$20*$DF71 -> 0.007803976706 | EP71: =+EP$20*$DG71 -> 0.01358282333 | EQ71: =+EQ$20*$DH71 -> 0.01113458956 | ER71: -0.01982094536 | ET71: =1/24*Input!$B$1^3 -> 0.05234233496 | EU71: =+EU$20*$DF71 -> -0.003901988353 | EV71: =+EV$20*$DG71 -> -0.006791411667 | EW71: =+EW$20*$DH71 -> -0.02226917913 | EX71: 0.01937975581 | GA71: =+FB$6*$DF71+FB$7*$DG71+FB$8*$DH71 -> 0 | GB71: -0.007432854509 | GC71: -0.01486570902 | GD71: -0.02229856353 | GE71: -0.02973141803 | GF71: -0.03716427254 | GG71: -0.04459712705 | GH71: -0.05202998156 | GI71: -0.05946283607 | GJ71: =+FK$5/2*Input!$B$1^2+FK$6*$DF71+FK$7*$DG71+FK$8*$DH71 -> -0.05946283607 | GK71: =+FL$5/2*Input!$B$1^2+FL$6*$DF71+FL$7*$DG71+FL$8*$DH71 -> 0.003899928042 | GL71: =+FM$5/2*Input!$B$1^2+FM$6*$DF71+FM$7*$DG71+FM$8*$DH71 -> 0.04907142653 | GM71: =+FN$5/2*Input!$B$1^2+FN$6*$DF71+FN$7*$DG71+FN$8*$DH71 -> 0.07605165939 | GN71: =+FO$5/2*Input!$B$1^2+FO$6*$DF71+FO$7*$DG71+FO$8*$DH71 -> 0.08484062662 | GO71: =+FP$5/2*Input!$B$1^2+FP$6*$DF71+FP$7*$DG71+FP$8*$DH71 -> 0.07543832823 | GP71: =+FQ$5/2*Input!$B$1^2+FQ$6*$DF71+FQ$7*$DG71+FQ$8*$DH71 -> 0.04784476422 | GQ71: =+FR$5/2*Input!$B$1^2+FR$6*$DF71+FR$7*$DG71+FR$8*$DH71 -> 0.00205993458 | GR71: =+FS$5/2*Input!$B$1^2+FS$6*$DF71+FS$7*$DG71+FS$8*$DH71 -> -0.06191616068 | HA71: 0 | HB71: -0.07432854509 | HC71: -0.1486570902 | HD71: -0.2229856353 | HE71: -0.2973141803 | HF71: -0.3716427254 | HG71: -0.4459712705 | HH71: -0.5202998156 | HI71: -0.5946283607 | HJ71: -0.5946283607 | HK71: 0.03899928042 | HL71: 0.4907142653 | HM71: 0.7605165939 | HN71: 0.8484062662 | HO71: 0.7543832823 | HP71: 0.4784476422 | HQ71: 0.0205993458 | HR71: -0.6191616068 | JH71: =+FB$11*$DF71+FB$12*$DG71+FB$13*$DH71 -> 0 | JI71: -0.001219452693 | JJ71: -0.002322767034 | JK71: -0.003193804672 | JL71: -0.003716427254 | JM71: -0.00377449643 | JN71: -0.003251873847 | JO71: -0.002032421155 | JP71: 0 | JQ71: =+JQ68+FK$11*$DF71+FK$12*$DG71+FK$13*$DH71 -> 0 | JR71: 0.00300830556 | JS71: 0.005973243338 | JT71: 0.008073086607 | JU71: 0.008817030784 | JV71: 0.008045193432 | JW71: 0.005928614258 | JX71: 0.002969255115 | JY71: 0 | KF71: =+JH71*100 -> 0 | KG71: -0.1219452693 | KH71: -0.2322767034 | KI71: -0.3193804672 | KJ71: -0.3716427254 | KK71: -0.377449643 | KL71: -0.3251873847 | KM71: -0.2032421155 | KN71: 0 | KO71: 0 | KP71: 0.300830556 | KQ71: 0.5973243338 | KR71: 0.8073086607 | KS71: 0.8817030784 | KT71: 0.8045193432 | KU71: 0.5928614258 | KV71: 0.2969255115 | KW71: 0
C72: 13 | D72: 0 | E72: -0.1360203745 | F72: -0.2590864277 | G72: -0.356243838 | H72: -0.4145382843 | I72: -0.4210154449 | J72: -0.3627209987 | K72: -0.2267006242 | L72: 0 | M72: 0 | N72: 0.3441623627 | O72: 0.7228404339 | P72: 1.049894305 | Q72: 1.239184068 | R72: 1.204569814 | S72: 0.9008040853 | T72: 0.4462092182 | U72: 0 | V72: 0.1105435425 | W72: -0.2210870849 | X72: 0.2883742711 | DE72: Fx(1)3/(L1^2) = | DF72: =+DF71 -> -0.02169780363 | DG72: =-DG71 -> 0.03776503244 | DH72: =+DH71 -> -0.06191616068 | DI72: 0 | DJ72: =DI72+DJ$20*DF72+DJ$21*DG72+DJ$22*DH72 -> 0.01606722881 | DL72: 0 | DM72: =+DL72+DM$20*DF72+DM$21*DG72+DM$22*DH72 -> -0.08834099108 | DO72: =+DO71 -> 0.5395 | DP72: =+DO72+DP$20*DF72+DP$21*DG72+DP$22*DH72 -> 0.6140474644 | DR72: 0 | DS72: =+DR72+DS$20*$DF72+DS$21*$DG72++DS$22*$DH72 -> 0.01606722881 | DU72: 0 | DV72: =+DU72+DV$20*$DF72+DV$21*$DG72++DV$22*$DH72 -> -0.07227376227 | DY72: 0 | DZ72: =+DY72+DZ$20*$DF72+DZ$21*$DG72++DZ$22*$DH72 -> -0.07227376227 | EC72: =+EC$20*$DF72 -> 0.003616300605 | ED72: =+ED$20*$DG72 -> -0.006294172073 | EE72: =+EE$20*$DH72 -> 0 | EF72: -0.002677871468 | EI72: =+EI$20*$DF72 -> -0.00723260121 | EJ72: =+EJ$20*$DG72 -> 0.01258834415 | EK72: =+EK$20*$DH72 -> 0 | EL72: 0.005355742936 | EO72: =+EO$20*$DF72 -> 0.007803976706 | EP72: =+EP$20*$DG72 -> -0.01358282333 | EQ72: =+EQ$20*$DH72 -> 0.01113458956 | ER72: 0.005355742936 | EU72: =+EU$20*$DF72 -> -0.003901988353 | EV72: =+EV$20*$DG72 -> 0.006791411667 | EW72: =+EW$20*$DH72 -> -0.02226917913 | EX72: -0.01937975581 | GA72: 0 | GB72: 0.002008403601 | GC72: 0.004016807202 | GD72: 0.006025210803 | GE72: 0.008033614403 | GF72: 0.010042018 | GG72: 0.01205042161 | GH72: 0.01405882521 | GI72: 0.01606722881 | GJ72: =+FK$6*$DF72+FK$7*$DG72+FK$8*$DH72 -> 0.01606722881 | GK72: 0.00631930512 | GL72: -0.003428618566 | GM72: -0.01317654225 | GN72: -0.02292446594 | GO72: -0.03267238963 | GP72: -0.04242031331 | GQ72: -0.052168237 | GR72: -0.06191616068 | HA72: 0 | HB72: 0.02008403601 | HC72: 0.04016807202 | HD72: 0.06025210803 | HE72: 0.08033614403 | HF72: 0.10042018 | HG72: 0.1205042161 | HH72: 0.1405882521 | HI72: 0.1606722881 | HJ72: 0.1606722881 | HK72: 0.0631930512 | HL72: -0.03428618566 | HM72: -0.1317654225 | HN72: -0.2292446594 | HO72: -0.3267238963 | HP72: -0.4242031331 | HQ72: -0.52168237 | HR72: -0.6191616068 | JH72: 0 | JI72: 0.0003295037158 | JJ72: 0.0006276261253 | JK72: 0.0008629859222 | JL72: 0.0010042018 | JM72: 0.001019892454 | JN72: 0.0008786765754 | JO72: 0.0005491728596 | JP72: 0 | JQ72: =+FK$11*$DF72+FK$12*$DG72+FK$13*$DH72 -> 0 | JR72: -0.0008389429305 | JS72: -0.001792842019 | JT72: -0.002684370196 | JU72: -0.003336200394 | JV72: -0.003571005542 | JW72: -0.003211458572 | JX72: -0.002080232414 | JY72: 0 | KF72: =+JH72*100 -> 0 | KG72: 0.03295037158 | KH72: 0.06276261253 | KI72: 0.08629859222 | KJ72: 0.10042018 | KK72: 0.1019892454 | KL72: 0.08786765754 | KM72: 0.05491728596 | KN72: 0 | KO72: 0 | KP72: -0.08389429305 | KQ72: -0.1792842019 | KR72: -0.2684370196 | KS72: -0.3336200394 | KT72: -0.3571005542 | KU72: -0.3211458572 | KV72: -0.2080232414 | KW72: 0
C73: 14 | D73: 0 | E73: -0.09048855109 | F73: -0.1723591449 | G73: -0.2369938243 | H73: -0.2757746319 | I73: -0.2800836105 | J73: -0.2413028029 | K73: -0.1508142518 | L73: 0 | M73: 0 | N73: 0.2297521758 | O73: 0.4872400286 | P73: 0.719932202 | Q73: 0.8752973397 | R73: 0.9008040853 | S73: 0.7439210826 | T73: 0.3930094243 | U73: 0 | V73: 0.07353990184 | W73: -0.1470798037 | X73: 0.2593392853 | DE73: Fx(1)4/(L1^2) = | DF73: =+DF70 -> -0.03454470084 | DG73: =-DG70 -> 0.03006253006 | DH73: =+DH70 -> 0.01727235042 | DI73: 0 | DJ73: =DI73+DJ$20*DF73+DJ$21*DG73+DJ$22*DH73 -> -0.00448217078 | DL73: 0 | DM73: =+DL73+DM$20*DF73+DM$21*DG73+DM$22*DH73 -> 0.02464391425 | DO73: 0 | DP73: =+DO73+DP$20*DF73+DP$21*DG73+DP$22*DH73 -> -0.09604643422 | DR73: 0 | DS73: =+DR73+DS$20*$DF73+DS$21*$DG73++DS$22*$DH73 -> -0.00448217078 | DU73: 0 | DV73: =+DU73+DV$20*$DF73+DV$21*$DG73++DV$22*$DH73 -> 0.02016174347 | DY73: 0 | DZ73: =+DY73+DZ$20*$DF73+DZ$21*$DG73++DZ$22*$DH73 -> 0.02016174347 | EC73: =+EC$20*$DF73 -> 0.00575745014 | ED73: =+ED$20*$DG73 -> -0.005010421677 | EE73: =+EE$20*$DH73 -> 0 | EF73: 0.0007470284634 | EI73: =+EI$20*$DF73 -> -0.01151490028 | EJ73: =+EJ$20*$DG73 -> 0.01002084335 | EK73: =+EK$20*$DH73 -> 0 | EL73: -0.001494056927 | EO73: =+EO$20*$DF73 -> 0.0124245774 | EP73: =+EP$20*$DG73 -> -0.01081248998 | EQ73: =+EQ$20*$DH73 -> -0.003106144351 | ER73: -0.001494056927 | EU73: =+EU$20*$DF73 -> -0.006212288702 | EV73: =+EV$20*$DG73 -> 0.00540624499 | EW73: =+EW$20*$DH73 -> 0.006212288702 | EX73: 0.00540624499 | GA73: 0 | GB73: -0.0005602713475 | GC73: -0.001120542695 | GD73: -0.001680814043 | GE73: -0.00224108539 | GF73: -0.002801356738 | GG73: -0.003361628085 | GH73: -0.003921899433 | GI73: -0.00448217078 | GJ73: -0.00448217078 | GK73: -0.00176285563 | GL73: 0.0009564595201 | GM73: 0.00367577467 | GN73: 0.006395089821 | GO73: 0.009114404971 | GP73: 0.01183372012 | GQ73: 0.01455303527 | GR73: 0.01727235042 | HA73: 0 | HB73: -0.005602713475 | HC73: -0.01120542695 | HD73: -0.01680814043 | HE73: -0.0224108539 | HF73: -0.02801356738 | HG73: -0.03361628085 | HH73: -0.03921899433 | HI73: -0.0448217078 | HJ73: -0.0448217078 | HK73: -0.0176285563 | HL73: 0.009564595201 | HM73: 0.0367577467 | HN73: 0.06395089821 | HO73: =+GO73*10 -> 0.09114404971 | HP73: =+GP73*10 -> 0.1183372012 | HQ73: =+GQ73*10 -> 0.1455303527 | HR73: =+GR73*10 -> 0.1727235042 | JH73: 0 | JI73: -9.191951796e-05 | JJ73: -0.0001750847961 | JK73: -0.0002407415946 | JL73: -0.0002801356738 | JM73: -0.0002845127937 | JN73: -0.0002451187146 | JO73: -0.0001531991966 | JP73: 0 | JQ73: 0 | JR73: 0.0002340344769 | JS73: 0.0005001375289 | JT73: 0.0007488413716 | JU73: 0.000930678221 | JV73: 0.0009961802927 | JW73: 0.0008958798026 | JX73: 0.0005803089664 | JY73: 0 | KF73: =+JH73*100 -> 0 | KG73: -0.009191951796 | KH73: -0.01750847961 | KI73: -0.02407415946 | KJ73: -0.02801356738 | KK73: -0.02845127937 | KL73: -0.02451187146 | KM73: -0.01531991966 | KN73: 0 | KO73: 0 | KP73: 0.02340344769 | KQ73: 0.05001375289 | KR73: 0.07488413716 | KS73: 0.0930678221 | KT73: 0.09961802927 | KU73: 0.08958798026 | KV73: 0.05803089664 | KW73: 0
C74: 15 | D74: 0 | E74: -0.0420938015 | F74: -0.08017866953 | G74: -0.1102456706 | H74: -0.1282858712 | I74: -0.130290338 | J74: -0.1122501373 | K74: -0.07015633583 | L74: 0 | M74: 0 | N74: 0.1070943321 | O74: 0.2283950009 | P74: 0.3407694256 | Q74: 0.421085025 | R74: 0.4462092182 | S74: 0.3930094243 | T74: 0.2383530621 | U74: 0 | V74: 0.03420956566 | W74: -0.06841913133 | X74: 0.1679878396
C75: 16 | D75: 0 | E75: 0 | F75: 0 | G75: 0 | H75: 0 | I75: 0 | J75: 0 | K75: 0 | L75: 0 | M75: 0 | N75: 0 | O75: 0 | P75: 0 | Q75: 0 | R75: 0 | S75: 0 | T75: 0 | U75: 0 | V75: 0 | W75: 0 | X75: 0 | DJ75: =+SUM(DJ70:DJ74) -> 0.3875149911 | DM75: =+SUM(DM70:DM74) -> 1.173483979 | DP75: =+SUM(DP70:DP74) -> 1.03600206 | DS75: =+SUM(DS70:DS74) -> -0.6124850089 | DV75: =+SUM(DV70:DV74) -> 0.5609989698 | DZ75: =+SUM(DZ70:DZ74) -> -0.5180010302 | EF75: =+SUM(EF70:EF74) -> -0.02291916518 | EL75: =+SUM(EL70:EL74) -> 0.004171663684 | ER75: =+SUM(ER70:ER74) -> 0.004171663684 | EX75: =+SUM(EX70:EX74) -> 0 | GA75: =+SUM(GA70:GA74) -> 0 | GB75: =+SUM(GB70:GB74) -> 0.04062687388 | GC75: 0.06562874776 | GD75: 0.07500562164 | GE75: 0.06875749553 | GF75: 0.04688436941 | GG75: 0.00938624329 | GH75: -0.04373688283 | GI75: -0.1124850089 | GJ75: -0.1124850089 | GK75: -0.04591590571 | GL75: 0.002461931908 | GM75: 0.0326485039 | GN75: 0.04464381026 | GO75: 0.038447851 | GP75: 0.01406062612 | GQ75: -0.02851786439 | GR75: -0.08928762053 | HA75: =+GA75*10 -> 0 | HB75: 0.4062687388 | HC75: 0.6562874776 | HD75: 0.7500562164 | HE75: 0.6875749553 | HF75: 0.4688436941 | HG75: 0.0938624329 | HH75: -0.4373688283 | HI75: -1.124850089 | HJ75: -1.124850089 | HK75: -0.4591590571 | HL75: 0.02461931908 | HM75: 0.326485039 | HN75: 0.4464381026 | HO75: =+GO75*10 -> 0.38447851 | HP75: 0.1406062612 | HQ75: -0.2851786439 | HR75: -0.8928762053 | JH75: =+SUM(JH70:JH74) -> 0 | JI75: =+SUM(JI70:JI74) -> 0.00274892397 | JJ75: 0.004883398088 | JK75: 0.006012768074 | JL75: 0.005990520274 | JM75: 0.004914281659 | JN75: 0.003125819823 | JO75: 0.001211042988 | JP75: 0 | JQ75: 0 | JR75: 0.0002448514029 | JS75: 0.001352548088 | JT75: 0.002443035962 | JU75: 0.002967183074 | JV75: 0.002706779621 | JW75: 0.001774537943 | JX75: 0.0006140925257 | JY75: 0 | KF75: =+JH75*100 -> 0 | KG75: =+JI75*100 -> 0.274892397 | KH75: 0.4883398088 | KI75: 0.6012768074 | KJ75: 0.5990520274 | KK75: 0.4914281659 | KL75: 0.3125819823 | KM75: 0.1211042988 | KN75: 0 | KO75: 0 | KP75: 0.02448514029 | KQ75: 0.1352548088 | KR75: 0.2443035962 | KS75: 0.2967183074 | KT75: 0.2706779621 | KU75: 0.1774537943 | KV75: 0.06140925257 | KW75: 0
C76: =+C75 -> 16 | D76: 0 | E76: 0 | F76: 0 | G76: 0 | H76: 0 | I76: 0 | J76: 0 | K76: 0 | L76: 0 | M76: 0 | N76: 0 | O76: 0 | P76: 0 | Q76: 0 | R76: 0 | S76: 0 | T76: 0 | U76: 0 | V76: 0 | W76: 0 | X76: 0
C77: =+C76+1 -> 17 | D77: 0 | E77: 0.02856208194 | F77: 0.0544039656 | G77: 0.0748054527 | H77: 0.08704634496 | I77: 0.0884064441 | J77: 0.07616555184 | K77: 0.0476034699 | L77: 0 | M77: 0 | N77: -0.07272135511 | O77: -0.1554073542 | P77: -0.2326869102 | Q77: -0.2891889361 | R77: -0.3095423451 | S77: -0.2783760501 | T77: -0.180318964 | U77: 0 | V77: -0.02321235866 | W77: 0.04642471731 | X77: -0.1679878396
C78: 18 | D78: 0 | E78: 0.04409408403 | F78: 0.08398873149 | G78: 0.1154845058 | H78: 0.1343819704 | I78: 0.1364816887 | J78: 0.1175842241 | K78: 0.07349014006 | L78: 0 | M78: 0 | N78: -0.1122670802 | O78: -0.2399175574 | P78: -0.3592215789 | Q78: -0.4464492917 | R78: -0.4778708431 | S78: -0.4297563801 | T78: -0.2783760501 | U78: 0 | V78: -0.0358351921 | W78: 0.07167038421 | X78: -0.2593392853
C79: 19 | D79: 0 | E79: 0.04903074878 | F79: 0.09339190244 | G79: 0.1284138659 | H79: 0.1494270439 | I79: 0.1517618415 | J79: 0.1307486634 | K79: 0.08171791464 | L79: 0 | M79: 0 | N79: -0.1248362252 | O79: -0.2667781346 | P79: -0.3994391396 | Q79: -0.4964326518 | R79: -0.5313720824 | S79: -0.4778708431 | T79: -0.3095423451 | U79: 0 | V79: -0.03984721171 | W79: 0.07969442342 | X79: -0.2883742711
C80: 20 | D80: 0 | E80: 0.04580681869 | F80: 0.08725108322 | G80: 0.1199702394 | H80: 0.1396017331 | I80: 0.1417830102 | J80: 0.1221515165 | K80: 0.07634469781 | L80: 0 | M80: 0 | N80: -0.1166278402 | O80: -0.2492366106 | P80: -0.3731747261 | Q80: -0.4637906015 | R80: -0.4964326518 | S80: -0.4464492917 | T80: -0.2891889361 | U80: 0 | V80: -0.03722712884 | W80: 0.07445425768 | X80: -0.2694127314
C81: 21 | D81: 0 | E81: 0.03685703626 | F81: 0.07020387859 | G81: 0.09653033306 | H81: 0.1123262057 | I81: 0.1140813027 | J81: 0.09828543003 | K81: 0.06142839377 | L81: 0 | M81: 0 | N81: -0.09384097517 | O81: -0.2005405103 | P81: -0.3002634718 | Q81: -0.3731747261 | R81: -0.3994391396 | S81: -0.3592215789 | T81: -0.2326869102 | U81: 0 | V81: -0.02995365486 | W81: 0.05990730973 | X81: -0.2167746003
C82: 22 | D82: 0 | E82: 0.024616144 | F82: 0.04688789333 | G82: 0.06447085333 | H82: 0.07502062933 | I82: 0.07619282666 | J82: 0.06564305066 | K82: 0.04102690666 | L82: 0 | M82: 0 | N82: -0.06267468012 | O82: -0.1339373585 | P82: -0.2005405103 | Q82: -0.2492366106 | R82: -0.2667781346 | S82: -0.2399175574 | T82: -0.1554073542 | U82: 0 | V82: -0.02000550115 | W82: 0.04001100231 | X82: -0.1447798119
C83: 23 | D83: 0 | E83: 0.01151888441 | F83: 0.02194073221 | G83: 0.03016850679 | H83: 0.03510517154 | I83: 0.03565368984 | J83: 0.0307170251 | K83: 0.01919814068 | L83: 0 | M83: 0 | N83: -0.02932800506 | O83: -0.06267468012 | P83: -0.09384097517 | Q83: -0.1166278402 | R83: -0.1248362252 | S83: -0.1122670802 | T83: -0.07272135511 | U83: 0 | V83: -0.009361379077 | W83: 0.01872275815 | X83: -0.06774830038
C84: 24 | D84: 0 | E84: 0 | F84: 0 | G84: 0 | H84: 0 | I84: 0 | J84: 0 | K84: 0 | L84: 0 | M84: 0 | N84: -3.161733904e-16 | O84: -6.022350294e-16 | P84: -8.280731654e-16 | Q84: -9.63576047e-16 | R84: -9.786319227e-16 | S84: -8.431290411e-16 | T84: -5.269556507e-16 | U84: 0 | V84: 0 | W84: 0 | X84: -4.762810241e-16
C85: 24 | D85: 0 | E85: 0 | F85: 0 | G85: 0 | H85: 0 | I85: 0 | J85: 0 | K85: 0 | L85: 0 | M85: 0 | N85: 0 | O85: 0 | P85: 0 | Q85: 0 | R85: 0 | S85: 0 | T85: 0 | U85: 0 | V85: 0 | W85: 0 | X85: 0
C86: =+C85+1 -> 25 | D86: 0 | E86: -0.007540272957 | F86: -0.01436242468 | G86: -0.01974833394 | H86: -0.02297987949 | I86: -0.02333894011 | J86: -0.02010739455 | K86: -0.0125671216 | L86: 0 | M86: 0 | N86: 0.01919814068 | O86: 0.04102690666 | P86: 0.06142839377 | Q86: 0.07634469781 | R86: 0.08171791464 | S86: 0.07349014006 | T86: 0.0476034699 | U86: 0 | V86: 0.006127967864 | W86: -0.01225593573 | X86: 0.04434810343
C87: 26 | D87: 0 | E87: -0.01206443673 | F87: -0.02297987949 | G87: -0.0315973343 | H87: -0.03676780718 | I87: -0.03734230417 | J87: -0.03217183128 | K87: -0.02010739455 | L87: 0 | M87: 0 | N87: 0.0307170251 | O87: 0.06564305066 | P87: 0.09828543003 | Q87: 0.1221515165 | R87: 0.1307486634 | S87: 0.1175842241 | T87: 0.07616555184 | U87: 0 | V87: 0.009804748582 | W87: -0.01960949716 | X87: 0.07095696549
C88: 27 | D88: 0 | E88: -0.01400336406 | F88: -0.02667307441 | G88: -0.03667547731 | H88: -0.04267691905 | I88: -0.04334374591 | J88: -0.03734230417 | K88: -0.02333894011 | L88: 0 | M88: 0 | N88: 0.03565368984 | O88: 0.07619282666 | P88: 0.1140813027 | Q88: 0.1417830102 | R88: 0.1517618415 | S88: 0.1364816887 | T88: 0.0884064441 | U88: 0 | V88: 0.01138051175 | W88: -0.02276102349 | X88: 0.08236076351
C89: 28 | D89: 0 | E89: -0.01378792769 | F89: -0.02626271942 | G89: -0.0361112392 | H89: -0.04202035107 | I89: -0.04267691905 | J89: -0.03676780718 | K89: -0.02297987949 | L89: 0 | M89: 0 | N89: 0.03510517154 | O89: 0.07502062933 | P89: 0.1123262057 | Q89: 0.1396017331 | R89: 0.1494270439 | S89: 0.1343819704 | T89: 0.08704634496 | U89: 0 | V89: 0.01120542695 | W89: -0.0224108539 | X89: 0.08109367484
C90: 29 | D90: 0 | E90: -0.01184900036 | F90: -0.0225695245 | G90: -0.03103309619 | H90: -0.0361112392 | I90: -0.03667547731 | J90: -0.0315973343 | K90: -0.01974833394 | L90: 0 | M90: 0 | N90: 0.03016850679 | O90: 0.06447085333 | P90: 0.09653033306 | Q90: 0.1199702394 | R90: 0.1284138659 | S90: 0.1154845058 | T90: 0.0748054527 | U90: 0 | V90: 0.009629663786 | W90: -0.01925932757 | X90: 0.06968987682
C91: 30 | D91: 0 | E91: -0.008617454808 | F91: -0.01641419964 | G91: -0.0225695245 | H91: -0.02626271942 | I91: -0.02667307441 | J91: -0.02297987949 | K91: -0.01436242468 | L91: 0 | M91: 0 | N91: 0.02194073221 | O91: 0.04688789333 | P91: 0.07020387859 | Q91: 0.08725108322 | R91: 0.09339190244 | S91: 0.08398873149 | T91: 0.0544039656 | U91: 0 | V91: 0.007003391844 | W91: -0.01400678369 | X91: 0.05068354678
C92: 31 | D92: 0 | E92: -0.004524163774 | F92: -0.008617454808 | G92: -0.01184900036 | H92: -0.01378792769 | I92: -0.01400336406 | J92: -0.01206443673 | K92: -0.007540272957 | L92: 0 | M92: 0 | N92: 0.01151888441 | O92: 0.024616144 | P92: 0.03685703626 | Q92: 0.04580681869 | R92: 0.04903074878 | S92: 0.04409408403 | T92: 0.02856208194 | U92: 0 | V92: 0.003676780718 | W92: -0.007353561437 | X92: 0.02660886206
C93: 32 | D93: 0 | E93: 0 | F93: 0 | G93: 0 | H93: 0 | I93: 0 | J93: 0 | K93: 0 | L93: 0 | M93: 0 | N93: 0 | O93: 0 | P93: 0 | Q93: 0 | R93: 0 | S93: 0 | T93: 0 | U93: 0 | V93: 0 | W93: 0 | X93: 0
D94: ×L13/(100×EI) | V94: ×(L12/EI)/10
C95: Span 1 | D95: =+KF70 -> 0 | E95: 0.3730792465 | F95: 0.6753623793 | G95: 0.8584328418 | H95: 0.8982881402 | I95: 0.7953398429 | J95: 0.574413581 | K95: 0.284749048 | L95: 0 | M95: 0 | N95: =+KP70 -> -0.2158545703 | O95: -0.3327990759 | P95: -0.369452182 | Q95: -0.3444325537 | R95: -0.2763588562 | S95: -0.1838497546 | T95: -0.08552391416 | U95: 0 | V95: =+EF70*10 -> -0.3089879485 | W95: =+EL70*10 -> 0.2013092303 | X95: =+EX70*10 -> -0.0540624499
C96: Span 2 | D96: 0 | E96: -0.1219452693 | F96: -0.2322767034 | G96: -0.3193804672 | H96: -0.3716427254 | I96: -0.377449643 | J96: -0.3251873847 | K96: -0.2032421155 | L96: 0 | M96: 0 | N96: 0.300830556 | O96: 0.5973243338 | P96: 0.8073086607 | Q96: 0.8817030784 | R96: 0.8045193432 | S96: 0.5928614258 | T96: 0.2969255115 | U96: 0 | V96: =+EF71*10 -> 0.09910472678 | W96: =+EL71*10 -> -0.1982094536 | X96: =+EX71*10 -> 0.1937975581
C97: Span 3 | D97: 0 | E97: 0.03295037158 | F97: 0.06276261253 | G97: 0.08629859222 | H97: 0.10042018 | I97: 0.1019892454 | J97: 0.08786765754 | K97: 0.05491728596 | L97: 0 | M97: 0 | N97: -0.08389429305 | O97: -0.1792842019 | P97: -0.2684370196 | Q97: -0.3336200394 | R97: -0.3571005542 | S97: -0.3211458572 | T97: -0.2080232414 | U97: 0 | V97: =+EF72*10 -> -0.02677871468 | W97: =+EL72*10 -> 0.05355742936 | X97: =+EX72*10 -> -0.1937975581
C98: Span 4 | D98: 0 | E98: -0.009191951796 | F98: -0.01750847961 | G98: -0.02407415946 | H98: -0.02801356738 | I98: -0.02845127937 | J98: -0.02451187146 | K98: -0.01531991966 | L98: 0 | M98: 0 | N98: 0.02340344769 | O98: 0.05001375289 | P98: 0.07488413716 | Q98: 0.0930678221 | R98: 0.09961802927 | S98: 0.08958798026 | T98: 0.05803089664 | U98: 0 | V98: =+EF73*10 -> 0.007470284634 | W98: =+EL73*10 -> -0.01494056927 | X98: =+EX73*10 -> 0.0540624499
C99: Sum | D99: =+KF75 -> 0 | E99: 0.274892397 | F99: 0.4883398088 | G99: 0.6012768074 | H99: 0.5990520274 | I99: 0.4914281659 | J99: 0.3125819823 | K99: 0.1211042988 | L99: 0 | M99: 0 | N99: 0.02448514029 | O99: 0.1352548088 | P99: 0.2443035962 | Q99: 0.2967183074 | R99: 0.2706779621 | S99: 0.1774537943 | T99: 0.06140925257 | U99: 0 | V99: =+EF75*10 -> -0.2291916518 | W99: =+EL75*10 -> 0.04171663684 | X99: =+EX75*10 -> 0
D100: ×L14/(100×EI) | V100: ×(L13/EI)/10
